Organisation Name,Organisation Code,Unique Ref No,Effective Date,Directorate  where expenditure incurred,Supplier name ,Payment Date,Net Amount,Purpose of Spend,Procurement Classification (Higher Level),Procurement Classification (Lower Level),Capital/Revenue
Walsall Council,http://opendatacommunities.org/id/metropolitan-district-council/walsall,WC76-1,31/01/2017,Economy & Environment,11KBW,05/01/2017,"7,005.00",73014-LEGAL FEES-PRIV CONTRACTOR FEES,CEMETERIES CENTRAL ADMINISTRATION,Third Party Payments,Revenue
Walsall Council,http://opendatacommunities.org/id/metropolitan-district-council/walsall,WC76-2,31/01/2017,Childrens,247 CARS (WILLENHALL) LIMITED,09/01/2017,"2,866.00",52000-WITH DRIVER-HIRE OF VEHICLES,SCHOOL TRANSPORT,Transport,Revenue
Walsall Council,http://opendatacommunities.org/id/metropolitan-district-council/walsall,WC76-3,31/01/2017,Childrens,247 CARS (WILLENHALL) LIMITED,09/01/2017,"5,168.00",52000-WITH DRIVER-HIRE OF VEHICLES,SCHOOL TRANSPORT,Transport,Revenue
Walsall Council,http://opendatacommunities.org/id/metropolitan-district-council/walsall,WC76-4,31/01/2017,Economy & Environment,3GS (UK) LIMITED,12/01/2017,"3,904.00",73025-PROFESSIONAL SERVICES-PRIV CONTRACTOR & OTHER AGENCIES,ENVIRONMENT ENFORCEMENT,Third Party Payments,Revenue
Walsall Council,http://opendatacommunities.org/id/metropolitan-district-council/walsall,WC76-5,31/01/2017,Change and Governance,4 SIGHT EYECARE CENTRE 002,25/01/2017,916.67,63000-PROFESSIONAL FEES AND SERVICES,HR DIRECT SERVICES,Supplies & Services,Revenue
Walsall Council,http://opendatacommunities.org/id/metropolitan-district-council/walsall,WC76-6,31/01/2017,Childrens,402K CONSULTANCY,03/01/2017,"5,140.00",63102-CONSULTANTS FEES - CORPORATE,SAFEGUARDING BOARD,Supplies & Services,Revenue
Walsall Council,http://opendatacommunities.org/id/metropolitan-district-council/walsall,WC76-7,31/01/2017,Childrens,5 CARE SERVICES LTD,13/01/2017,721.50,63000-PROFESSIONAL FEES AND SERVICES,DIRECTLY COMMISSIONED NURSING SERVICES,Supplies & Services,Revenue
Walsall Council,http://opendatacommunities.org/id/metropolitan-district-council/walsall,WC76-8,31/01/2017,Childrens,5 CARE SERVICES LTD,13/01/2017,"1,131.00",63000-PROFESSIONAL FEES AND SERVICES,DIRECTLY COMMISSIONED NURSING SERVICES,Supplies & Services,Revenue
Walsall Council,http://opendatacommunities.org/id/metropolitan-district-council/walsall,WC76-9,31/01/2017,Childrens,5 CARE SERVICES LTD,13/01/2017,"1,716.00",63000-PROFESSIONAL FEES AND SERVICES,DIRECTLY COMMISSIONED NURSING SERVICES,Supplies & Services,Revenue
Walsall Council,http://opendatacommunities.org/id/metropolitan-district-council/walsall,WC76-10,31/01/2017,Adult Social Care,5 CARE SERVICES LTD,30/01/2017,"41,033.38",73372-DOMICILIARY CARE,OP COMMISSIONING,Third Party Payments,Revenue
Walsall Council,http://opendatacommunities.org/id/metropolitan-district-council/walsall,WC76-11,31/01/2017,Adult Social Care,5 CARE SERVICES LTD,05/01/2017,"42,437.16",73372-DOMICILIARY CARE,OP COMMISSIONING,Third Party Payments,Revenue
Walsall Council,http://opendatacommunities.org/id/metropolitan-district-council/walsall,WC76-12,31/01/2017,Change and Governance,A D T FIRE AND SECURITY PLC,01/01/2017,254.90,01006-SITE WORKS MAIN CONTRACTORS,CFR 804 FIRE SAFETY WORKS,Capital,Capital
Walsall Council,http://opendatacommunities.org/id/metropolitan-district-council/walsall,WC76-13,31/01/2017,Change and Governance,A D T FIRE AND SECURITY PLC,17/01/2017,326.37,73025-PROFESSIONAL SERVICES-PRIV CONTRACTOR & OTHER AGENCIES,HR DIRECT SERVICES,Third Party Payments,Revenue
Walsall Council,http://opendatacommunities.org/id/metropolitan-district-council/walsall,WC76-14,31/01/2017,Change and Governance,A D T FIRE AND SECURITY PLC,06/01/2017,774.90,01006-SITE WORKS MAIN CONTRACTORS,CFR 804 FIRE SAFETY WORKS,Capital,Capital
Walsall Council,http://opendatacommunities.org/id/metropolitan-district-council/walsall,WC76-15,31/01/2017,Change and Governance,A D T FIRE AND SECURITY PLC,09/01/2017,"1,925.20",73002-SECURITY-PRIV CONTRACTOR FEES,CENTRALISED MAINTENANCE,Third Party Payments,Revenue
Walsall Council,http://opendatacommunities.org/id/metropolitan-district-council/walsall,WC76-16,31/01/2017,Economy & Environment,A F BLAKEMORE & SON LTD,30/01/2017,221.83,61008-CONFECTIONERY/SNACKS-PROVISIONS,WALSALL GALA CENTRE,Supplies & Services,Revenue
Walsall Council,http://opendatacommunities.org/id/metropolitan-district-council/walsall,WC76-17,31/01/2017,Economy & Environment,A F BLAKEMORE & SON LTD,04/01/2017,241.60,61018-DRINKS-PROVISIONS,WALSALL GALA CENTRE,Supplies & Services,Revenue
Walsall Council,http://opendatacommunities.org/id/metropolitan-district-council/walsall,WC76-18,31/01/2017,Economy & Environment,A F BLAKEMORE & SON LTD,24/01/2017,335.02,61008-CONFECTIONERY/SNACKS-PROVISIONS,BLOXWICH LEISURE CENTRE,Supplies & Services,Revenue
Walsall Council,http://opendatacommunities.org/id/metropolitan-district-council/walsall,WC76-19,31/01/2017,Economy & Environment,A F BLAKEMORE & SON LTD,04/01/2017,365.53,61008-CONFECTIONERY/SNACKS-PROVISIONS,WALSALL GALA CENTRE,Supplies & Services,Revenue
Walsall Council,http://opendatacommunities.org/id/metropolitan-district-council/walsall,WC76-20,31/01/2017,Adult Social Care,A F BLAKEMORE & SON LTD,25/01/2017,375.32,61016-FOOD AND BEVERAGES-PROVISIONS,REABLEMENT TEAM - HOLLY BANK,Supplies & Services,Revenue
Walsall Council,http://opendatacommunities.org/id/metropolitan-district-council/walsall,WC76-21,31/01/2017,Adult Social Care,A F BLAKEMORE & SON LTD,18/01/2017,398.81,61016-FOOD AND BEVERAGES-PROVISIONS,GOSCOTE,Supplies & Services,Revenue
Walsall Council,http://opendatacommunities.org/id/metropolitan-district-council/walsall,WC76-22,31/01/2017,Adult Social Care,A F BLAKEMORE & SON LTD,18/01/2017,479.47,61016-FOOD AND BEVERAGES-PROVISIONS,GOSCOTE,Supplies & Services,Revenue
Walsall Council,http://opendatacommunities.org/id/metropolitan-district-council/walsall,WC76-23,31/01/2017,Adult Social Care,A F BLAKEMORE & SON LTD,03/01/2017,571.17,61016-FOOD AND BEVERAGES-PROVISIONS,GOSCOTE,Supplies & Services,Revenue
Walsall Council,http://opendatacommunities.org/id/metropolitan-district-council/walsall,WC76-24,31/01/2017,Adult Social Care,A F BLAKEMORE & SON LTD,18/01/2017,622.40,61016-FOOD AND BEVERAGES-PROVISIONS,REABLEMENT TEAM - HOLLY BANK,Supplies & Services,Revenue
Walsall Council,http://opendatacommunities.org/id/metropolitan-district-council/walsall,WC76-25,31/01/2017,Economy & Environment,A F BLAKEMORE & SON LTD,19/01/2017,684.90,61008-CONFECTIONERY/SNACKS-PROVISIONS,OAK PARK,Supplies & Services,Revenue
Walsall Council,http://opendatacommunities.org/id/metropolitan-district-council/walsall,WC76-26,31/01/2017,Adult Social Care,A F BLAKEMORE & SON LTD,04/01/2017,696.52,61016-FOOD AND BEVERAGES-PROVISIONS,REABLEMENT TEAM - HOLLY BANK,Supplies & Services,Revenue
Walsall Council,http://opendatacommunities.org/id/metropolitan-district-council/walsall,WC76-27,31/01/2017,Economy & Environment,A F BLAKEMORE & SON LTD,18/01/2017,985.31,61008-CONFECTIONERY/SNACKS-PROVISIONS,BLOXWICH LEISURE CENTRE,Supplies & Services,Revenue
Walsall Council,http://opendatacommunities.org/id/metropolitan-district-council/walsall,WC76-28,31/01/2017,Economy & Environment,A F BLAKEMORE & SON LTD,04/01/2017,"1,550.76",61008-CONFECTIONERY/SNACKS-PROVISIONS,OAK PARK,Supplies & Services,Revenue
Walsall Council,http://opendatacommunities.org/id/metropolitan-district-council/walsall,WC76-29,31/01/2017,Childrens,A HUTCHINSON,16/01/2017,340.16,74006-HOLIDAY/CHRISTMAS ALLOWANCE-FOSTER CARERS-OTH AGENCY PROVISION,INTERNAL FOSTER CARE PROVISION,Third Party Payments,Revenue
Walsall Council,http://opendatacommunities.org/id/metropolitan-district-council/walsall,WC76-30,31/01/2017,Economy & Environment,A KARIMS CHUCKERY PHARMACY,04/01/2017,26.55,63000-PROFESSIONAL FEES AND SERVICES,SEXUAL HEALTH,Supplies & Services,Revenue
Walsall Council,http://opendatacommunities.org/id/metropolitan-district-council/walsall,WC76-31,31/01/2017,Economy & Environment,A KARIMS CHUCKERY PHARMACY,04/01/2017,"1,504.10",71007-CONTRIBUTION TO PCT,PUBLIC HEALTH BUSINESS SUPPORT,Third Party Payments,Revenue
Walsall Council,http://opendatacommunities.org/id/metropolitan-district-council/walsall,WC76-32,31/01/2017,Change and Governance,A STAR TRAFFIC,10/01/2017,"2,788.50",63000-PROFESSIONAL FEES AND SERVICES,CORPORATE EXPENSES,Supplies & Services,Revenue
Walsall Council,http://opendatacommunities.org/id/metropolitan-district-council/walsall,WC76-33,31/01/2017,Change and Governance,A STAR TRAFFIC,10/01/2017,"2,788.50",63000-PROFESSIONAL FEES AND SERVICES,CORPORATE EXPENSES,Supplies & Services,Revenue
Walsall Council,http://opendatacommunities.org/id/metropolitan-district-council/walsall,WC76-34,31/01/2017,Childrens,A1 EXPRESS TAXIS,19/01/2017,484.00,52000-WITH DRIVER-HIRE OF VEHICLES,LOOKED AFTER CHILDRENS SOCIAL WORK TEAM,Transport,Revenue
Walsall Council,http://opendatacommunities.org/id/metropolitan-district-council/walsall,WC76-35,31/01/2017,Childrens,A1 EXPRESS TAXIS,19/01/2017,612.00,52000-WITH DRIVER-HIRE OF VEHICLES,LOOKED AFTER CHILDRENS SOCIAL WORK TEAM,Transport,Revenue
Walsall Council,http://opendatacommunities.org/id/metropolitan-district-council/walsall,WC76-36,31/01/2017,Childrens,A1 EXPRESS TAXIS,19/01/2017,644.00,52000-WITH DRIVER-HIRE OF VEHICLES,DALE STREET FAMILY CENTRE,Transport,Revenue
Walsall Council,http://opendatacommunities.org/id/metropolitan-district-council/walsall,WC76-37,31/01/2017,Childrens,AA GLOBAL LANGUAGE SERVICES LIMITED,04/01/2017,252.50,"62521-INTERPRETATION,TRANSLATION & HUMAN AIDS TO TRANSCRIPTION",LOOKED AFTER CHILDRENS SOCIAL WORK TEAM,Supplies & Services,Revenue
Walsall Council,http://opendatacommunities.org/id/metropolitan-district-council/walsall,WC76-38,31/01/2017,Childrens,AA GLOBAL LANGUAGE SERVICES LIMITED,25/01/2017,252.50,"62521-INTERPRETATION,TRANSLATION & HUMAN AIDS TO TRANSCRIPTION",LOOKED AFTER CHILDRENS SOCIAL WORK TEAM,Supplies & Services,Revenue
Walsall Council,http://opendatacommunities.org/id/metropolitan-district-council/walsall,WC76-39,31/01/2017,Childrens,REDACTED,09/01/2017,378.00,76422-DIRECT PAYMENTS TO SOCIAL SERVICES CLIENTS,FAMILY SUPPORT - DIRECT PAYMENTS,Transfer Payments,Revenue
Walsall Council,http://opendatacommunities.org/id/metropolitan-district-council/walsall,WC76-40,31/01/2017,Adult Social Care,ABBEY COURT NURSING & RESIDEN,10/01/2017,"1,786.40",73373-RESIDENTIAL & NURSING CARE PLACEMENTS,OP COMMISSIONING,Third Party Payments,Revenue
Walsall Council,http://opendatacommunities.org/id/metropolitan-district-council/walsall,WC76-41,31/01/2017,Adult Social Care,ABBEY COURT NURSING & RESIDEN,10/01/2017,"1,786.40",73373-RESIDENTIAL & NURSING CARE PLACEMENTS,OP COMMISSIONING,Third Party Payments,Revenue
Walsall Council,http://opendatacommunities.org/id/metropolitan-district-council/walsall,WC76-42,31/01/2017,Adult Social Care,ABBEY COURT NURSING & RESIDEN,10/01/2017,"1,878.91",73373-RESIDENTIAL & NURSING CARE PLACEMENTS,MH COMMISSIONING,Third Party Payments,Revenue
Walsall Council,http://opendatacommunities.org/id/metropolitan-district-council/walsall,WC76-43,31/01/2017,Adult Social Care,ABBEY HEALTHCARE HOMES LTD,17/01/2017,"1,699.16",73373-RESIDENTIAL & NURSING CARE PLACEMENTS,PD COMMISSIONING,Third Party Payments,Revenue
Walsall Council,http://opendatacommunities.org/id/metropolitan-district-council/walsall,WC76-44,31/01/2017,Childrens,ABC CHILDRENS HOME,06/01/2017,"15,500.00",74036-EXTERNAL RESIDENTIAL CARE-OTH AGENCY PROVISION,INDEPENDENT RESIDENTIAL HOMES,Third Party Payments,Revenue
Walsall Council,http://opendatacommunities.org/id/metropolitan-district-council/walsall,WC76-45,31/01/2017,Childrens,ABC DAY NURSERY (WILLENHALL) LIMITED,09/01/2017,269.28,66505-OTHER-GRANTS TO OTHER ORGS,EARLY YEARS - 3 YR OLDS,Third Party Payments,Revenue
Walsall Council,http://opendatacommunities.org/id/metropolitan-district-council/walsall,WC76-46,31/01/2017,Childrens,ABC DAY NURSERY (WILLENHALL) LIMITED,25/01/2017,300.00,63000-PROFESSIONAL FEES AND SERVICES,SAFEGUARDING & FAMILY SUPPORT,Supplies & Services,Revenue
Walsall Council,http://opendatacommunities.org/id/metropolitan-district-council/walsall,WC76-47,31/01/2017,Childrens,ABC DAY NURSERY (WILLENHALL) LIMITED,03/01/2017,"25,349.76",66505-OTHER-GRANTS TO OTHER ORGS,EARLY YEARS - 2 YR OLDS,Third Party Payments,Revenue
Walsall Council,http://opendatacommunities.org/id/metropolitan-district-council/walsall,WC76-48,31/01/2017,Childrens,ABC DAY NURSERY (WILLENHALL) LIMITED,03/01/2017,"27,362.83",66505-OTHER-GRANTS TO OTHER ORGS,EARLY YEARS - 3 YR OLDS,Third Party Payments,Revenue
Walsall Council,http://opendatacommunities.org/id/metropolitan-district-council/walsall,WC76-49,31/01/2017,Childrens,ABC FOSTERING,11/01/2017,500.00,74037-INDEPENDENT FOSTER CARE-OTH AGENCY PROVISION,EXTERNAL FOSTER CARE PROVISION,Third Party Payments,Revenue
Walsall Council,http://opendatacommunities.org/id/metropolitan-district-council/walsall,WC76-50,31/01/2017,Childrens,ABC FOSTERING,16/01/2017,"2,917.54",74037-INDEPENDENT FOSTER CARE-OTH AGENCY PROVISION,EXTERNAL FOSTER CARE PROVISION,Third Party Payments,Revenue
Walsall Council,http://opendatacommunities.org/id/metropolitan-district-council/walsall,WC76-51,31/01/2017,Childrens,ABC FOSTERING,16/01/2017,"2,917.54",74037-INDEPENDENT FOSTER CARE-OTH AGENCY PROVISION,EXTERNAL FOSTER CARE PROVISION,Third Party Payments,Revenue
Walsall Council,http://opendatacommunities.org/id/metropolitan-district-council/walsall,WC76-52,31/01/2017,Childrens,ABC FOSTERING,16/01/2017,"3,108.86",74037-INDEPENDENT FOSTER CARE-OTH AGENCY PROVISION,EXTERNAL FOSTER CARE PROVISION,Third Party Payments,Revenue
Walsall Council,http://opendatacommunities.org/id/metropolitan-district-council/walsall,WC76-53,31/01/2017,Childrens,ABC FOSTERING,16/01/2017,"3,306.55",74037-INDEPENDENT FOSTER CARE-OTH AGENCY PROVISION,EXTERNAL FOSTER CARE PROVISION,Third Party Payments,Revenue
Walsall Council,http://opendatacommunities.org/id/metropolitan-district-council/walsall,WC76-54,31/01/2017,Childrens,ABC FOSTERING,16/01/2017,"3,306.55",74037-INDEPENDENT FOSTER CARE-OTH AGENCY PROVISION,EXTERNAL FOSTER CARE PROVISION,Third Party Payments,Revenue
Walsall Council,http://opendatacommunities.org/id/metropolitan-district-council/walsall,WC76-55,31/01/2017,Adult Social Care,REDACTED,09/01/2017,"1,557.68",76422-DIRECT PAYMENTS TO SOCIAL SERVICES CLIENTS,LD COMMISSIONING,Transfer Payments,Revenue
Walsall Council,http://opendatacommunities.org/id/metropolitan-district-council/walsall,WC76-56,31/01/2017,Economy & Environment,ABEL ALARM CO LTD,01/01/2017,805.00,60008-MAINTENANCE-FURNITURE & EQUIPMENT,PLECK LIBRARY,Supplies & Services,Revenue
Walsall Council,http://opendatacommunities.org/id/metropolitan-district-council/walsall,WC76-57,31/01/2017,Adult Social Care,REDACTED,09/01/2017,"2,357.99",76422-DIRECT PAYMENTS TO SOCIAL SERVICES CLIENTS,LD COMMISSIONING,Transfer Payments,Revenue
Walsall Council,http://opendatacommunities.org/id/metropolitan-district-council/walsall,WC76-58,31/01/2017,Childrens,ABLEWELL CARS,09/01/2017,265.00,52000-WITH DRIVER-HIRE OF VEHICLES,SCHOOL TRANSPORT,Transport,Revenue
Walsall Council,http://opendatacommunities.org/id/metropolitan-district-council/walsall,WC76-59,31/01/2017,Childrens,ABLEWELL CARS,09/01/2017,"1,060.00",52000-WITH DRIVER-HIRE OF VEHICLES,SCHOOL TRANSPORT,Transport,Revenue
Walsall Council,http://opendatacommunities.org/id/metropolitan-district-council/walsall,WC76-60,31/01/2017,Economy & Environment,ABRSM,12/01/2017,"2,397.00",63000-PROFESSIONAL FEES AND SERVICES,MUSIC HUB FOREST ARTS,Supplies & Services,Revenue
Walsall Council,http://opendatacommunities.org/id/metropolitan-district-council/walsall,WC76-61,31/01/2017,Childrens,ABU BAKR NURSERY,03/01/2017,"9,858.24",66505-OTHER-GRANTS TO OTHER ORGS,EARLY YEARS - 2 YR OLDS,Third Party Payments,Revenue
Walsall Council,http://opendatacommunities.org/id/metropolitan-district-council/walsall,WC76-62,31/01/2017,Childrens,ABU BAKR NURSERY,03/01/2017,"28,727.73",66505-OTHER-GRANTS TO OTHER ORGS,EARLY YEARS - 3 YR OLDS,Third Party Payments,Revenue
Walsall Council,http://opendatacommunities.org/id/metropolitan-district-council/walsall,WC76-63,31/01/2017,Economy & Environment,AC COACHING & SPORTS DEVELOPMENT LIMITED,30/01/2017,430.00,63000-PROFESSIONAL FEES AND SERVICES,SCHOOL GAMES,Supplies & Services,Revenue
Walsall Council,http://opendatacommunities.org/id/metropolitan-district-council/walsall,WC76-64,31/01/2017,Childrens,AC EDUCATION,16/01/2017,"4,255.00",30030-EXTERNAL TRAINING,FAMILY PLACEMENTS,Employees,Revenue
Walsall Council,http://opendatacommunities.org/id/metropolitan-district-council/walsall,WC76-65,31/01/2017,Adult Social Care,ACCORD HOUSING ASSOCIATION LTD#135,10/01/2017,317.96,73373-RESIDENTIAL & NURSING CARE PLACEMENTS,LD COMMISSIONING,Third Party Payments,Revenue
Walsall Council,http://opendatacommunities.org/id/metropolitan-district-council/walsall,WC76-66,31/01/2017,Adult Social Care,ACCORD HOUSING ASSOCIATION LTD#135,04/01/2017,578.25,73374-SUPPORTED & OTHER ACCOMMODATION,LD COMMISSIONING,Third Party Payments,Revenue
Walsall Council,http://opendatacommunities.org/id/metropolitan-district-council/walsall,WC76-67,31/01/2017,Adult Social Care,ACCORD HOUSING ASSOCIATION LTD#135,03/01/2017,"4,744.90",73373-RESIDENTIAL & NURSING CARE PLACEMENTS,LD COMMISSIONING,Third Party Payments,Revenue
Walsall Council,http://opendatacommunities.org/id/metropolitan-district-council/walsall,WC76-68,31/01/2017,Adult Social Care,ACCORD HOUSING ASSOCIATION LTD#135,03/01/2017,"4,744.90",73373-RESIDENTIAL & NURSING CARE PLACEMENTS,LD COMMISSIONING,Third Party Payments,Revenue
Walsall Council,http://opendatacommunities.org/id/metropolitan-district-council/walsall,WC76-69,31/01/2017,Adult Social Care,ACCORD HOUSING ASSOCIATION LTD#135,03/01/2017,"4,744.90",73373-RESIDENTIAL & NURSING CARE PLACEMENTS,LD COMMISSIONING,Third Party Payments,Revenue
Walsall Council,http://opendatacommunities.org/id/metropolitan-district-council/walsall,WC76-70,31/01/2017,Adult Social Care,ACCORD HOUSING ASSOCIATION LTD#135,03/01/2017,"4,744.90",73373-RESIDENTIAL & NURSING CARE PLACEMENTS,LD COMMISSIONING,Third Party Payments,Revenue
Walsall Council,http://opendatacommunities.org/id/metropolitan-district-council/walsall,WC76-71,31/01/2017,Adult Social Care,ACCORD HOUSING ASSOCIATION LTD#135,03/01/2017,"6,622.35",73373-RESIDENTIAL & NURSING CARE PLACEMENTS,LD COMMISSIONING,Third Party Payments,Revenue
Walsall Council,http://opendatacommunities.org/id/metropolitan-district-council/walsall,WC76-72,31/01/2017,Adult Social Care,ACCORD HOUSING ASSOCIATION LTD#135,03/01/2017,"6,622.35",73373-RESIDENTIAL & NURSING CARE PLACEMENTS,LD COMMISSIONING,Third Party Payments,Revenue
Walsall Council,http://opendatacommunities.org/id/metropolitan-district-council/walsall,WC76-73,31/01/2017,Adult Social Care,ACCORD HOUSING ASSOCIATION LTD#135,03/01/2017,"6,622.35",73373-RESIDENTIAL & NURSING CARE PLACEMENTS,LD COMMISSIONING,Third Party Payments,Revenue
Walsall Council,http://opendatacommunities.org/id/metropolitan-district-council/walsall,WC76-74,31/01/2017,Adult Social Care,ACCORD HOUSING ASSOCIATION LTD#135,30/01/2017,"8,786.92",73372-DOMICILIARY CARE,OP COMMISSIONING,Third Party Payments,Revenue
Walsall Council,http://opendatacommunities.org/id/metropolitan-district-council/walsall,WC76-75,31/01/2017,Adult Social Care,ACCORD HOUSING ASSOCIATION LTD#135,05/01/2017,"9,878.37",73372-DOMICILIARY CARE,OP COMMISSIONING,Third Party Payments,Revenue
Walsall Council,http://opendatacommunities.org/id/metropolitan-district-council/walsall,WC76-76,31/01/2017,Adult Social Care,ACCORD HOUSING ASSOCIATION LTD#135,30/01/2017,"28,398.59",73372-DOMICILIARY CARE,OP COMMISSIONING,Third Party Payments,Revenue
Walsall Council,http://opendatacommunities.org/id/metropolitan-district-council/walsall,WC76-77,31/01/2017,Adult Social Care,ACCORD HOUSING ASSOCIATION LTD#135,06/01/2017,"29,941.05",73372-DOMICILIARY CARE,OP COMMISSIONING,Third Party Payments,Revenue
Walsall Council,http://opendatacommunities.org/id/metropolitan-district-council/walsall,WC76-78,31/01/2017,Adult Social Care,ACCORD HOUSING ASSOCIATION LTD#135,25/01/2017,"59,721.51",73365-BLOCK GROSS-SUPPORTING PEOPLE,OLDER PEOPLES CONTRACTS/SLA,Third Party Payments,Revenue
Walsall Council,http://opendatacommunities.org/id/metropolitan-district-council/walsall,WC76-79,31/01/2017,Adult Social Care,ACE CARE AGENCY,13/01/2017,376.92,73372-DOMICILIARY CARE,OP COMMISSIONING,Third Party Payments,Revenue
Walsall Council,http://opendatacommunities.org/id/metropolitan-district-council/walsall,WC76-80,31/01/2017,Adult Social Care,ACE CARE AGENCY,13/01/2017,517.68,73372-DOMICILIARY CARE,OP COMMISSIONING,Third Party Payments,Revenue
Walsall Council,http://opendatacommunities.org/id/metropolitan-district-council/walsall,WC76-81,31/01/2017,Adult Social Care,ACE CARE AGENCY,13/01/2017,566.58,73372-DOMICILIARY CARE,MH COMMISSIONING,Third Party Payments,Revenue
Walsall Council,http://opendatacommunities.org/id/metropolitan-district-council/walsall,WC76-82,31/01/2017,Adult Social Care,ACE CARE AGENCY,13/01/2017,669.50,73372-DOMICILIARY CARE,OP COMMISSIONING,Third Party Payments,Revenue
Walsall Council,http://opendatacommunities.org/id/metropolitan-district-council/walsall,WC76-83,31/01/2017,Adult Social Care,ACE CARE AGENCY,13/01/2017,806.00,73372-DOMICILIARY CARE,OP COMMISSIONING,Third Party Payments,Revenue
Walsall Council,http://opendatacommunities.org/id/metropolitan-district-council/walsall,WC76-84,31/01/2017,Childrens,ACE RADIO CARS,23/01/2017,"1,171.44",52000-WITH DRIVER-HIRE OF VEHICLES,SCHOOL TRANSPORT,Transport,Revenue
Walsall Council,http://opendatacommunities.org/id/metropolitan-district-council/walsall,WC76-85,31/01/2017,Adult Social Care,ACEPAY LTD (COTTAGE NUR HOME),10/01/2017,"2,274.80",73373-RESIDENTIAL & NURSING CARE PLACEMENTS,OP COMMISSIONING,Third Party Payments,Revenue
Walsall Council,http://opendatacommunities.org/id/metropolitan-district-council/walsall,WC76-86,31/01/2017,Adult Social Care,ACEPAY LTD (COTTAGE NUR HOME),10/01/2017,"2,274.80",73373-RESIDENTIAL & NURSING CARE PLACEMENTS,OP COMMISSIONING,Third Party Payments,Revenue
Walsall Council,http://opendatacommunities.org/id/metropolitan-district-council/walsall,WC76-87,31/01/2017,Adult Social Care,ACEPAY LTD (COTTAGE NUR HOME),10/01/2017,"2,274.80",73373-RESIDENTIAL & NURSING CARE PLACEMENTS,OP COMMISSIONING,Third Party Payments,Revenue
Walsall Council,http://opendatacommunities.org/id/metropolitan-district-council/walsall,WC76-88,31/01/2017,Adult Social Care,ACEPAY LTD (COTTAGE NUR HOME),10/01/2017,"2,320.80",73373-RESIDENTIAL & NURSING CARE PLACEMENTS,OP COMMISSIONING,Third Party Payments,Revenue
Walsall Council,http://opendatacommunities.org/id/metropolitan-district-council/walsall,WC76-89,31/01/2017,Adult Social Care,ACEPAY LTD (COTTAGE NUR HOME),10/01/2017,"2,320.80",73373-RESIDENTIAL & NURSING CARE PLACEMENTS,OP COMMISSIONING,Third Party Payments,Revenue
Walsall Council,http://opendatacommunities.org/id/metropolitan-district-council/walsall,WC76-90,31/01/2017,Economy & Environment,ACHATES PHILANTHROPY LTD,01/01/2017,738.60,63000-PROFESSIONAL FEES AND SERVICES,NEW ART GALLERY - ADMIN,Supplies & Services,Revenue
Walsall Council,http://opendatacommunities.org/id/metropolitan-district-council/walsall,WC76-91,31/01/2017,Economy & Environment,ACHATES PHILANTHROPY LTD,01/01/2017,"1,103.70",63000-PROFESSIONAL FEES AND SERVICES,NEW ART GALLERY - ADMIN,Supplies & Services,Revenue
Walsall Council,http://opendatacommunities.org/id/metropolitan-district-council/walsall,WC76-92,31/01/2017,Economy & Environment,ACHATES PHILANTHROPY LTD,01/01/2017,"5,320.00",63000-PROFESSIONAL FEES AND SERVICES,NEW ART GALLERY - ADMIN,Supplies & Services,Revenue
Walsall Council,http://opendatacommunities.org/id/metropolitan-district-council/walsall,WC76-93,31/01/2017,Adult Social Care,ACORN CARE LTD,17/01/2017,"15,174.19",73373-RESIDENTIAL & NURSING CARE PLACEMENTS,LD COMMISSIONING,Third Party Payments,Revenue
Walsall Council,http://opendatacommunities.org/id/metropolitan-district-council/walsall,WC76-94,31/01/2017,Adult Social Care,ACORN REST HOME,17/01/2017,"1,620.00",73373-RESIDENTIAL & NURSING CARE PLACEMENTS,OP COMMISSIONING,Third Party Payments,Revenue
Walsall Council,http://opendatacommunities.org/id/metropolitan-district-council/walsall,WC76-95,31/01/2017,Childrens,ACORNS CHILDRENS HOSPICE TRUST,11/01/2017,750.00,63000-PROFESSIONAL FEES AND SERVICES,DIRECTLY COMMISSIONED NURSING SERVICES,Supplies & Services,Revenue
Walsall Council,http://opendatacommunities.org/id/metropolitan-district-council/walsall,WC76-96,31/01/2017,Economy & Environment,ACTION MIDLANDS LTD,13/01/2017,300.00,30030-EXTERNAL TRAINING,YEI ESF FUNDING,Employees,Revenue
Walsall Council,http://opendatacommunities.org/id/metropolitan-district-council/walsall,WC76-97,31/01/2017,Adult Social Care,ACTION ON HEARING LOSS,27/01/2017,"1,014.75",73374-SUPPORTED & OTHER ACCOMMODATION,LD COMMISSIONING,Third Party Payments,Revenue
Walsall Council,http://opendatacommunities.org/id/metropolitan-district-council/walsall,WC76-98,31/01/2017,Adult Social Care,ACTION ON HEARING LOSS,27/01/2017,"1,080.75",73374-SUPPORTED & OTHER ACCOMMODATION,LD COMMISSIONING,Third Party Payments,Revenue
Walsall Council,http://opendatacommunities.org/id/metropolitan-district-council/walsall,WC76-99,31/01/2017,Adult Social Care,ACTION ON HEARING LOSS,27/01/2017,"1,155.00",73374-SUPPORTED & OTHER ACCOMMODATION,MH COMMISSIONING,Third Party Payments,Revenue
Walsall Council,http://opendatacommunities.org/id/metropolitan-district-council/walsall,WC76-100,31/01/2017,Holding Accounts,ACTIVE LEGAL,12/01/2017,360.00,67001-MISC INSURANCES - PAYMENT OF CLAIMS,PUBLIC LIABILITY,Supplies & Services,Revenue
Walsall Council,http://opendatacommunities.org/id/metropolitan-district-council/walsall,WC76-101,31/01/2017,Holding Accounts,ACTIVE LEGAL,19/01/2017,"5,816.60",67001-MISC INSURANCES - PAYMENT OF CLAIMS,PUBLIC LIABILITY,Supplies & Services,Revenue
Walsall Council,http://opendatacommunities.org/id/metropolitan-district-council/walsall,WC76-102,31/01/2017,Adult Social Care,ACTON BANKS LTD,17/01/2017,526.47,34305-AGENCY STAFF-EMPLOYEES,REABLEMENT TEAM - HOLLY BANK,Employees,Revenue
Walsall Council,http://opendatacommunities.org/id/metropolitan-district-council/walsall,WC76-103,31/01/2017,Adult Social Care,ACTON BANKS LTD,01/01/2017,621.93,34305-AGENCY STAFF-EMPLOYEES,REABLEMENT TEAM - HOLLY BANK,Employees,Revenue
Walsall Council,http://opendatacommunities.org/id/metropolitan-district-council/walsall,WC76-104,31/01/2017,Adult Social Care,ACTON BANKS LTD,25/01/2017,664.68,34305-AGENCY STAFF-EMPLOYEES,GOSCOTE,Employees,Revenue
Walsall Council,http://opendatacommunities.org/id/metropolitan-district-council/walsall,WC76-105,31/01/2017,Adult Social Care,ACTON BANKS LTD,30/01/2017,848.04,34305-AGENCY STAFF-EMPLOYEES,GOSCOTE,Employees,Revenue
Walsall Council,http://opendatacommunities.org/id/metropolitan-district-council/walsall,WC76-106,31/01/2017,Adult Social Care,ACTON BANKS LTD,27/01/2017,894.75,34305-AGENCY STAFF-EMPLOYEES,REABLEMENT TEAM - HOLLY BANK,Employees,Revenue
Walsall Council,http://opendatacommunities.org/id/metropolitan-district-council/walsall,WC76-107,31/01/2017,Adult Social Care,ACTON BANKS LTD,01/01/2017,"1,117.68",34305-AGENCY STAFF-EMPLOYEES,REABLEMENT TEAM - HOLLY BANK,Employees,Revenue
Walsall Council,http://opendatacommunities.org/id/metropolitan-district-council/walsall,WC76-108,31/01/2017,Adult Social Care,ACTON BANKS LTD,06/01/2017,"1,177.98",73025-PROFESSIONAL SERVICES-PRIV CONTRACTOR & OTHER AGENCIES,REABLEMENT TEAM - HOLLY BANK,Third Party Payments,Revenue
Walsall Council,http://opendatacommunities.org/id/metropolitan-district-council/walsall,WC76-109,31/01/2017,Adult Social Care,ACTON BANKS LTD,11/01/2017,"1,469.19",34305-AGENCY STAFF-EMPLOYEES,REABLEMENT TEAM - HOLLY BANK,Employees,Revenue
Walsall Council,http://opendatacommunities.org/id/metropolitan-district-council/walsall,WC76-110,31/01/2017,Adult Social Care,ACTON BANKS LTD,18/01/2017,"1,555.13",34305-AGENCY STAFF-EMPLOYEES,REABLEMENT TEAM - HOLLY BANK,Employees,Revenue
Walsall Council,http://opendatacommunities.org/id/metropolitan-district-council/walsall,WC76-111,31/01/2017,Adult Social Care,ACTON BANKS LTD,03/01/2017,"1,579.74",73025-PROFESSIONAL SERVICES-PRIV CONTRACTOR & OTHER AGENCIES,REABLEMENT TEAM - HOLLY BANK,Third Party Payments,Revenue
Walsall Council,http://opendatacommunities.org/id/metropolitan-district-council/walsall,WC76-112,31/01/2017,Adult Social Care,REDACTED,09/01/2017,486.00,76422-DIRECT PAYMENTS TO SOCIAL SERVICES CLIENTS,LD COMMISSIONING,Transfer Payments,Revenue
Walsall Council,http://opendatacommunities.org/id/metropolitan-district-council/walsall,WC76-113,31/01/2017,Adult Social Care,REDACTED,09/01/2017,964.00,76422-DIRECT PAYMENTS TO SOCIAL SERVICES CLIENTS,OP COMMISSIONING,Transfer Payments,Revenue
Walsall Council,http://opendatacommunities.org/id/metropolitan-district-council/walsall,WC76-114,31/01/2017,Change and Governance,ADLER MANUFACTURING LIMITED,11/01/2017,"1,574.49",83901-SOUVENIRS-OTHER DEMOCRACY COSTS,MAYORS SECRETARIAT,Supplies & Services,Revenue
Walsall Council,http://opendatacommunities.org/id/metropolitan-district-council/walsall,WC76-115,31/01/2017,Adult Social Care,ADMIRAL SELF STORAGE LTD,11/01/2017,215.10,43000-RENTS,MENTAL HEALTH MANAGEMENT TEAM,Premises,Revenue
Walsall Council,http://opendatacommunities.org/id/metropolitan-district-council/walsall,WC76-116,31/01/2017,Childrens,ADMIRAL SELF STORAGE LTD,01/01/2017,228.78,63000-PROFESSIONAL FEES AND SERVICES,PLACEMENTS & RESOURCES TEAM,Supplies & Services,Revenue
Walsall Council,http://opendatacommunities.org/id/metropolitan-district-council/walsall,WC76-117,31/01/2017,Childrens,ADMIRAL SELF STORAGE LTD,12/01/2017,228.78,63000-PROFESSIONAL FEES AND SERVICES,PLACEMENTS & RESOURCES TEAM,Supplies & Services,Revenue
Walsall Council,http://opendatacommunities.org/id/metropolitan-district-council/walsall,WC76-118,31/01/2017,Adult Social Care,ADMIRAL SELF STORAGE LTD,06/01/2017,783.90,60514-MATERIALS TO STORES,REVIEW TEAM,Supplies & Services,Revenue
Walsall Council,http://opendatacommunities.org/id/metropolitan-district-council/walsall,WC76-119,31/01/2017,Childrens,ADRIAN TALBOT,16/01/2017,694.24,74006-HOLIDAY/CHRISTMAS ALLOWANCE-FOSTER CARERS-OTH AGENCY PROVISION,INTERNAL FOSTER CARE PROVISION,Third Party Payments,Revenue
Walsall Council,http://opendatacommunities.org/id/metropolitan-district-council/walsall,WC76-120,31/01/2017,Adult Social Care,ADVANCE HEALTH CARE (UK) LTD,09/01/2017,"1,329.66",73025-PROFESSIONAL SERVICES-PRIV CONTRACTOR & OTHER AGENCIES,COMMUNITY INTERMEDIATE CARE,Third Party Payments,Revenue
Walsall Council,http://opendatacommunities.org/id/metropolitan-district-council/walsall,WC76-121,31/01/2017,Adult Social Care,ADVANCE HEALTH CARE (UK) LTD,13/01/2017,"1,801.26",73025-PROFESSIONAL SERVICES-PRIV CONTRACTOR & OTHER AGENCIES,COMMUNITY INTERMEDIATE CARE,Third Party Payments,Revenue
Walsall Council,http://opendatacommunities.org/id/metropolitan-district-council/walsall,WC76-122,31/01/2017,Adult Social Care,ADVANCE HEALTH CARE (UK) LTD,30/01/2017,"1,801.26",73025-PROFESSIONAL SERVICES-PRIV CONTRACTOR & OTHER AGENCIES,REABLEMENT TEAM - HOLLY BANK,Third Party Payments,Revenue
Walsall Council,http://opendatacommunities.org/id/metropolitan-district-council/walsall,WC76-123,31/01/2017,Adult Social Care,ADVANCE HEALTH CARE (UK) LTD,30/01/2017,"1,801.26",73025-PROFESSIONAL SERVICES-PRIV CONTRACTOR & OTHER AGENCIES,REABLEMENT TEAM - HOLLY BANK,Third Party Payments,Revenue
Walsall Council,http://opendatacommunities.org/id/metropolitan-district-council/walsall,WC76-124,31/01/2017,Adult Social Care,ADVANCE HEALTH CARE (UK) LTD,13/01/2017,"2,033.79",73025-PROFESSIONAL SERVICES-PRIV CONTRACTOR & OTHER AGENCIES,COMMUNITY INTERMEDIATE CARE,Third Party Payments,Revenue
Walsall Council,http://opendatacommunities.org/id/metropolitan-district-council/walsall,WC76-125,31/01/2017,Adult Social Care,ADVANCE HEALTH CARE (UK) LTD,24/01/2017,"5,240.00",73025-PROFESSIONAL SERVICES-PRIV CONTRACTOR & OTHER AGENCIES,REABLEMENT TEAM - HOLLY BANK,Third Party Payments,Revenue
Walsall Council,http://opendatacommunities.org/id/metropolitan-district-council/walsall,WC76-126,31/01/2017,Adult Social Care,ADVANCE HEALTH CARE (UK) LTD,13/01/2017,"5,495.45",73025-PROFESSIONAL SERVICES-PRIV CONTRACTOR & OTHER AGENCIES,REABLEMENT TEAM - HOLLY BANK,Third Party Payments,Revenue
Walsall Council,http://opendatacommunities.org/id/metropolitan-district-council/walsall,WC76-127,31/01/2017,Adult Social Care,ADVANCE HEALTH CARE (UK) LTD,30/01/2017,"5,518.38",73025-PROFESSIONAL SERVICES-PRIV CONTRACTOR & OTHER AGENCIES,REABLEMENT TEAM - HOLLY BANK,Third Party Payments,Revenue
Walsall Council,http://opendatacommunities.org/id/metropolitan-district-council/walsall,WC76-128,31/01/2017,Adult Social Care,ADVANCE HEALTH CARE (UK) LTD,30/01/2017,"5,564.23",73025-PROFESSIONAL SERVICES-PRIV CONTRACTOR & OTHER AGENCIES,REABLEMENT TEAM - HOLLY BANK,Third Party Payments,Revenue
Walsall Council,http://opendatacommunities.org/id/metropolitan-district-council/walsall,WC76-129,31/01/2017,Adult Social Care,ADVANCE HEALTH CARE (UK) LTD,09/01/2017,"5,957.23",73025-PROFESSIONAL SERVICES-PRIV CONTRACTOR & OTHER AGENCIES,COMMUNITY INTERMEDIATE CARE,Third Party Payments,Revenue
Walsall Council,http://opendatacommunities.org/id/metropolitan-district-council/walsall,WC76-130,31/01/2017,Adult Social Care,ADVANCE HEALTH CARE (UK) LTD,11/01/2017,"6,107.88",73025-PROFESSIONAL SERVICES-PRIV CONTRACTOR & OTHER AGENCIES,COMMUNITY INTERMEDIATE CARE,Third Party Payments,Revenue
Walsall Council,http://opendatacommunities.org/id/metropolitan-district-council/walsall,WC76-131,31/01/2017,Adult Social Care,ADVANCE HEALTH CARE (UK) LTD,06/01/2017,"53,309.65",73372-DOMICILIARY CARE,OP COMMISSIONING,Third Party Payments,Revenue
Walsall Council,http://opendatacommunities.org/id/metropolitan-district-council/walsall,WC76-132,31/01/2017,Adult Social Care,ADVANCE HEALTH CARE (UK) LTD,30/01/2017,"59,749.26",73372-DOMICILIARY CARE,OP COMMISSIONING,Third Party Payments,Revenue
Walsall Council,http://opendatacommunities.org/id/metropolitan-district-council/walsall,WC76-133,31/01/2017,Economy & Environment,ADVANCE PHARMA LTD T/A PLECK PHARMACY,04/01/2017,390.28,71007-CONTRIBUTION TO PCT,PUBLIC HEALTH BUSINESS SUPPORT,Third Party Payments,Revenue
Walsall Council,http://opendatacommunities.org/id/metropolitan-district-council/walsall,WC76-134,31/01/2017,Childrens,ADVENTURELAND DAY NURSERY,03/01/2017,"11,809.35",66505-OTHER-GRANTS TO OTHER ORGS,EARLY YEARS - 2 YR OLDS,Third Party Payments,Revenue
Walsall Council,http://opendatacommunities.org/id/metropolitan-district-council/walsall,WC76-135,31/01/2017,Childrens,ADVENTURELAND DAY NURSERY,03/01/2017,"12,913.31",66505-OTHER-GRANTS TO OTHER ORGS,EARLY YEARS - 3 YR OLDS,Third Party Payments,Revenue
Walsall Council,http://opendatacommunities.org/id/metropolitan-district-council/walsall,WC76-136,31/01/2017,Holding Accounts,AEBI SCHMIDT UK LIMITED,03/01/2017,"4,488.46",67001-MISC INSURANCES - PAYMENT OF CLAIMS,PUBLIC LIABILITY,Supplies & Services,Revenue
Walsall Council,http://opendatacommunities.org/id/metropolitan-district-council/walsall,WC76-137,31/01/2017,Economy & Environment,AECOM LIMITED,03/01/2017,"2,872.81",01001-OTHER CONSULTANTS FEES,CFR 876 DARLASTON DSDA,Capital,Capital
Walsall Council,http://opendatacommunities.org/id/metropolitan-district-council/walsall,WC76-138,31/01/2017,Economy & Environment,AECOM LIMITED,30/01/2017,"20,339.59",01002-PROJECT FEES,CFR 1072 M6 JUNCTION 10,Capital,Capital
Walsall Council,http://opendatacommunities.org/id/metropolitan-district-council/walsall,WC76-139,31/01/2017,Childrens,AFRUCA,09/01/2017,328.00,30030-EXTERNAL TRAINING,GENERAL MANAGEMENT SUPPORT (INC LEGAL),Employees,Revenue
Walsall Council,http://opendatacommunities.org/id/metropolitan-district-council/walsall,WC76-140,31/01/2017,Childrens,AFTER ADOPTION,20/01/2017,"9,000.00",63000-PROFESSIONAL FEES AND SERVICES,ADOPTION TEAM,Supplies & Services,Revenue
Walsall Council,http://opendatacommunities.org/id/metropolitan-district-council/walsall,WC76-141,31/01/2017,Adult Social Care,AGE UK WALSALL,06/01/2017,"6,566.00",76423-DIRECT PAYMENTS SUPPORT,DIRECT PAYMENT SUPPORT ORGANISATIONS,Transfer Payments,Revenue
Walsall Council,http://opendatacommunities.org/id/metropolitan-district-council/walsall,WC76-142,31/01/2017,Economy & Environment,AGE UK WALSALL,10/01/2017,"11,250.00",63000-PROFESSIONAL FEES AND SERVICES,FALLS PREVENTION,Supplies & Services,Revenue
Walsall Council,http://opendatacommunities.org/id/metropolitan-district-council/walsall,WC76-143,31/01/2017,Adult Social Care,REDACTED,09/01/2017,"1,882.00",76422-DIRECT PAYMENTS TO SOCIAL SERVICES CLIENTS,LD COMMISSIONING,Transfer Payments,Revenue
Walsall Council,http://opendatacommunities.org/id/metropolitan-district-council/walsall,WC76-144,31/01/2017,Economy & Environment,AIR PLANTS DUST EXTRACTION LTD,04/01/2017,34.50,60500-GENERAL MATERIALS,NAG - MAINTENANCE,Supplies & Services,Revenue
Walsall Council,http://opendatacommunities.org/id/metropolitan-district-council/walsall,WC76-145,31/01/2017,Economy & Environment,AIR PLANTS DUST EXTRACTION LTD,04/01/2017,360.00,60008-MAINTENANCE-FURNITURE & EQUIPMENT,NAG - MAINTENANCE,Supplies & Services,Revenue
Walsall Council,http://opendatacommunities.org/id/metropolitan-district-council/walsall,WC76-146,31/01/2017,Change and Governance,AIREY CONSULTANCY SERVICES LTD,04/01/2017,"1,415.00",64500-PUBLICATIONS/ORGANISATIONS-SUBSCRIPTIONS,REVENUES,Supplies & Services,Revenue
Walsall Council,http://opendatacommunities.org/id/metropolitan-district-council/walsall,WC76-147,31/01/2017,Adult Social Care,REDACTED,09/01/2017,914.20,76422-DIRECT PAYMENTS TO SOCIAL SERVICES CLIENTS,OP COMMISSIONING,Transfer Payments,Revenue
Walsall Council,http://opendatacommunities.org/id/metropolitan-district-council/walsall,WC76-148,31/01/2017,Childrens,AJK TRAVEL,01/01/2017,"10,594.88",52000-WITH DRIVER-HIRE OF VEHICLES,SCHOOL TRANSPORT,Transport,Revenue
Walsall Council,http://opendatacommunities.org/id/metropolitan-district-council/walsall,WC76-149,31/01/2017,Childrens,ALAN CRITCHLEY ASSOCIATES,09/01/2017,"4,200.00",63102-CONSULTANTS FEES - CORPORATE,SAFEGUARDING BOARD,Supplies & Services,Revenue
Walsall Council,http://opendatacommunities.org/id/metropolitan-district-council/walsall,WC76-150,31/01/2017,Childrens,ALBERT PRITCHARD INFANT AND WOOD GREEN JUNIOR FEDERATED SCHOOLS,13/01/2017,"1,000.00",77300-ISB-FORMULA ALLOCATION,OUT OF BOROUGH SCHOOLS,Transfer Payments,Revenue
Walsall Council,http://opendatacommunities.org/id/metropolitan-district-council/walsall,WC76-151,31/01/2017,Childrens,ALBERT PRITCHARD INFANT AND WOOD GREEN JUNIOR FEDERATED SCHOOLS,13/01/2017,"1,000.00",77300-ISB-FORMULA ALLOCATION,OUT OF BOROUGH SCHOOLS,Transfer Payments,Revenue
Walsall Council,http://opendatacommunities.org/id/metropolitan-district-council/walsall,WC76-152,31/01/2017,Economy & Environment,ALCIUM SOFTWARE,19/01/2017,"9,250.00",63124-FEES & LICENCES-SERVICES,DEVELOPMENT & DELIVERY,Supplies & Services,Revenue
Walsall Council,http://opendatacommunities.org/id/metropolitan-district-council/walsall,WC76-153,31/01/2017,Childrens,ALDER COPPICE PRIMARY SCHOOL,13/01/2017,"1,000.00",77300-ISB-FORMULA ALLOCATION,OUT OF BOROUGH SCHOOLS,Transfer Payments,Revenue
Walsall Council,http://opendatacommunities.org/id/metropolitan-district-council/walsall,WC76-154,31/01/2017,Adult Social Care,ALDERGROVE MANOR LTD,17/01/2017,"1,839.68",73373-RESIDENTIAL & NURSING CARE PLACEMENTS,MH COMMISSIONING,Third Party Payments,Revenue
Walsall Council,http://opendatacommunities.org/id/metropolitan-district-council/walsall,WC76-155,31/01/2017,Childrens,ALDRIDGE & BARONS LIMITED,03/01/2017,"9,041.40",52000-WITH DRIVER-HIRE OF VEHICLES,SCHOOL TRANSPORT,Transport,Revenue
Walsall Council,http://opendatacommunities.org/id/metropolitan-district-council/walsall,WC76-156,31/01/2017,Childrens,ALDRIDGE & BARONS LIMITED,01/01/2017,"19,039.37",52000-WITH DRIVER-HIRE OF VEHICLES,SCHOOL TRANSPORT,Transport,Revenue
Walsall Council,http://opendatacommunities.org/id/metropolitan-district-council/walsall,WC76-157,31/01/2017,Childrens,ALDRIDGE & BARONS LIMITED,01/01/2017,"19,321.75",52000-WITH DRIVER-HIRE OF VEHICLES,SCHOOL TRANSPORT,Transport,Revenue
Walsall Council,http://opendatacommunities.org/id/metropolitan-district-council/walsall,WC76-158,31/01/2017,Childrens,ALDRIDGE SCHOOL A SCIENCE COLLEGE.,13/01/2017,"1,020.00",77300-ISB-FORMULA ALLOCATION,ALDRIDGE SCHOOL SCIENCE COLLEGE (ACADEMY),Transfer Payments,Revenue
Walsall Council,http://opendatacommunities.org/id/metropolitan-district-council/walsall,WC76-159,31/01/2017,Childrens,ALDRIDGE SCHOOL A SCIENCE COLLEGE.,30/01/2017,"13,075.38",66502-TOP UP FUNDING -GRANTS TO SCHOOLS,ALDRIDGE SCHOOL SCIENCE COLLEGE (ACADEMY),Third Party Payments,Revenue
Walsall Council,http://opendatacommunities.org/id/metropolitan-district-council/walsall,WC76-160,31/01/2017,Adult Social Care,REDACTED,09/01/2017,"1,204.00",76422-DIRECT PAYMENTS TO SOCIAL SERVICES CLIENTS,PD COMMISSIONING,Transfer Payments,Revenue
Walsall Council,http://opendatacommunities.org/id/metropolitan-district-council/walsall,WC76-161,31/01/2017,Adult Social Care,ALEXANDRA HOUSE CARE SERVICES LTD T/A STONEBRIDGE NURSING HOME,03/01/2017,"7,117.44",73373-RESIDENTIAL & NURSING CARE PLACEMENTS,OP COMMISSIONING,Third Party Payments,Revenue
Walsall Council,http://opendatacommunities.org/id/metropolitan-district-council/walsall,WC76-162,31/01/2017,Childrens,REDACTED,09/01/2017,582.66,76422-DIRECT PAYMENTS TO SOCIAL SERVICES CLIENTS,FAMILY SUPPORT - DIRECT PAYMENTS,Transfer Payments,Revenue
Walsall Council,http://opendatacommunities.org/id/metropolitan-district-council/walsall,WC76-163,31/01/2017,Adult Social Care,REDACTED,09/01/2017,898.00,76422-DIRECT PAYMENTS TO SOCIAL SERVICES CLIENTS,PD COMMISSIONING,Transfer Payments,Revenue
Walsall Council,http://opendatacommunities.org/id/metropolitan-district-council/walsall,WC76-164,31/01/2017,Change and Governance,ALIGNED ASSETS LTD,13/01/2017,"3,607.35",63820-RECHARGE FOR MAINTENANCE/APPLICATION COSTS-COMPUTER,APPLICATIONS,Supplies & Services,Revenue
Walsall Council,http://opendatacommunities.org/id/metropolitan-district-council/walsall,WC76-165,31/01/2017,Adult Social Care,REDACTED,09/01/2017,612.00,76422-DIRECT PAYMENTS TO SOCIAL SERVICES CLIENTS,OP COMMISSIONING,Transfer Payments,Revenue
Walsall Council,http://opendatacommunities.org/id/metropolitan-district-council/walsall,WC76-166,31/01/2017,Adult Social Care,REDACTED,19/01/2017,"1,627.05",73374-SUPPORTED & OTHER ACCOMMODATION,LD COMMISSIONING,Third Party Payments,Revenue
Walsall Council,http://opendatacommunities.org/id/metropolitan-district-council/walsall,WC76-167,31/01/2017,Childrens,ALISON PRITCHARD,16/01/2017,571.44,74006-HOLIDAY/CHRISTMAS ALLOWANCE-FOSTER CARERS-OTH AGENCY PROVISION,INTERNAL FOSTER CARE PROVISION,Third Party Payments,Revenue
Walsall Council,http://opendatacommunities.org/id/metropolitan-district-council/walsall,WC76-168,31/01/2017,Childrens,ALISON SMITH,16/01/2017,552.96,74006-HOLIDAY/CHRISTMAS ALLOWANCE-FOSTER CARERS-OTH AGENCY PROVISION,INTERNAL FOSTER CARE PROVISION,Third Party Payments,Revenue
Walsall Council,http://opendatacommunities.org/id/metropolitan-district-council/walsall,WC76-169,31/01/2017,Economy & Environment,REDACTED,01/01/2017,"1,225.00",63000-PROFESSIONAL FEES AND SERVICES,HEALTH PROTECTION,Supplies & Services,Revenue
Walsall Council,http://opendatacommunities.org/id/metropolitan-district-council/walsall,WC76-170,31/01/2017,Change and Governance,ALL SAINTS CHURCH STREETLY,01/01/2017,500.00,62515-MISCELLANEOUS SUPPLIES,AREA 2 - ALDRIDGE/STREETLY/PHEASEY,Supplies & Services,Revenue
Walsall Council,http://opendatacommunities.org/id/metropolitan-district-council/walsall,WC76-171,31/01/2017,Childrens,ALL SAINTS NATIONAL ACADEMY #1,13/01/2017,750.00,77300-ISB-FORMULA ALLOCATION,OUT OF BOROUGH SCHOOLS,Transfer Payments,Revenue
Walsall Council,http://opendatacommunities.org/id/metropolitan-district-council/walsall,WC76-172,31/01/2017,Childrens,ALL SAINTS NATIONAL ACADEMY #1,13/01/2017,800.00,77300-ISB-FORMULA ALLOCATION,OUT OF BOROUGH SCHOOLS,Transfer Payments,Revenue
Walsall Council,http://opendatacommunities.org/id/metropolitan-district-council/walsall,WC76-173,31/01/2017,Childrens,ALLEYNE'S ACADEMY,20/01/2017,"1,000.00",77300-ISB-FORMULA ALLOCATION,OUT OF BOROUGH SCHOOLS,Transfer Payments,Revenue
Walsall Council,http://opendatacommunities.org/id/metropolitan-district-council/walsall,WC76-174,31/01/2017,Childrens,ALLEYNE'S ACADEMY,20/01/2017,"1,000.00",77300-ISB-FORMULA ALLOCATION,OUT OF BOROUGH SCHOOLS,Transfer Payments,Revenue
Walsall Council,http://opendatacommunities.org/id/metropolitan-district-council/walsall,WC76-175,31/01/2017,Change and Governance,ALLSORTS OFFICE SUPPLIES LTD,03/01/2017,508.00,63800-COMPUTER EQUIPMENT AND SUPPLIES,RECHARGEABLE EQUIPMENT,Supplies & Services,Revenue
Walsall Council,http://opendatacommunities.org/id/metropolitan-district-council/walsall,WC76-176,31/01/2017,Economy & Environment,ALLSORTS OFFICE SUPPLIES LTD,09/01/2017,"5,414.50","40000-REPAIRS,ALTERATIONS & MAINTENANCE-PREM",SMARTER WORKPLACES WORKPLACE SOLUTIONS,Premises,Revenue
Walsall Council,http://opendatacommunities.org/id/metropolitan-district-council/walsall,WC76-177,31/01/2017,Economy & Environment,ALLSORTS OFFICE SUPPLIES LTD,09/01/2017,"8,628.58","40000-REPAIRS,ALTERATIONS & MAINTENANCE-PREM",SMARTER WORKPLACES WORKPLACE SOLUTIONS,Premises,Revenue
Walsall Council,http://opendatacommunities.org/id/metropolitan-district-council/walsall,WC76-178,31/01/2017,Adult Social Care,ALMA COURT,09/01/2017,"2,700.00",73374-SUPPORTED & OTHER ACCOMMODATION,OP COMMISSIONING,Third Party Payments,Revenue
Walsall Council,http://opendatacommunities.org/id/metropolitan-district-council/walsall,WC76-179,31/01/2017,Adult Social Care,ALMA COURT,09/01/2017,"2,790.00",73374-SUPPORTED & OTHER ACCOMMODATION,OP COMMISSIONING,Third Party Payments,Revenue
Walsall Council,http://opendatacommunities.org/id/metropolitan-district-council/walsall,WC76-180,31/01/2017,Adult Social Care,ALMA COURT,11/01/2017,"2,790.00",73374-SUPPORTED & OTHER ACCOMMODATION,OP COMMISSIONING,Third Party Payments,Revenue
Walsall Council,http://opendatacommunities.org/id/metropolitan-district-council/walsall,WC76-181,31/01/2017,Adult Social Care,ALMA COURT,09/01/2017,"4,770.00",73374-SUPPORTED & OTHER ACCOMMODATION,OP COMMISSIONING,Third Party Payments,Revenue
Walsall Council,http://opendatacommunities.org/id/metropolitan-district-council/walsall,WC76-182,31/01/2017,Adult Social Care,ALMA COURT,05/01/2017,"6,316.87",73373-RESIDENTIAL & NURSING CARE PLACEMENTS,OP COMMISSIONING,Third Party Payments,Revenue
Walsall Council,http://opendatacommunities.org/id/metropolitan-district-council/walsall,WC76-183,31/01/2017,Adult Social Care,ALMA COURT,10/01/2017,"6,316.87",73373-RESIDENTIAL & NURSING CARE PLACEMENTS,MH COMMISSIONING,Third Party Payments,Revenue
Walsall Council,http://opendatacommunities.org/id/metropolitan-district-council/walsall,WC76-184,31/01/2017,Adult Social Care,ALMA COURT,17/01/2017,"6,316.87",73373-RESIDENTIAL & NURSING CARE PLACEMENTS,OP COMMISSIONING,Third Party Payments,Revenue
Walsall Council,http://opendatacommunities.org/id/metropolitan-district-council/walsall,WC76-185,31/01/2017,Adult Social Care,ALMA COURT,17/01/2017,"6,316.87",73373-RESIDENTIAL & NURSING CARE PLACEMENTS,OP COMMISSIONING,Third Party Payments,Revenue
Walsall Council,http://opendatacommunities.org/id/metropolitan-district-council/walsall,WC76-186,31/01/2017,Childrens,ALMOZENE NURSERY & CHILDRENS CENTRE,03/01/2017,"8,416.16",66505-OTHER-GRANTS TO OTHER ORGS,EARLY YEARS - 3 YR OLDS,Third Party Payments,Revenue
Walsall Council,http://opendatacommunities.org/id/metropolitan-district-council/walsall,WC76-187,31/01/2017,Childrens,ALMOZENE NURSERY & CHILDRENS CENTRE,03/01/2017,"11,970.72",66505-OTHER-GRANTS TO OTHER ORGS,EARLY YEARS - 2 YR OLDS,Third Party Payments,Revenue
Walsall Council,http://opendatacommunities.org/id/metropolitan-district-council/walsall,WC76-188,31/01/2017,Childrens,ALPHA & EAGLE CARS LTD,23/01/2017,316.80,52000-WITH DRIVER-HIRE OF VEHICLES,LOOKED AFTER CHILDRENS SOCIAL WORK TEAM,Transport,Revenue
Walsall Council,http://opendatacommunities.org/id/metropolitan-district-council/walsall,WC76-189,31/01/2017,Adult Social Care,ALPHA HEALTH CARE LTD,03/01/2017,"-1,976.00",73373-RESIDENTIAL & NURSING CARE PLACEMENTS,MH COMMISSIONING,Third Party Payments,Revenue
Walsall Council,http://opendatacommunities.org/id/metropolitan-district-council/walsall,WC76-190,31/01/2017,Adult Social Care,ALPHA HEALTH CARE LTD,17/01/2017,"1,620.00",73373-RESIDENTIAL & NURSING CARE PLACEMENTS,OP COMMISSIONING,Third Party Payments,Revenue
Walsall Council,http://opendatacommunities.org/id/metropolitan-district-council/walsall,WC76-191,31/01/2017,Adult Social Care,ALPHA HEALTH CARE LTD,17/01/2017,"1,620.00",73373-RESIDENTIAL & NURSING CARE PLACEMENTS,OP COMMISSIONING,Third Party Payments,Revenue
Walsall Council,http://opendatacommunities.org/id/metropolitan-district-council/walsall,WC76-192,31/01/2017,Adult Social Care,ALPHA HEALTH CARE LTD,17/01/2017,"1,620.00",73373-RESIDENTIAL & NURSING CARE PLACEMENTS,OP COMMISSIONING,Third Party Payments,Revenue
Walsall Council,http://opendatacommunities.org/id/metropolitan-district-council/walsall,WC76-193,31/01/2017,Adult Social Care,ALPHA HEALTH CARE LTD,17/01/2017,"1,620.00",73373-RESIDENTIAL & NURSING CARE PLACEMENTS,OP COMMISSIONING,Third Party Payments,Revenue
Walsall Council,http://opendatacommunities.org/id/metropolitan-district-council/walsall,WC76-194,31/01/2017,Adult Social Care,ALPHA HEALTH CARE LTD,17/01/2017,"1,649.80",73373-RESIDENTIAL & NURSING CARE PLACEMENTS,OP COMMISSIONING,Third Party Payments,Revenue
Walsall Council,http://opendatacommunities.org/id/metropolitan-district-council/walsall,WC76-195,31/01/2017,Adult Social Care,ALPHA HEALTH CARE LTD,17/01/2017,"1,649.80",73373-RESIDENTIAL & NURSING CARE PLACEMENTS,OP COMMISSIONING,Third Party Payments,Revenue
Walsall Council,http://opendatacommunities.org/id/metropolitan-district-council/walsall,WC76-196,31/01/2017,Adult Social Care,ALPHA HEALTH CARE LTD,17/01/2017,"1,649.80",73373-RESIDENTIAL & NURSING CARE PLACEMENTS,OP COMMISSIONING,Third Party Payments,Revenue
Walsall Council,http://opendatacommunities.org/id/metropolitan-district-council/walsall,WC76-197,31/01/2017,Adult Social Care,ALPHA HEALTH CARE LTD,17/01/2017,"1,649.80",73373-RESIDENTIAL & NURSING CARE PLACEMENTS,OP COMMISSIONING,Third Party Payments,Revenue
Walsall Council,http://opendatacommunities.org/id/metropolitan-district-council/walsall,WC76-198,31/01/2017,Adult Social Care,ALPHA HEALTH CARE LTD,17/01/2017,"1,649.80",73373-RESIDENTIAL & NURSING CARE PLACEMENTS,OP COMMISSIONING,Third Party Payments,Revenue
Walsall Council,http://opendatacommunities.org/id/metropolitan-district-council/walsall,WC76-199,31/01/2017,Adult Social Care,ALPHA HEALTH CARE LTD,17/01/2017,"1,649.80",73373-RESIDENTIAL & NURSING CARE PLACEMENTS,MH COMMISSIONING,Third Party Payments,Revenue
Walsall Council,http://opendatacommunities.org/id/metropolitan-district-council/walsall,WC76-200,31/01/2017,Adult Social Care,ALPHA HEALTH CARE LTD,17/01/2017,"1,649.80",73373-RESIDENTIAL & NURSING CARE PLACEMENTS,OP COMMISSIONING,Third Party Payments,Revenue
Walsall Council,http://opendatacommunities.org/id/metropolitan-district-council/walsall,WC76-201,31/01/2017,Adult Social Care,ALPHA HEALTH CARE LTD,17/01/2017,"1,649.80",73373-RESIDENTIAL & NURSING CARE PLACEMENTS,OP COMMISSIONING,Third Party Payments,Revenue
Walsall Council,http://opendatacommunities.org/id/metropolitan-district-council/walsall,WC76-202,31/01/2017,Adult Social Care,ALPHA HEALTH CARE LTD,17/01/2017,"1,649.80",73373-RESIDENTIAL & NURSING CARE PLACEMENTS,OP COMMISSIONING,Third Party Payments,Revenue
Walsall Council,http://opendatacommunities.org/id/metropolitan-district-council/walsall,WC76-203,31/01/2017,Adult Social Care,ALPHA HEALTH CARE LTD,17/01/2017,"1,649.80",73373-RESIDENTIAL & NURSING CARE PLACEMENTS,OP COMMISSIONING,Third Party Payments,Revenue
Walsall Council,http://opendatacommunities.org/id/metropolitan-district-council/walsall,WC76-204,31/01/2017,Adult Social Care,ALPHA HEALTH CARE LTD,17/01/2017,"1,649.80",73373-RESIDENTIAL & NURSING CARE PLACEMENTS,MH COMMISSIONING,Third Party Payments,Revenue
Walsall Council,http://opendatacommunities.org/id/metropolitan-district-council/walsall,WC76-205,31/01/2017,Adult Social Care,ALPHA HEALTH CARE LTD,17/01/2017,"1,649.80",73373-RESIDENTIAL & NURSING CARE PLACEMENTS,OP COMMISSIONING,Third Party Payments,Revenue
Walsall Council,http://opendatacommunities.org/id/metropolitan-district-council/walsall,WC76-206,31/01/2017,Adult Social Care,ALPHA HEALTH CARE LTD,17/01/2017,"1,800.00",73373-RESIDENTIAL & NURSING CARE PLACEMENTS,OP COMMISSIONING,Third Party Payments,Revenue
Walsall Council,http://opendatacommunities.org/id/metropolitan-district-council/walsall,WC76-207,31/01/2017,Adult Social Care,ALPHA HEALTH CARE LTD,17/01/2017,"1,800.00",73373-RESIDENTIAL & NURSING CARE PLACEMENTS,OP COMMISSIONING,Third Party Payments,Revenue
Walsall Council,http://opendatacommunities.org/id/metropolitan-district-council/walsall,WC76-208,31/01/2017,Adult Social Care,ALPHA HEALTH CARE LTD,17/01/2017,"1,800.00",73373-RESIDENTIAL & NURSING CARE PLACEMENTS,OP COMMISSIONING,Third Party Payments,Revenue
Walsall Council,http://opendatacommunities.org/id/metropolitan-district-council/walsall,WC76-209,31/01/2017,Adult Social Care,ALPHA HEALTH CARE LTD,17/01/2017,"2,095.00",73373-RESIDENTIAL & NURSING CARE PLACEMENTS,OP COMMISSIONING,Third Party Payments,Revenue
Walsall Council,http://opendatacommunities.org/id/metropolitan-district-council/walsall,WC76-210,31/01/2017,Adult Social Care,ALPHA HEALTH CARE LTD,03/01/2017,"2,175.00",73373-RESIDENTIAL & NURSING CARE PLACEMENTS,MH COMMISSIONING,Third Party Payments,Revenue
Walsall Council,http://opendatacommunities.org/id/metropolitan-district-council/walsall,WC76-211,31/01/2017,Adult Social Care,ALPHA HEALTH CARE LTD,03/01/2017,"2,175.00",73373-RESIDENTIAL & NURSING CARE PLACEMENTS,MH COMMISSIONING,Third Party Payments,Revenue
Walsall Council,http://opendatacommunities.org/id/metropolitan-district-council/walsall,WC76-212,31/01/2017,Adult Social Care,ALPHA HEALTH CARE LTD,17/01/2017,"2,175.00",73373-RESIDENTIAL & NURSING CARE PLACEMENTS,MH COMMISSIONING,Third Party Payments,Revenue
Walsall Council,http://opendatacommunities.org/id/metropolitan-district-council/walsall,WC76-213,31/01/2017,Adult Social Care,ALPHA HEALTH CARE LTD,17/01/2017,"2,326.00",73373-RESIDENTIAL & NURSING CARE PLACEMENTS,MH COMMISSIONING,Third Party Payments,Revenue
Walsall Council,http://opendatacommunities.org/id/metropolitan-district-council/walsall,WC76-214,31/01/2017,Adult Social Care,ALPHA HEALTH CARE LTD,05/01/2017,"2,357.14",73373-RESIDENTIAL & NURSING CARE PLACEMENTS,OP COMMISSIONING,Third Party Payments,Revenue
Walsall Council,http://opendatacommunities.org/id/metropolitan-district-council/walsall,WC76-215,31/01/2017,Adult Social Care,ALPHA HEALTH CARE LTD,17/01/2017,"2,864.28",73373-RESIDENTIAL & NURSING CARE PLACEMENTS,MH COMMISSIONING,Third Party Payments,Revenue
Walsall Council,http://opendatacommunities.org/id/metropolitan-district-council/walsall,WC76-216,31/01/2017,Adult Social Care,ALPHA HEALTH CARE LTD,10/01/2017,"3,166.43",73373-RESIDENTIAL & NURSING CARE PLACEMENTS,MH COMMISSIONING,Third Party Payments,Revenue
Walsall Council,http://opendatacommunities.org/id/metropolitan-district-council/walsall,WC76-217,31/01/2017,Adult Social Care,ALPHA HEALTH CARE LTD,17/01/2017,"5,800.00",73373-RESIDENTIAL & NURSING CARE PLACEMENTS,MH COMMISSIONING,Third Party Payments,Revenue
Walsall Council,http://opendatacommunities.org/id/metropolitan-district-council/walsall,WC76-218,31/01/2017,Adult Social Care,ALPHA HEALTH CARE LTD,17/01/2017,"5,800.00",73373-RESIDENTIAL & NURSING CARE PLACEMENTS,MH COMMISSIONING,Third Party Payments,Revenue
Walsall Council,http://opendatacommunities.org/id/metropolitan-district-council/walsall,WC76-219,31/01/2017,Adult Social Care,ALPHA HEALTH CARE LTD,03/01/2017,"5,997.60",73373-RESIDENTIAL & NURSING CARE PLACEMENTS,MH COMMISSIONING,Third Party Payments,Revenue
Walsall Council,http://opendatacommunities.org/id/metropolitan-district-council/walsall,WC76-220,31/01/2017,Adult Social Care,ALPHA HEALTH CARE LTD,03/01/2017,"5,997.60",73373-RESIDENTIAL & NURSING CARE PLACEMENTS,MH COMMISSIONING,Third Party Payments,Revenue
Walsall Council,http://opendatacommunities.org/id/metropolitan-district-council/walsall,WC76-221,31/01/2017,Adult Social Care,ALPHA HEALTH CARE LTD,03/01/2017,"5,997.60",73373-RESIDENTIAL & NURSING CARE PLACEMENTS,MH COMMISSIONING,Third Party Payments,Revenue
Walsall Council,http://opendatacommunities.org/id/metropolitan-district-council/walsall,WC76-222,31/01/2017,Adult Social Care,ALPHA HEALTH CARE LTD,03/01/2017,"5,997.60",73373-RESIDENTIAL & NURSING CARE PLACEMENTS,MH COMMISSIONING,Third Party Payments,Revenue
Walsall Council,http://opendatacommunities.org/id/metropolitan-district-council/walsall,WC76-223,31/01/2017,Adult Social Care,ALPHA HEALTH CARE LTD,03/01/2017,"5,997.60",73373-RESIDENTIAL & NURSING CARE PLACEMENTS,MH COMMISSIONING,Third Party Payments,Revenue
Walsall Council,http://opendatacommunities.org/id/metropolitan-district-council/walsall,WC76-224,31/01/2017,Adult Social Care,ALPHA HEALTH CARE LTD,03/01/2017,"5,997.60",73373-RESIDENTIAL & NURSING CARE PLACEMENTS,MH COMMISSIONING,Third Party Payments,Revenue
Walsall Council,http://opendatacommunities.org/id/metropolitan-district-council/walsall,WC76-225,31/01/2017,Childrens,ALPHABIOLABS,18/01/2017,340.00,73014-LEGAL FEES-PRIV CONTRACTOR FEES,GENERAL MANAGEMENT SUPPORT (INC LEGAL),Third Party Payments,Revenue
Walsall Council,http://opendatacommunities.org/id/metropolitan-district-council/walsall,WC76-226,31/01/2017,Childrens,ALUMWELLIES NURSERY,03/01/2017,"5,288.37",66505-OTHER-GRANTS TO OTHER ORGS,EARLY YEARS - 3 YR OLDS,Third Party Payments,Revenue
Walsall Council,http://opendatacommunities.org/id/metropolitan-district-council/walsall,WC76-227,31/01/2017,Childrens,AMAH NURSERIES LIMITED T/A BANANA MOON WALSALL,03/01/2017,"3,231.36",66505-OTHER-GRANTS TO OTHER ORGS,EARLY YEARS - 3 YR OLDS,Third Party Payments,Revenue
Walsall Council,http://opendatacommunities.org/id/metropolitan-district-council/walsall,WC76-228,31/01/2017,Childrens,AMAH NURSERIES LIMITED T/A BANANA MOON WALSALL,03/01/2017,"7,041.60",66505-OTHER-GRANTS TO OTHER ORGS,EARLY YEARS - 2 YR OLDS,Third Party Payments,Revenue
Walsall Council,http://opendatacommunities.org/id/metropolitan-district-council/walsall,WC76-229,31/01/2017,Childrens,AMANDA ORAMAS,16/01/2017,808.04,74006-HOLIDAY/CHRISTMAS ALLOWANCE-FOSTER CARERS-OTH AGENCY PROVISION,INTERNAL FOSTER CARE PROVISION,Third Party Payments,Revenue
Walsall Council,http://opendatacommunities.org/id/metropolitan-district-council/walsall,WC76-230,31/01/2017,Childrens,AMANDA WILLETTS,02/01/2017,540.20,62515-MISCELLANEOUS SUPPLIES,INTERNAL FOSTER CARE PROVISION,Supplies & Services,Revenue
Walsall Council,http://opendatacommunities.org/id/metropolitan-district-council/walsall,WC76-231,31/01/2017,Childrens,AMANDA WILLETTS,31/01/2017,606.25,62515-MISCELLANEOUS SUPPLIES,INTERNAL FOSTER CARE PROVISION,Supplies & Services,Revenue
Walsall Council,http://opendatacommunities.org/id/metropolitan-district-council/walsall,WC76-232,31/01/2017,Childrens,AMANDA WILLETTS,02/01/2017,650.92,74006-HOLIDAY/CHRISTMAS ALLOWANCE-FOSTER CARERS-OTH AGENCY PROVISION,INTERNAL FOSTER CARE PROVISION,Third Party Payments,Revenue
Walsall Council,http://opendatacommunities.org/id/metropolitan-district-council/walsall,WC76-233,31/01/2017,Childrens,REDACTED,09/01/2017,336.92,76422-DIRECT PAYMENTS TO SOCIAL SERVICES CLIENTS,FAMILY SUPPORT - DIRECT PAYMENTS,Transfer Payments,Revenue
Walsall Council,http://opendatacommunities.org/id/metropolitan-district-council/walsall,WC76-234,31/01/2017,Change and Governance,AMEY LG LIMITED,03/01/2017,325.40,60008-MAINTENANCE-FURNITURE & EQUIPMENT,AREA PARTNERSHIPS,Supplies & Services,Revenue
Walsall Council,http://opendatacommunities.org/id/metropolitan-district-council/walsall,WC76-235,31/01/2017,Economy & Environment,AMEY LG LIMITED,11/01/2017,503.16,73025-PROFESSIONAL SERVICES-PRIV CONTRACTOR & OTHER AGENCIES,SECTION 38 OF HIGHWAYS ACT - SUPERVISION,Third Party Payments,Revenue
Walsall Council,http://opendatacommunities.org/id/metropolitan-district-council/walsall,WC76-236,31/01/2017,Economy & Environment,AMEY LG LIMITED,11/01/2017,"4,268.43",01006-SITE WORKS MAIN CONTRACTORS,CFR 1147 BROADWAY NORTH (ARBORETUM RD-LINCOLN ROAD),Capital,Capital
Walsall Council,http://opendatacommunities.org/id/metropolitan-district-council/walsall,WC76-237,31/01/2017,Economy & Environment,AMEY LG LIMITED,11/01/2017,"5,138.00",01009-SITE WORKS - OTHER CONTRACTORS,CFR 1121 MANAGING SHORT TRIPS,Capital,Capital
Walsall Council,http://opendatacommunities.org/id/metropolitan-district-council/walsall,WC76-238,31/01/2017,Economy & Environment,AMEY LG LIMITED,09/01/2017,"8,702.29",73025-PROFESSIONAL SERVICES-PRIV CONTRACTOR & OTHER AGENCIES,TRAFFIC MANAGEMENT,Third Party Payments,Revenue
Walsall Council,http://opendatacommunities.org/id/metropolitan-district-council/walsall,WC76-239,31/01/2017,Economy & Environment,AMEY LG LIMITED,18/01/2017,"9,711.22",01006-SITE WORKS MAIN CONTRACTORS,CFR 1147 MEASURES TO ENCOURAGE WALKING-UPGRADE ZEBRA CROSSING PROGRAMME,Capital,Capital
Walsall Council,http://opendatacommunities.org/id/metropolitan-district-council/walsall,WC76-240,31/01/2017,Economy & Environment,AMEY LG LIMITED,18/01/2017,"9,711.23",01006-SITE WORKS MAIN CONTRACTORS,CFR 1147 MEASURES TO ENCOURAGE WALKING-SEBRA CROSSING WALSALL RD DARLASTON,Capital,Capital
Walsall Council,http://opendatacommunities.org/id/metropolitan-district-council/walsall,WC76-241,31/01/2017,Adult Social Care,AMG NURSING CARE SERVICES,11/01/2017,-428.80,73374-SUPPORTED & OTHER ACCOMMODATION,PD COMMISSIONING,Third Party Payments,Revenue
Walsall Council,http://opendatacommunities.org/id/metropolitan-district-council/walsall,WC76-242,31/01/2017,Childrens,AMG NURSING CARE SERVICES,01/01/2017,"2,274.48",63000-PROFESSIONAL FEES AND SERVICES,DIRECTLY COMMISSIONED NURSING SERVICES,Supplies & Services,Revenue
Walsall Council,http://opendatacommunities.org/id/metropolitan-district-council/walsall,WC76-243,31/01/2017,Childrens,AMG NURSING CARE SERVICES,01/01/2017,"2,573.52",63000-PROFESSIONAL FEES AND SERVICES,DIRECTLY COMMISSIONED NURSING SERVICES,Supplies & Services,Revenue
Walsall Council,http://opendatacommunities.org/id/metropolitan-district-council/walsall,WC76-244,31/01/2017,Adult Social Care,AMG NURSING CARE SERVICES,11/01/2017,"4,068.80",73374-SUPPORTED & OTHER ACCOMMODATION,PD COMMISSIONING,Third Party Payments,Revenue
Walsall Council,http://opendatacommunities.org/id/metropolitan-district-council/walsall,WC76-245,31/01/2017,Adult Social Care,AMG NURSING CARE SERVICES,11/01/2017,"10,711.68",73374-SUPPORTED & OTHER ACCOMMODATION,OP COMMISSIONING,Third Party Payments,Revenue
Walsall Council,http://opendatacommunities.org/id/metropolitan-district-council/walsall,WC76-246,31/01/2017,Adult Social Care,REDACTED,09/01/2017,"1,133.44",76422-DIRECT PAYMENTS TO SOCIAL SERVICES CLIENTS,OP COMMISSIONING,Transfer Payments,Revenue
Walsall Council,http://opendatacommunities.org/id/metropolitan-district-council/walsall,WC76-247,31/01/2017,Childrens,AMY BELSHAW,16/01/2017,354.48,74012-PLACEMENT WITH RELATIVES (REG 1 CHILDRENS ACT 1989),INTERNAL FOSTER CARE PROVISION,Transfer Payments,Revenue
Walsall Council,http://opendatacommunities.org/id/metropolitan-district-council/walsall,WC76-248,31/01/2017,Childrens,AMY BELSHAW,16/01/2017,571.44,74006-HOLIDAY/CHRISTMAS ALLOWANCE-FOSTER CARERS-OTH AGENCY PROVISION,INTERNAL FOSTER CARE PROVISION,Third Party Payments,Revenue
Walsall Council,http://opendatacommunities.org/id/metropolitan-district-council/walsall,WC76-249,31/01/2017,Childrens,AMY MICKLEWRIGHT,16/01/2017,425.08,74006-HOLIDAY/CHRISTMAS ALLOWANCE-FOSTER CARERS-OTH AGENCY PROVISION,INTERNAL FOSTER CARE PROVISION,Third Party Payments,Revenue
Walsall Council,http://opendatacommunities.org/id/metropolitan-district-council/walsall,WC76-250,31/01/2017,Adult Social Care,REDACTED,09/01/2017,576.00,76422-DIRECT PAYMENTS TO SOCIAL SERVICES CLIENTS,OP COMMISSIONING,Transfer Payments,Revenue
Walsall Council,http://opendatacommunities.org/id/metropolitan-district-council/walsall,WC76-251,31/01/2017,Adult Social Care,REDACTED,09/01/2017,756.00,76422-DIRECT PAYMENTS TO SOCIAL SERVICES CLIENTS,OP COMMISSIONING,Transfer Payments,Revenue
Walsall Council,http://opendatacommunities.org/id/metropolitan-district-council/walsall,WC76-252,31/01/2017,Adult Social Care,ANCHOR,17/01/2017,514.29,73373-RESIDENTIAL & NURSING CARE PLACEMENTS,OP COMMISSIONING,Third Party Payments,Revenue
Walsall Council,http://opendatacommunities.org/id/metropolitan-district-council/walsall,WC76-253,31/01/2017,Adult Social Care,ANCHOR,17/01/2017,"1,285.71",73373-RESIDENTIAL & NURSING CARE PLACEMENTS,OP COMMISSIONING,Third Party Payments,Revenue
Walsall Council,http://opendatacommunities.org/id/metropolitan-district-council/walsall,WC76-254,31/01/2017,Adult Social Care,ANCHOR,17/01/2017,"1,620.00",73373-RESIDENTIAL & NURSING CARE PLACEMENTS,OP COMMISSIONING,Third Party Payments,Revenue
Walsall Council,http://opendatacommunities.org/id/metropolitan-district-council/walsall,WC76-255,31/01/2017,Adult Social Care,ANCHOR,17/01/2017,"1,620.00",73373-RESIDENTIAL & NURSING CARE PLACEMENTS,OP COMMISSIONING,Third Party Payments,Revenue
Walsall Council,http://opendatacommunities.org/id/metropolitan-district-council/walsall,WC76-256,31/01/2017,Adult Social Care,ANCHOR,17/01/2017,"1,800.00",73373-RESIDENTIAL & NURSING CARE PLACEMENTS,OP COMMISSIONING,Third Party Payments,Revenue
Walsall Council,http://opendatacommunities.org/id/metropolitan-district-council/walsall,WC76-257,31/01/2017,Adult Social Care,ANCHOR,17/01/2017,"1,800.00",73373-RESIDENTIAL & NURSING CARE PLACEMENTS,MH COMMISSIONING,Third Party Payments,Revenue
Walsall Council,http://opendatacommunities.org/id/metropolitan-district-council/walsall,WC76-258,31/01/2017,Adult Social Care,ANCHOR,17/01/2017,"1,800.00",73373-RESIDENTIAL & NURSING CARE PLACEMENTS,OP COMMISSIONING,Third Party Payments,Revenue
Walsall Council,http://opendatacommunities.org/id/metropolitan-district-council/walsall,WC76-259,31/01/2017,Adult Social Care,ANCHOR,17/01/2017,"1,800.00",73373-RESIDENTIAL & NURSING CARE PLACEMENTS,OP COMMISSIONING,Third Party Payments,Revenue
Walsall Council,http://opendatacommunities.org/id/metropolitan-district-council/walsall,WC76-260,31/01/2017,Adult Social Care,ANCHOR,17/01/2017,"1,800.00",73373-RESIDENTIAL & NURSING CARE PLACEMENTS,OP COMMISSIONING,Third Party Payments,Revenue
Walsall Council,http://opendatacommunities.org/id/metropolitan-district-council/walsall,WC76-261,31/01/2017,Adult Social Care,ANCHOR,17/01/2017,"1,800.00",73373-RESIDENTIAL & NURSING CARE PLACEMENTS,OP COMMISSIONING,Third Party Payments,Revenue
Walsall Council,http://opendatacommunities.org/id/metropolitan-district-council/walsall,WC76-262,31/01/2017,Adult Social Care,ANCHOR,17/01/2017,"1,800.00",73373-RESIDENTIAL & NURSING CARE PLACEMENTS,OP COMMISSIONING,Third Party Payments,Revenue
Walsall Council,http://opendatacommunities.org/id/metropolitan-district-council/walsall,WC76-263,31/01/2017,Adult Social Care,ANCHOR,17/01/2017,"1,800.00",73373-RESIDENTIAL & NURSING CARE PLACEMENTS,OP COMMISSIONING,Third Party Payments,Revenue
Walsall Council,http://opendatacommunities.org/id/metropolitan-district-council/walsall,WC76-264,31/01/2017,Adult Social Care,ANCHOR,17/01/2017,"1,800.00",73373-RESIDENTIAL & NURSING CARE PLACEMENTS,OP COMMISSIONING,Third Party Payments,Revenue
Walsall Council,http://opendatacommunities.org/id/metropolitan-district-council/walsall,WC76-265,31/01/2017,Adult Social Care,ANCHOR,17/01/2017,"1,800.00",73373-RESIDENTIAL & NURSING CARE PLACEMENTS,OP COMMISSIONING,Third Party Payments,Revenue
Walsall Council,http://opendatacommunities.org/id/metropolitan-district-council/walsall,WC76-266,31/01/2017,Adult Social Care,ANCHOR,17/01/2017,"1,800.00",73373-RESIDENTIAL & NURSING CARE PLACEMENTS,OP COMMISSIONING,Third Party Payments,Revenue
Walsall Council,http://opendatacommunities.org/id/metropolitan-district-council/walsall,WC76-267,31/01/2017,Adult Social Care,ANCHOR,17/01/2017,"1,800.00",73373-RESIDENTIAL & NURSING CARE PLACEMENTS,OP COMMISSIONING,Third Party Payments,Revenue
Walsall Council,http://opendatacommunities.org/id/metropolitan-district-council/walsall,WC76-268,31/01/2017,Adult Social Care,ANCHOR,17/01/2017,"1,800.00",73373-RESIDENTIAL & NURSING CARE PLACEMENTS,OP COMMISSIONING,Third Party Payments,Revenue
Walsall Council,http://opendatacommunities.org/id/metropolitan-district-council/walsall,WC76-269,31/01/2017,Adult Social Care,ANCHOR,17/01/2017,"1,800.00",73373-RESIDENTIAL & NURSING CARE PLACEMENTS,OP COMMISSIONING,Third Party Payments,Revenue
Walsall Council,http://opendatacommunities.org/id/metropolitan-district-council/walsall,WC76-270,31/01/2017,Adult Social Care,ANCHOR,17/01/2017,"1,800.00",73373-RESIDENTIAL & NURSING CARE PLACEMENTS,MH COMMISSIONING,Third Party Payments,Revenue
Walsall Council,http://opendatacommunities.org/id/metropolitan-district-council/walsall,WC76-271,31/01/2017,Adult Social Care,ANCHOR,17/01/2017,"1,800.00",73373-RESIDENTIAL & NURSING CARE PLACEMENTS,OP COMMISSIONING,Third Party Payments,Revenue
Walsall Council,http://opendatacommunities.org/id/metropolitan-district-council/walsall,WC76-272,31/01/2017,Childrens,ANDREW BURDETT,02/01/2017,753.39,74006-HOLIDAY/CHRISTMAS ALLOWANCE-FOSTER CARERS-OTH AGENCY PROVISION,INTERNAL FOSTER CARE PROVISION,Third Party Payments,Revenue
Walsall Council,http://opendatacommunities.org/id/metropolitan-district-council/walsall,WC76-273,31/01/2017,Childrens,ANDREW BURDETT,02/01/2017,906.76,62515-MISCELLANEOUS SUPPLIES,INTERNAL FOSTER CARE PROVISION,Supplies & Services,Revenue
Walsall Council,http://opendatacommunities.org/id/metropolitan-district-council/walsall,WC76-274,31/01/2017,Childrens,ANDREW BURDETT,31/01/2017,906.76,62515-MISCELLANEOUS SUPPLIES,INTERNAL FOSTER CARE PROVISION,Supplies & Services,Revenue
Walsall Council,http://opendatacommunities.org/id/metropolitan-district-council/walsall,WC76-275,31/01/2017,Adult Social Care,REDACTED,09/01/2017,378.00,76422-DIRECT PAYMENTS TO SOCIAL SERVICES CLIENTS,PD COMMISSIONING,Transfer Payments,Revenue
Walsall Council,http://opendatacommunities.org/id/metropolitan-district-council/walsall,WC76-276,31/01/2017,Adult Social Care,ANGEL COURT RESIDENTIAL CARE HOME,24/01/2017,"1,882.14",73373-RESIDENTIAL & NURSING CARE PLACEMENTS,OP COMMISSIONING,Third Party Payments,Revenue
Walsall Council,http://opendatacommunities.org/id/metropolitan-district-council/walsall,WC76-277,31/01/2017,Adult Social Care,ANGEL COURT RESIDENTIAL CARE HOME,24/01/2017,"2,073.85",73373-RESIDENTIAL & NURSING CARE PLACEMENTS,OP COMMISSIONING,Third Party Payments,Revenue
Walsall Council,http://opendatacommunities.org/id/metropolitan-district-council/walsall,WC76-278,31/01/2017,Adult Social Care,ANGEL COURT RESIDENTIAL CARE HOME,24/01/2017,"2,150.07",73373-RESIDENTIAL & NURSING CARE PLACEMENTS,OP COMMISSIONING,Third Party Payments,Revenue
Walsall Council,http://opendatacommunities.org/id/metropolitan-district-council/walsall,WC76-279,31/01/2017,Childrens,ANGELA PORTER,16/01/2017,349.16,74006-HOLIDAY/CHRISTMAS ALLOWANCE-FOSTER CARERS-OTH AGENCY PROVISION,INTERNAL FOSTER CARE PROVISION,Third Party Payments,Revenue
Walsall Council,http://opendatacommunities.org/id/metropolitan-district-council/walsall,WC76-280,31/01/2017,Childrens,ANGLIA DNA SERVICES LIMITED,01/01/2017,212.00,73014-LEGAL FEES-PRIV CONTRACTOR FEES,GENERAL MANAGEMENT SUPPORT (INC LEGAL),Third Party Payments,Revenue
Walsall Council,http://opendatacommunities.org/id/metropolitan-district-council/walsall,WC76-281,31/01/2017,Adult Social Care,REDACTED,09/01/2017,344.00,76422-DIRECT PAYMENTS TO SOCIAL SERVICES CLIENTS,LD COMMISSIONING,Transfer Payments,Revenue
Walsall Council,http://opendatacommunities.org/id/metropolitan-district-council/walsall,WC76-282,31/01/2017,Childrens,ANITA HAYER,02/01/2017,"1,045.98",62515-MISCELLANEOUS SUPPLIES,INTERNAL FOSTER CARE PROVISION,Supplies & Services,Revenue
Walsall Council,http://opendatacommunities.org/id/metropolitan-district-council/walsall,WC76-283,31/01/2017,Adult Social Care,REDACTED,27/01/2017,255.07,73374-SUPPORTED & OTHER ACCOMMODATION,LD COMMISSIONING,Third Party Payments,Revenue
Walsall Council,http://opendatacommunities.org/id/metropolitan-district-council/walsall,WC76-284,31/01/2017,Adult Social Care,REDACTED,27/01/2017,302.80,73374-SUPPORTED & OTHER ACCOMMODATION,LD COMMISSIONING,Third Party Payments,Revenue
Walsall Council,http://opendatacommunities.org/id/metropolitan-district-council/walsall,WC76-285,31/01/2017,Adult Social Care,ANSON COURT RESIDENTIAL HOME,17/01/2017,"1,800.00",73373-RESIDENTIAL & NURSING CARE PLACEMENTS,OP COMMISSIONING,Third Party Payments,Revenue
Walsall Council,http://opendatacommunities.org/id/metropolitan-district-council/walsall,WC76-286,31/01/2017,Adult Social Care,ANSON COURT RESIDENTIAL HOME,17/01/2017,"1,800.00",73373-RESIDENTIAL & NURSING CARE PLACEMENTS,OP COMMISSIONING,Third Party Payments,Revenue
Walsall Council,http://opendatacommunities.org/id/metropolitan-district-council/walsall,WC76-287,31/01/2017,Adult Social Care,ANSON COURT RESIDENTIAL HOME,17/01/2017,"1,800.00",73373-RESIDENTIAL & NURSING CARE PLACEMENTS,MH COMMISSIONING,Third Party Payments,Revenue
Walsall Council,http://opendatacommunities.org/id/metropolitan-district-council/walsall,WC76-288,31/01/2017,Adult Social Care,ANSON COURT RESIDENTIAL HOME,17/01/2017,"1,800.00",73373-RESIDENTIAL & NURSING CARE PLACEMENTS,OP COMMISSIONING,Third Party Payments,Revenue
Walsall Council,http://opendatacommunities.org/id/metropolitan-district-council/walsall,WC76-289,31/01/2017,Adult Social Care,ANSON COURT RESIDENTIAL HOME,17/01/2017,"1,800.00",73373-RESIDENTIAL & NURSING CARE PLACEMENTS,OP COMMISSIONING,Third Party Payments,Revenue
Walsall Council,http://opendatacommunities.org/id/metropolitan-district-council/walsall,WC76-290,31/01/2017,Adult Social Care,ANSON COURT RESIDENTIAL HOME,17/01/2017,"1,800.00",73373-RESIDENTIAL & NURSING CARE PLACEMENTS,OP COMMISSIONING,Third Party Payments,Revenue
Walsall Council,http://opendatacommunities.org/id/metropolitan-district-council/walsall,WC76-291,31/01/2017,Adult Social Care,ANSON COURT RESIDENTIAL HOME,17/01/2017,"1,800.00",73373-RESIDENTIAL & NURSING CARE PLACEMENTS,MH COMMISSIONING,Third Party Payments,Revenue
Walsall Council,http://opendatacommunities.org/id/metropolitan-district-council/walsall,WC76-292,31/01/2017,Adult Social Care,ANSON COURT RESIDENTIAL HOME,17/01/2017,"1,800.00",73373-RESIDENTIAL & NURSING CARE PLACEMENTS,OP COMMISSIONING,Third Party Payments,Revenue
Walsall Council,http://opendatacommunities.org/id/metropolitan-district-council/walsall,WC76-293,31/01/2017,Adult Social Care,ANSON COURT RESIDENTIAL HOME,17/01/2017,"1,800.00",73373-RESIDENTIAL & NURSING CARE PLACEMENTS,MH COMMISSIONING,Third Party Payments,Revenue
Walsall Council,http://opendatacommunities.org/id/metropolitan-district-council/walsall,WC76-294,31/01/2017,Adult Social Care,ANSON COURT RESIDENTIAL HOME,17/01/2017,"1,800.00",73373-RESIDENTIAL & NURSING CARE PLACEMENTS,OP COMMISSIONING,Third Party Payments,Revenue
Walsall Council,http://opendatacommunities.org/id/metropolitan-district-council/walsall,WC76-295,31/01/2017,Adult Social Care,ANSON COURT RESIDENTIAL HOME,17/01/2017,"1,800.00",73373-RESIDENTIAL & NURSING CARE PLACEMENTS,MH COMMISSIONING,Third Party Payments,Revenue
Walsall Council,http://opendatacommunities.org/id/metropolitan-district-council/walsall,WC76-296,31/01/2017,Adult Social Care,ANSON COURT RESIDENTIAL HOME,17/01/2017,"1,800.00",73373-RESIDENTIAL & NURSING CARE PLACEMENTS,OP COMMISSIONING,Third Party Payments,Revenue
Walsall Council,http://opendatacommunities.org/id/metropolitan-district-council/walsall,WC76-297,31/01/2017,Adult Social Care,ANSON COURT RESIDENTIAL HOME,17/01/2017,"1,800.00",73373-RESIDENTIAL & NURSING CARE PLACEMENTS,OP COMMISSIONING,Third Party Payments,Revenue
Walsall Council,http://opendatacommunities.org/id/metropolitan-district-council/walsall,WC76-298,31/01/2017,Adult Social Care,ANSON COURT RESIDENTIAL HOME,17/01/2017,"1,800.00",73373-RESIDENTIAL & NURSING CARE PLACEMENTS,OP COMMISSIONING,Third Party Payments,Revenue
Walsall Council,http://opendatacommunities.org/id/metropolitan-district-council/walsall,WC76-299,31/01/2017,Adult Social Care,ANSON COURT RESIDENTIAL HOME,17/01/2017,"1,800.00",73373-RESIDENTIAL & NURSING CARE PLACEMENTS,OP COMMISSIONING,Third Party Payments,Revenue
Walsall Council,http://opendatacommunities.org/id/metropolitan-district-council/walsall,WC76-300,31/01/2017,Adult Social Care,ANSON COURT RESIDENTIAL HOME,17/01/2017,"1,800.00",73373-RESIDENTIAL & NURSING CARE PLACEMENTS,OP COMMISSIONING,Third Party Payments,Revenue
Walsall Council,http://opendatacommunities.org/id/metropolitan-district-council/walsall,WC76-301,31/01/2017,Adult Social Care,ANSON COURT RESIDENTIAL HOME,17/01/2017,"1,800.00",73373-RESIDENTIAL & NURSING CARE PLACEMENTS,OP COMMISSIONING,Third Party Payments,Revenue
Walsall Council,http://opendatacommunities.org/id/metropolitan-district-council/walsall,WC76-302,31/01/2017,Adult Social Care,ANSON COURT RESIDENTIAL HOME,17/01/2017,"1,800.00",73373-RESIDENTIAL & NURSING CARE PLACEMENTS,OP COMMISSIONING,Third Party Payments,Revenue
Walsall Council,http://opendatacommunities.org/id/metropolitan-district-council/walsall,WC76-303,31/01/2017,Adult Social Care,ANSON COURT RESIDENTIAL HOME,17/01/2017,"1,800.00",73373-RESIDENTIAL & NURSING CARE PLACEMENTS,OP COMMISSIONING,Third Party Payments,Revenue
Walsall Council,http://opendatacommunities.org/id/metropolitan-district-council/walsall,WC76-304,31/01/2017,Adult Social Care,ANSON COURT RESIDENTIAL HOME,17/01/2017,"1,880.00",73373-RESIDENTIAL & NURSING CARE PLACEMENTS,OP COMMISSIONING,Third Party Payments,Revenue
Walsall Council,http://opendatacommunities.org/id/metropolitan-district-council/walsall,WC76-305,31/01/2017,Adult Social Care,ANSON COURT RESIDENTIAL HOME,17/01/2017,"4,880.00",73373-RESIDENTIAL & NURSING CARE PLACEMENTS,MH COMMISSIONING,Third Party Payments,Revenue
Walsall Council,http://opendatacommunities.org/id/metropolitan-district-council/walsall,WC76-306,31/01/2017,Childrens,ANSON PRIMARY SCHOOL,13/01/2017,"1,000.00",77300-ISB-FORMULA ALLOCATION,OUT OF BOROUGH SCHOOLS,Transfer Payments,Revenue
Walsall Council,http://opendatacommunities.org/id/metropolitan-district-council/walsall,WC76-307,31/01/2017,Childrens,ANTHONY GRAE,16/01/2017,669.32,74006-HOLIDAY/CHRISTMAS ALLOWANCE-FOSTER CARERS-OTH AGENCY PROVISION,INTERNAL FOSTER CARE PROVISION,Third Party Payments,Revenue
Walsall Council,http://opendatacommunities.org/id/metropolitan-district-council/walsall,WC76-308,31/01/2017,Childrens,ANTONIA LEES,16/01/2017,312.76,74006-HOLIDAY/CHRISTMAS ALLOWANCE-FOSTER CARERS-OTH AGENCY PROVISION,INTERNAL FOSTER CARE PROVISION,Third Party Payments,Revenue
Walsall Council,http://opendatacommunities.org/id/metropolitan-district-council/walsall,WC76-309,31/01/2017,Economy & Environment,APCOA PARKING SERVICES (UK) LTD,09/01/2017,"46,322.21",73025-PROFESSIONAL SERVICES-PRIV CONTRACTOR & OTHER AGENCIES,PARKING SERVICES OFF-STREET,Third Party Payments,Revenue
Walsall Council,http://opendatacommunities.org/id/metropolitan-district-council/walsall,WC76-310,31/01/2017,Adult Social Care,APNA HOUSE LTD,24/01/2017,"5,586.96",73373-RESIDENTIAL & NURSING CARE PLACEMENTS,OP COMMISSIONING,Third Party Payments,Revenue
Walsall Council,http://opendatacommunities.org/id/metropolitan-district-council/walsall,WC76-311,31/01/2017,Childrens,APT TRAINING AND CONSULTANCY LTD,03/01/2017,380.00,63000-PROFESSIONAL FEES AND SERVICES,GENERAL MANAGEMENT SUPPORT (INC LEGAL),Supplies & Services,Revenue
Walsall Council,http://opendatacommunities.org/id/metropolitan-district-council/walsall,WC76-312,31/01/2017,Economy & Environment,AQUALYMPIC,23/01/2017,285.00,34305-AGENCY STAFF-EMPLOYEES,OAK PARK,Employees,Revenue
Walsall Council,http://opendatacommunities.org/id/metropolitan-district-council/walsall,WC76-313,31/01/2017,Economy & Environment,AQUALYMPIC,04/01/2017,300.00,32000-MISC FEES AND EXPENSES,WALSALL GALA CENTRE,Employees,Revenue
Walsall Council,http://opendatacommunities.org/id/metropolitan-district-council/walsall,WC76-314,31/01/2017,Economy & Environment,AQUALYMPIC,19/01/2017,350.00,34305-AGENCY STAFF-EMPLOYEES,OAK PARK,Employees,Revenue
Walsall Council,http://opendatacommunities.org/id/metropolitan-district-council/walsall,WC76-315,31/01/2017,Economy & Environment,AQUALYMPIC,25/01/2017,525.00,34305-AGENCY STAFF-EMPLOYEES,OAK PARK,Employees,Revenue
Walsall Council,http://opendatacommunities.org/id/metropolitan-district-council/walsall,WC76-316,31/01/2017,Economy & Environment,AQUALYMPIC,23/01/2017,705.00,34305-AGENCY STAFF-EMPLOYEES,OAK PARK,Employees,Revenue
Walsall Council,http://opendatacommunities.org/id/metropolitan-district-council/walsall,WC76-317,31/01/2017,Adult Social Care,ARBORETUM NURSING HOME.,05/01/2017,"-2,031.07",73373-RESIDENTIAL & NURSING CARE PLACEMENTS,OP COMMISSIONING,Third Party Payments,Revenue
Walsall Council,http://opendatacommunities.org/id/metropolitan-district-council/walsall,WC76-318,31/01/2017,Adult Social Care,ARBORETUM NURSING HOME.,17/01/2017,"-1,218.64",73373-RESIDENTIAL & NURSING CARE PLACEMENTS,OP COMMISSIONING,Third Party Payments,Revenue
Walsall Council,http://opendatacommunities.org/id/metropolitan-district-council/walsall,WC76-319,31/01/2017,Adult Social Care,ARBORETUM NURSING HOME.,17/01/2017,-745.68,73373-RESIDENTIAL & NURSING CARE PLACEMENTS,OP COMMISSIONING,Third Party Payments,Revenue
Walsall Council,http://opendatacommunities.org/id/metropolitan-district-council/walsall,WC76-320,31/01/2017,Adult Social Care,ARBORETUM NURSING HOME.,17/01/2017,"2,274.80",73373-RESIDENTIAL & NURSING CARE PLACEMENTS,OP COMMISSIONING,Third Party Payments,Revenue
Walsall Council,http://opendatacommunities.org/id/metropolitan-district-council/walsall,WC76-321,31/01/2017,Adult Social Care,ARBORETUM NURSING HOME.,06/01/2017,"14,900.00",73019-PSE'S-PRIV CONTRACTOR FEES,TRANSITIONAL CARE SUPPORT TEAM,Third Party Payments,Revenue
Walsall Council,http://opendatacommunities.org/id/metropolitan-district-council/walsall,WC76-322,31/01/2017,Economy & Environment,ARBURY WALSALL,13/01/2017,502.34,60500-GENERAL MATERIALS,FLEET,Supplies & Services,Revenue
Walsall Council,http://opendatacommunities.org/id/metropolitan-district-council/walsall,WC76-323,31/01/2017,Economy & Environment,ARCANE DIRECT MARKETING,01/02/2017,293.79,62511-DISTRIBUTION,NAG - ART GALLERY MARKETING,Supplies & Services,Revenue
Walsall Council,http://opendatacommunities.org/id/metropolitan-district-council/walsall,WC76-324,31/01/2017,Economy & Environment,ARCANE DIRECT MARKETING,30/01/2017,914.84,62511-DISTRIBUTION,NAG - ART GALLERY MARKETING,Supplies & Services,Revenue
Walsall Council,http://opendatacommunities.org/id/metropolitan-district-council/walsall,WC76-325,31/01/2017,Childrens,ARNFIELD CARE LIMITED,19/01/2017,"17,289.01",74036-EXTERNAL RESIDENTIAL CARE-OTH AGENCY PROVISION,INDEPENDENT RESIDENTIAL HOMES,Third Party Payments,Revenue
Walsall Council,http://opendatacommunities.org/id/metropolitan-district-council/walsall,WC76-326,31/01/2017,Change and Governance,ARTHUR J GALLAGHER T/A HEATH LAMBERT LIMITED,11/01/2017,"6,000.00",63804-COMPUTER-OTHER EXPENSES,RISK & INSURANCE,Supplies & Services,Revenue
Walsall Council,http://opendatacommunities.org/id/metropolitan-district-council/walsall,WC76-327,31/01/2017,Childrens,ARTHUR M GRIFFITHS & SON LTD,13/01/2017,"154,486.11",01006-SITE WORKS MAIN CONTRACTORS,CFR 929 KING CHARLES PRIMARY SIGNIFICANT ENLARGEMENT,Capital,Capital
Walsall Council,http://opendatacommunities.org/id/metropolitan-district-council/walsall,WC76-328,31/01/2017,Economy & Environment,ASA AWARDS,09/01/2017,349.35,60006-NEW-FURNITURE & EQUIPMENT,OAK PARK,Supplies & Services,Revenue
Walsall Council,http://opendatacommunities.org/id/metropolitan-district-council/walsall,WC76-329,31/01/2017,Economy & Environment,ASDA PHARMACY,04/01/2017,223.26,71007-CONTRIBUTION TO PCT,PUBLIC HEALTH BUSINESS SUPPORT,Third Party Payments,Revenue
Walsall Council,http://opendatacommunities.org/id/metropolitan-district-council/walsall,WC76-330,31/01/2017,Economy & Environment,ASDA PHARMACY,04/01/2017,424.80,63000-PROFESSIONAL FEES AND SERVICES,SEXUAL HEALTH,Supplies & Services,Revenue
Walsall Council,http://opendatacommunities.org/id/metropolitan-district-council/walsall,WC76-331,31/01/2017,Adult Social Care,ASH GRANGE CARE HOME,09/01/2017,525.00,73019-PSE'S-PRIV CONTRACTOR FEES,TRANSITIONAL CARE SUPPORT TEAM,Third Party Payments,Revenue
Walsall Council,http://opendatacommunities.org/id/metropolitan-district-council/walsall,WC76-332,31/01/2017,Adult Social Care,ASH GRANGE CARE HOME,09/01/2017,735.00,73019-PSE'S-PRIV CONTRACTOR FEES,TRANSITIONAL CARE SUPPORT TEAM,Third Party Payments,Revenue
Walsall Council,http://opendatacommunities.org/id/metropolitan-district-council/walsall,WC76-333,31/01/2017,Adult Social Care,ASH GRANGE CARE HOME,24/01/2017,752.14,73373-RESIDENTIAL & NURSING CARE PLACEMENTS,OP COMMISSIONING,Third Party Payments,Revenue
Walsall Council,http://opendatacommunities.org/id/metropolitan-district-council/walsall,WC76-334,31/01/2017,Adult Social Care,ASH GRANGE CARE HOME,17/01/2017,"1,056.16",73373-RESIDENTIAL & NURSING CARE PLACEMENTS,OP COMMISSIONING,Third Party Payments,Revenue
Walsall Council,http://opendatacommunities.org/id/metropolitan-district-council/walsall,WC76-335,31/01/2017,Adult Social Care,ASH GRANGE CARE HOME,17/01/2017,"1,266.47",73373-RESIDENTIAL & NURSING CARE PLACEMENTS,OP COMMISSIONING,Third Party Payments,Revenue
Walsall Council,http://opendatacommunities.org/id/metropolitan-district-council/walsall,WC76-336,31/01/2017,Adult Social Care,ASH GRANGE CARE HOME,05/01/2017,"1,530.65",73373-RESIDENTIAL & NURSING CARE PLACEMENTS,OP COMMISSIONING,Third Party Payments,Revenue
Walsall Council,http://opendatacommunities.org/id/metropolitan-district-council/walsall,WC76-337,31/01/2017,Adult Social Care,ASH GRANGE CARE HOME,03/01/2017,"1,620.00",73373-RESIDENTIAL & NURSING CARE PLACEMENTS,OP COMMISSIONING,Third Party Payments,Revenue
Walsall Council,http://opendatacommunities.org/id/metropolitan-district-council/walsall,WC76-338,31/01/2017,Adult Social Care,ASH GRANGE CARE HOME,03/01/2017,"1,620.00",73373-RESIDENTIAL & NURSING CARE PLACEMENTS,OP COMMISSIONING,Third Party Payments,Revenue
Walsall Council,http://opendatacommunities.org/id/metropolitan-district-council/walsall,WC76-339,31/01/2017,Adult Social Care,ASH GRANGE CARE HOME,24/01/2017,"1,620.00",73373-RESIDENTIAL & NURSING CARE PLACEMENTS,OP COMMISSIONING,Third Party Payments,Revenue
Walsall Council,http://opendatacommunities.org/id/metropolitan-district-council/walsall,WC76-340,31/01/2017,Adult Social Care,ASH GRANGE CARE HOME,24/01/2017,"1,620.00",73373-RESIDENTIAL & NURSING CARE PLACEMENTS,OP COMMISSIONING,Third Party Payments,Revenue
Walsall Council,http://opendatacommunities.org/id/metropolitan-district-council/walsall,WC76-341,31/01/2017,Adult Social Care,ASH GRANGE CARE HOME,24/01/2017,"1,620.00",73373-RESIDENTIAL & NURSING CARE PLACEMENTS,OP COMMISSIONING,Third Party Payments,Revenue
Walsall Council,http://opendatacommunities.org/id/metropolitan-district-council/walsall,WC76-342,31/01/2017,Adult Social Care,ASH GRANGE CARE HOME,17/01/2017,"1,663.40",73373-RESIDENTIAL & NURSING CARE PLACEMENTS,OP COMMISSIONING,Third Party Payments,Revenue
Walsall Council,http://opendatacommunities.org/id/metropolitan-district-council/walsall,WC76-343,31/01/2017,Adult Social Care,ASH GRANGE CARE HOME,17/01/2017,"1,663.40",73373-RESIDENTIAL & NURSING CARE PLACEMENTS,OP COMMISSIONING,Third Party Payments,Revenue
Walsall Council,http://opendatacommunities.org/id/metropolitan-district-council/walsall,WC76-344,31/01/2017,Adult Social Care,ASH GRANGE CARE HOME,05/01/2017,"1,863.40",73373-RESIDENTIAL & NURSING CARE PLACEMENTS,OP COMMISSIONING,Third Party Payments,Revenue
Walsall Council,http://opendatacommunities.org/id/metropolitan-district-council/walsall,WC76-345,31/01/2017,Adult Social Care,ASH GRANGE CARE HOME,05/01/2017,"1,863.40",73373-RESIDENTIAL & NURSING CARE PLACEMENTS,OP COMMISSIONING,Third Party Payments,Revenue
Walsall Council,http://opendatacommunities.org/id/metropolitan-district-council/walsall,WC76-346,31/01/2017,Adult Social Care,ASH GRANGE CARE HOME,10/01/2017,"1,863.40",73373-RESIDENTIAL & NURSING CARE PLACEMENTS,OP COMMISSIONING,Third Party Payments,Revenue
Walsall Council,http://opendatacommunities.org/id/metropolitan-district-council/walsall,WC76-347,31/01/2017,Adult Social Care,ASH GRANGE CARE HOME,03/01/2017,"2,288.40",73373-RESIDENTIAL & NURSING CARE PLACEMENTS,OP COMMISSIONING,Third Party Payments,Revenue
Walsall Council,http://opendatacommunities.org/id/metropolitan-district-council/walsall,WC76-348,31/01/2017,Adult Social Care,ASH GRANGE CARE HOME,03/01/2017,"2,288.40",73373-RESIDENTIAL & NURSING CARE PLACEMENTS,MH COMMISSIONING,Third Party Payments,Revenue
Walsall Council,http://opendatacommunities.org/id/metropolitan-district-council/walsall,WC76-349,31/01/2017,Adult Social Care,ASH GRANGE CARE HOME,03/01/2017,"2,288.40",73373-RESIDENTIAL & NURSING CARE PLACEMENTS,OP COMMISSIONING,Third Party Payments,Revenue
Walsall Council,http://opendatacommunities.org/id/metropolitan-district-council/walsall,WC76-350,31/01/2017,Adult Social Care,ASH GRANGE CARE HOME,03/01/2017,"2,288.40",73373-RESIDENTIAL & NURSING CARE PLACEMENTS,OP COMMISSIONING,Third Party Payments,Revenue
Walsall Council,http://opendatacommunities.org/id/metropolitan-district-council/walsall,WC76-351,31/01/2017,Adult Social Care,ASH GRANGE CARE HOME,03/01/2017,"2,288.40",73373-RESIDENTIAL & NURSING CARE PLACEMENTS,OP COMMISSIONING,Third Party Payments,Revenue
Walsall Council,http://opendatacommunities.org/id/metropolitan-district-council/walsall,WC76-352,31/01/2017,Adult Social Care,ASH GRANGE CARE HOME,10/01/2017,"2,288.40",73373-RESIDENTIAL & NURSING CARE PLACEMENTS,OP COMMISSIONING,Third Party Payments,Revenue
Walsall Council,http://opendatacommunities.org/id/metropolitan-district-council/walsall,WC76-353,31/01/2017,Adult Social Care,ASH GRANGE CARE HOME,10/01/2017,"2,288.40",73373-RESIDENTIAL & NURSING CARE PLACEMENTS,OP COMMISSIONING,Third Party Payments,Revenue
Walsall Council,http://opendatacommunities.org/id/metropolitan-district-council/walsall,WC76-354,31/01/2017,Adult Social Care,ASH GRANGE CARE HOME,10/01/2017,"2,288.40",73373-RESIDENTIAL & NURSING CARE PLACEMENTS,OP COMMISSIONING,Third Party Payments,Revenue
Walsall Council,http://opendatacommunities.org/id/metropolitan-district-council/walsall,WC76-355,31/01/2017,Adult Social Care,ASH GRANGE CARE HOME,10/01/2017,"2,288.40",73373-RESIDENTIAL & NURSING CARE PLACEMENTS,OP COMMISSIONING,Third Party Payments,Revenue
Walsall Council,http://opendatacommunities.org/id/metropolitan-district-council/walsall,WC76-356,31/01/2017,Adult Social Care,ASH GRANGE CARE HOME,10/01/2017,"2,288.40",73373-RESIDENTIAL & NURSING CARE PLACEMENTS,OP COMMISSIONING,Third Party Payments,Revenue
Walsall Council,http://opendatacommunities.org/id/metropolitan-district-council/walsall,WC76-357,31/01/2017,Adult Social Care,ASH GRANGE CARE HOME,03/01/2017,"2,372.04",73373-RESIDENTIAL & NURSING CARE PLACEMENTS,OP COMMISSIONING,Third Party Payments,Revenue
Walsall Council,http://opendatacommunities.org/id/metropolitan-district-council/walsall,WC76-358,31/01/2017,Adult Social Care,ASH GRANGE CARE HOME,10/01/2017,"2,488.40",73373-RESIDENTIAL & NURSING CARE PLACEMENTS,OP COMMISSIONING,Third Party Payments,Revenue
Walsall Council,http://opendatacommunities.org/id/metropolitan-district-council/walsall,WC76-359,31/01/2017,Adult Social Care,ASH GRANGE CARE HOME,10/01/2017,"2,504.40",73373-RESIDENTIAL & NURSING CARE PLACEMENTS,MH COMMISSIONING,Third Party Payments,Revenue
Walsall Council,http://opendatacommunities.org/id/metropolitan-district-council/walsall,WC76-360,31/01/2017,Adult Social Care,ASH GRANGE CARE HOME,03/01/2017,"3,120.72",73373-RESIDENTIAL & NURSING CARE PLACEMENTS,OP COMMISSIONING,Third Party Payments,Revenue
Walsall Council,http://opendatacommunities.org/id/metropolitan-district-council/walsall,WC76-361,31/01/2017,Economy & Environment,ASHTON ENGINEERING CO LTD,24/01/2017,668.00,60006-NEW-FURNITURE & EQUIPMENT,FLEET,Supplies & Services,Revenue
Walsall Council,http://opendatacommunities.org/id/metropolitan-district-council/walsall,WC76-362,31/01/2017,Adult Social Care,REDACTED,09/01/2017,493.00,76422-DIRECT PAYMENTS TO SOCIAL SERVICES CLIENTS,OP COMMISSIONING,Transfer Payments,Revenue
Walsall Council,http://opendatacommunities.org/id/metropolitan-district-council/walsall,WC76-363,31/01/2017,Childrens,ASSOCIATION OF INDEPENDENT LSCB CHAIRS,13/01/2017,"1,500.00",64500-PUBLICATIONS/ORGANISATIONS-SUBSCRIPTIONS,SAFEGUARDING BOARD,Supplies & Services,Revenue
Walsall Council,http://opendatacommunities.org/id/metropolitan-district-council/walsall,WC76-364,31/01/2017,Childrens,ASTON CHILDRENS CARE,03/01/2017,"11,071.34",74036-EXTERNAL RESIDENTIAL CARE-OTH AGENCY PROVISION,INDEPENDENT RESIDENTIAL HOMES,Third Party Payments,Revenue
Walsall Council,http://opendatacommunities.org/id/metropolitan-district-council/walsall,WC76-365,31/01/2017,Economy & Environment,AUGEAN PLC,12/01/2017,288.37,73029-HAZARDOUS WASTE REMOVAL/DISPOSAL-PRIV CONTRACTOR FEES,WASTE DISPOSAL - RESIDUAL,Third Party Payments,Revenue
Walsall Council,http://opendatacommunities.org/id/metropolitan-district-council/walsall,WC76-366,31/01/2017,Economy & Environment,AUGEAN PLC,03/01/2017,449.15,73029-HAZARDOUS WASTE REMOVAL/DISPOSAL-PRIV CONTRACTOR FEES,WASTE DISPOSAL - RESIDUAL,Third Party Payments,Revenue
Walsall Council,http://opendatacommunities.org/id/metropolitan-district-council/walsall,WC76-367,31/01/2017,Adult Social Care,AUTISM WEST MIDLANDS,17/01/2017,"7,479.01",73373-RESIDENTIAL & NURSING CARE PLACEMENTS,LD COMMISSIONING,Third Party Payments,Revenue
Walsall Council,http://opendatacommunities.org/id/metropolitan-district-council/walsall,WC76-368,31/01/2017,Adult Social Care,AUTISM WEST MIDLANDS 001,17/01/2017,"4,999.33",73373-RESIDENTIAL & NURSING CARE PLACEMENTS,LD COMMISSIONING,Third Party Payments,Revenue
Walsall Council,http://opendatacommunities.org/id/metropolitan-district-council/walsall,WC76-369,31/01/2017,Economy & Environment,AVANTGARDE PHARMA LTD T/A AL-SHAFA PHARMACY,04/01/2017,679.32,71007-CONTRIBUTION TO PCT,PUBLIC HEALTH BUSINESS SUPPORT,Third Party Payments,Revenue
Walsall Council,http://opendatacommunities.org/id/metropolitan-district-council/walsall,WC76-370,31/01/2017,Adult Social Care,REDACTED,09/01/2017,989.04,76422-DIRECT PAYMENTS TO SOCIAL SERVICES CLIENTS,OP COMMISSIONING,Transfer Payments,Revenue
Walsall Council,http://opendatacommunities.org/id/metropolitan-district-council/walsall,WC76-371,31/01/2017,Economy & Environment,AXIELL LIMITED,09/01/2017,471.10,63000-PROFESSIONAL FEES AND SERVICES,LIBRARY DEVELOPMENT 1,Supplies & Services,Revenue
Walsall Council,http://opendatacommunities.org/id/metropolitan-district-council/walsall,WC76-372,31/01/2017,Economy & Environment,AXIELL LIMITED,10/01/2017,"16,594.83",63800-COMPUTER EQUIPMENT AND SUPPLIES,NETWORK SUPPORT,Supplies & Services,Revenue
Walsall Council,http://opendatacommunities.org/id/metropolitan-district-council/walsall,WC76-373,31/01/2017,Childrens,REDACTED,09/01/2017,"1,284.00",76422-DIRECT PAYMENTS TO SOCIAL SERVICES CLIENTS,FAMILY SUPPORT - DIRECT PAYMENTS,Transfer Payments,Revenue
Walsall Council,http://opendatacommunities.org/id/metropolitan-district-council/walsall,WC76-374,31/01/2017,Adult Social Care,REDACTED,09/01/2017,"2,808.00",76422-DIRECT PAYMENTS TO SOCIAL SERVICES CLIENTS,LD COMMISSIONING,Transfer Payments,Revenue
Walsall Council,http://opendatacommunities.org/id/metropolitan-district-council/walsall,WC76-375,31/01/2017,Childrens,REDACTED,24/01/2017,"1,333.00",60500-GENERAL MATERIALS,PRIMARY CONSULTATIVE GROUP,Supplies & Services,Revenue
Walsall Council,http://opendatacommunities.org/id/metropolitan-district-council/walsall,WC76-376,31/01/2017,Childrens,B CRUMP,16/01/2017,985.76,74006-HOLIDAY/CHRISTMAS ALLOWANCE-FOSTER CARERS-OTH AGENCY PROVISION,INTERNAL FOSTER CARE PROVISION,Third Party Payments,Revenue
Walsall Council,http://opendatacommunities.org/id/metropolitan-district-council/walsall,WC76-377,31/01/2017,Childrens,B MILLER,02/01/2017,906.76,62515-MISCELLANEOUS SUPPLIES,INTERNAL FOSTER CARE PROVISION,Supplies & Services,Revenue
Walsall Council,http://opendatacommunities.org/id/metropolitan-district-council/walsall,WC76-378,31/01/2017,Childrens,B MILLER,31/01/2017,906.76,62515-MISCELLANEOUS SUPPLIES,INTERNAL FOSTER CARE PROVISION,Supplies & Services,Revenue
Walsall Council,http://opendatacommunities.org/id/metropolitan-district-council/walsall,WC76-379,31/01/2017,Childrens,B MILLER,02/01/2017,985.76,74006-HOLIDAY/CHRISTMAS ALLOWANCE-FOSTER CARERS-OTH AGENCY PROVISION,INTERNAL FOSTER CARE PROVISION,Third Party Payments,Revenue
Walsall Council,http://opendatacommunities.org/id/metropolitan-district-council/walsall,WC76-380,31/01/2017,Childrens,REDACTED,04/01/2017,464.00,76000-TRANSFER PAYMENTS - SOCIAL SERVICES CLIENTS,TRANSITION AND LEAVING CARE,Transfer Payments,Revenue
Walsall Council,http://opendatacommunities.org/id/metropolitan-district-council/walsall,WC76-381,31/01/2017,Childrens,REDACTED,04/01/2017,464.00,76000-TRANSFER PAYMENTS - SOCIAL SERVICES CLIENTS,TRANSITION AND LEAVING CARE,Transfer Payments,Revenue
Walsall Council,http://opendatacommunities.org/id/metropolitan-district-council/walsall,WC76-382,31/01/2017,Childrens,REDACTED,17/01/2017,464.00,76000-TRANSFER PAYMENTS - SOCIAL SERVICES CLIENTS,TRANSITION AND LEAVING CARE,Transfer Payments,Revenue
Walsall Council,http://opendatacommunities.org/id/metropolitan-district-council/walsall,WC76-383,31/01/2017,Childrens,REDACTED,17/01/2017,464.00,76000-TRANSFER PAYMENTS - SOCIAL SERVICES CLIENTS,TRANSITION AND LEAVING CARE,Transfer Payments,Revenue
Walsall Council,http://opendatacommunities.org/id/metropolitan-district-council/walsall,WC76-384,31/01/2017,Childrens,REDACTED,31/01/2017,464.00,76000-TRANSFER PAYMENTS - SOCIAL SERVICES CLIENTS,TRANSITION AND LEAVING CARE,Transfer Payments,Revenue
Walsall Council,http://opendatacommunities.org/id/metropolitan-district-council/walsall,WC76-385,31/01/2017,Childrens,REDACTED,31/01/2017,464.00,76000-TRANSFER PAYMENTS - SOCIAL SERVICES CLIENTS,TRANSITION AND LEAVING CARE,Transfer Payments,Revenue
Walsall Council,http://opendatacommunities.org/id/metropolitan-district-council/walsall,WC76-386,31/01/2017,Childrens,BABY SIENNA LIMITED T/A BANANA MOON ASHMORE DAY NURSERY,04/01/2017,890.00,63000-PROFESSIONAL FEES AND SERVICES,SAFEGUARDING & FAMILY SUPPORT,Supplies & Services,Revenue
Walsall Council,http://opendatacommunities.org/id/metropolitan-district-council/walsall,WC76-387,31/01/2017,Childrens,BACK CARE SOLUTIONS LTD,30/01/2017,753.00,60500-GENERAL MATERIALS,SAFEGUARDING & FAMILY SUPPORT,Supplies & Services,Revenue
Walsall Council,http://opendatacommunities.org/id/metropolitan-district-council/walsall,WC76-388,31/01/2017,Change and Governance,BADENOCH & CLARK 002,19/01/2017,"1,862.00",34305-AGENCY STAFF-EMPLOYEES,CORPORATE MANAGEMENT TEAM,Employees,Revenue
Walsall Council,http://opendatacommunities.org/id/metropolitan-district-council/walsall,WC76-389,31/01/2017,Change and Governance,BADENOCH & CLARK 002,19/01/2017,"2,793.00",34305-AGENCY STAFF-EMPLOYEES,CORPORATE MANAGEMENT TEAM,Employees,Revenue
Walsall Council,http://opendatacommunities.org/id/metropolitan-district-council/walsall,WC76-390,31/01/2017,Change and Governance,BADENOCH & CLARK 002,19/01/2017,"2,793.00",34305-AGENCY STAFF-EMPLOYEES,CORPORATE MANAGEMENT TEAM,Employees,Revenue
Walsall Council,http://opendatacommunities.org/id/metropolitan-district-council/walsall,WC76-391,31/01/2017,Change and Governance,BADENOCH & CLARK 002,19/01/2017,"4,655.00",34305-AGENCY STAFF-EMPLOYEES,CORPORATE MANAGEMENT TEAM,Employees,Revenue
Walsall Council,http://opendatacommunities.org/id/metropolitan-district-council/walsall,WC76-392,31/01/2017,Change and Governance,BADENOCH & CLARK 002,19/01/2017,"4,655.00",34305-AGENCY STAFF-EMPLOYEES,CORPORATE MANAGEMENT TEAM,Employees,Revenue
Walsall Council,http://opendatacommunities.org/id/metropolitan-district-council/walsall,WC76-393,31/01/2017,Change and Governance,BADENOCH & CLARK 002,19/01/2017,"4,655.00",34305-AGENCY STAFF-EMPLOYEES,CORPORATE MANAGEMENT TEAM,Employees,Revenue
Walsall Council,http://opendatacommunities.org/id/metropolitan-district-council/walsall,WC76-394,31/01/2017,Economy & Environment,BADMINTON ENGLAND,13/01/2017,380.00,30030-EXTERNAL TRAINING,INSPIRED GENERATIONS (CSAF),Employees,Revenue
Walsall Council,http://opendatacommunities.org/id/metropolitan-district-council/walsall,WC76-395,31/01/2017,Economy & Environment,BAKER HALL PARTNERSHIP,23/01/2017,343.75,63000-PROFESSIONAL FEES AND SERVICES,BUILDING CONTROL REVENUE FUNDED,Supplies & Services,Revenue
Walsall Council,http://opendatacommunities.org/id/metropolitan-district-council/walsall,WC76-396,31/01/2017,Adult Social Care,REDACTED,09/01/2017,480.00,76422-DIRECT PAYMENTS TO SOCIAL SERVICES CLIENTS,MH COMMISSIONING,Transfer Payments,Revenue
Walsall Council,http://opendatacommunities.org/id/metropolitan-district-council/walsall,WC76-397,31/01/2017,Adult Social Care,REDACTED,09/01/2017,"2,849.92",76422-DIRECT PAYMENTS TO SOCIAL SERVICES CLIENTS,LD COMMISSIONING,Transfer Payments,Revenue
Walsall Council,http://opendatacommunities.org/id/metropolitan-district-council/walsall,WC76-398,31/01/2017,Change and Governance,BALTIMORE AIRCOIL INTERNATIONAL NV,03/01/2017,685.00,"40000-REPAIRS,ALTERATIONS & MAINTENANCE-PREM",CENTRAL OFFICE ACCOMMODATION,Premises,Revenue
Walsall Council,http://opendatacommunities.org/id/metropolitan-district-council/walsall,WC76-399,31/01/2017,Adult Social Care,REDACTED,09/01/2017,800.00,76422-DIRECT PAYMENTS TO SOCIAL SERVICES CLIENTS,OP COMMISSIONING,Transfer Payments,Revenue
Walsall Council,http://opendatacommunities.org/id/metropolitan-district-council/walsall,WC76-400,31/01/2017,Adult Social Care,REDACTED,09/01/2017,"1,582.86",76422-DIRECT PAYMENTS TO SOCIAL SERVICES CLIENTS,OP COMMISSIONING,Transfer Payments,Revenue
Walsall Council,http://opendatacommunities.org/id/metropolitan-district-council/walsall,WC76-401,31/01/2017,Childrens,BARBARA DUNKLEY,16/01/2017,571.44,74006-HOLIDAY/CHRISTMAS ALLOWANCE-FOSTER CARERS-OTH AGENCY PROVISION,INTERNAL FOSTER CARE PROVISION,Third Party Payments,Revenue
Walsall Council,http://opendatacommunities.org/id/metropolitan-district-council/walsall,WC76-402,31/01/2017,Adult Social Care,REDACTED,09/01/2017,849.64,76422-DIRECT PAYMENTS TO SOCIAL SERVICES CLIENTS,OP COMMISSIONING,Transfer Payments,Revenue
Walsall Council,http://opendatacommunities.org/id/metropolitan-district-council/walsall,WC76-403,31/01/2017,Childrens,BARNARDOS SERVICES LTD,04/01/2017,"3,180.60",74037-INDEPENDENT FOSTER CARE-OTH AGENCY PROVISION,EXTERNAL FOSTER CARE PROVISION,Third Party Payments,Revenue
Walsall Council,http://opendatacommunities.org/id/metropolitan-district-council/walsall,WC76-404,31/01/2017,Childrens,BARNARDOS SERVICES LTD,04/01/2017,"3,317.00",74037-INDEPENDENT FOSTER CARE-OTH AGENCY PROVISION,EXTERNAL FOSTER CARE PROVISION,Third Party Payments,Revenue
Walsall Council,http://opendatacommunities.org/id/metropolitan-district-council/walsall,WC76-405,31/01/2017,Economy & Environment,BARNSLEY BATE CHARTERED BUILDING SURVEYORS,25/01/2017,500.00,63000-PROFESSIONAL FEES AND SERVICES,UNCAPITALISED SPEND,Supplies & Services,Revenue
Walsall Council,http://opendatacommunities.org/id/metropolitan-district-council/walsall,WC76-406,31/01/2017,Change and Governance,BARNSLEY M B C,06/01/2017,"3,000.00",64500-PUBLICATIONS/ORGANISATIONS-SUBSCRIPTIONS,CORPORATE EXPENSES,Supplies & Services,Revenue
Walsall Council,http://opendatacommunities.org/id/metropolitan-district-council/walsall,WC76-407,31/01/2017,Change and Governance,BARONS COURT HOTEL,18/01/2017,625.00,34329-HOTEL ACCOMMODATION-EMPLOYEES,BED & BREAKFAST PAYMENTS,Employees,Revenue
Walsall Council,http://opendatacommunities.org/id/metropolitan-district-council/walsall,WC76-408,31/01/2017,Childrens,BARR BEACON SCHOOL TRUST,30/01/2017,"6,154.61",66502-TOP UP FUNDING -GRANTS TO SCHOOLS,BARR BEACON SCHOOL TRUST (ACADEMY),Third Party Payments,Revenue
Walsall Council,http://opendatacommunities.org/id/metropolitan-district-council/walsall,WC76-409,31/01/2017,Adult Social Care,REDACTED,09/01/2017,490.40,76422-DIRECT PAYMENTS TO SOCIAL SERVICES CLIENTS,OP COMMISSIONING,Transfer Payments,Revenue
Walsall Council,http://opendatacommunities.org/id/metropolitan-district-council/walsall,WC76-410,31/01/2017,Economy & Environment,BAT FABRICATIONS LTD,30/01/2017,240.00,60006-NEW-FURNITURE & EQUIPMENT,INFRASTRUCTURE MAINTENANCE,Supplies & Services,Revenue
Walsall Council,http://opendatacommunities.org/id/metropolitan-district-council/walsall,WC76-411,31/01/2017,Economy & Environment,BAT FABRICATIONS LTD,01/01/2017,"2,250.00",60500-GENERAL MATERIALS,GREEN SPACE MANAGEMENT,Supplies & Services,Revenue
Walsall Council,http://opendatacommunities.org/id/metropolitan-district-council/walsall,WC76-412,31/01/2017,Economy & Environment,BAT FABRICATIONS LTD,30/01/2017,"3,135.00",73025-PROFESSIONAL SERVICES-PRIV CONTRACTOR & OTHER AGENCIES,PARKING SERVICES OFF-STREET,Third Party Payments,Revenue
Walsall Council,http://opendatacommunities.org/id/metropolitan-district-council/walsall,WC76-413,31/01/2017,Economy & Environment,BAT FABRICATIONS LTD,24/01/2017,"5,400.00",60500-GENERAL MATERIALS,GREEN SPACE MANAGEMENT,Supplies & Services,Revenue
Walsall Council,http://opendatacommunities.org/id/metropolitan-district-council/walsall,WC76-414,31/01/2017,Childrens,BEANT KAUR,02/01/2017,650.92,74006-HOLIDAY/CHRISTMAS ALLOWANCE-FOSTER CARERS-OTH AGENCY PROVISION,INTERNAL FOSTER CARE PROVISION,Third Party Payments,Revenue
Walsall Council,http://opendatacommunities.org/id/metropolitan-district-council/walsall,WC76-415,31/01/2017,Childrens,BEANT KAUR,02/01/2017,"1,523.52",62515-MISCELLANEOUS SUPPLIES,INTERNAL FOSTER CARE PROVISION,Supplies & Services,Revenue
Walsall Council,http://opendatacommunities.org/id/metropolitan-district-council/walsall,WC76-416,31/01/2017,Economy & Environment,BEARING SALES AND SERVICES LTD,06/01/2017,353.00,60514-MATERIALS TO STORES,FLEET PARTS STOCK ACCOUNT,Supplies & Services,Revenue
Walsall Council,http://opendatacommunities.org/id/metropolitan-district-council/walsall,WC76-417,31/01/2017,Economy & Environment,BEARING SALES AND SERVICES LTD,18/01/2017,456.00,60514-MATERIALS TO STORES,FLEET PARTS STOCK ACCOUNT,Supplies & Services,Revenue
Walsall Council,http://opendatacommunities.org/id/metropolitan-district-council/walsall,WC76-418,31/01/2017,Adult Social Care,BEARWOOD NURSING HOME LTD,10/01/2017,"1,649.80",73373-RESIDENTIAL & NURSING CARE PLACEMENTS,OP COMMISSIONING,Third Party Payments,Revenue
Walsall Council,http://opendatacommunities.org/id/metropolitan-district-council/walsall,WC76-419,31/01/2017,Childrens,BELINDA WARD,31/01/2017,540.20,62515-MISCELLANEOUS SUPPLIES,INTERNAL FOSTER CARE PROVISION,Supplies & Services,Revenue
Walsall Council,http://opendatacommunities.org/id/metropolitan-district-council/walsall,WC76-420,31/01/2017,Childrens,BELINDA WARD,02/01/2017,571.44,74006-HOLIDAY/CHRISTMAS ALLOWANCE-FOSTER CARERS-OTH AGENCY PROVISION,INTERNAL FOSTER CARE PROVISION,Third Party Payments,Revenue
Walsall Council,http://opendatacommunities.org/id/metropolitan-district-council/walsall,WC76-421,31/01/2017,Childrens,BELINDA WARD,02/01/2017,814.74,62515-MISCELLANEOUS SUPPLIES,INTERNAL FOSTER CARE PROVISION,Supplies & Services,Revenue
Walsall Council,http://opendatacommunities.org/id/metropolitan-district-council/walsall,WC76-422,31/01/2017,Adult Social Care,BELVIDERE COURT,17/01/2017,"1,886.26",73373-RESIDENTIAL & NURSING CARE PLACEMENTS,MH COMMISSIONING,Third Party Payments,Revenue
Walsall Council,http://opendatacommunities.org/id/metropolitan-district-council/walsall,WC76-423,31/01/2017,Adult Social Care,BELVIDERE COURT,17/01/2017,"3,764.29",73373-RESIDENTIAL & NURSING CARE PLACEMENTS,MH COMMISSIONING,Third Party Payments,Revenue
Walsall Council,http://opendatacommunities.org/id/metropolitan-district-council/walsall,WC76-424,31/01/2017,Adult Social Care,REDACTED,09/01/2017,"2,310.00",76422-DIRECT PAYMENTS TO SOCIAL SERVICES CLIENTS,LD COMMISSIONING,Transfer Payments,Revenue
Walsall Council,http://opendatacommunities.org/id/metropolitan-district-council/walsall,WC76-425,31/01/2017,Childrens,BENTLEY CHILD CARE,01/01/2017,765.00,63120-CRECHE FACILITIES-SERVICES-FEES,BUDDY COSTS 0-5,Supplies & Services,Revenue
Walsall Council,http://opendatacommunities.org/id/metropolitan-district-council/walsall,WC76-426,31/01/2017,Adult Social Care,BENTLEY COURT PRIORY,05/01/2017,"1,531.96",73373-RESIDENTIAL & NURSING CARE PLACEMENTS,OP COMMISSIONING,Third Party Payments,Revenue
Walsall Council,http://opendatacommunities.org/id/metropolitan-district-council/walsall,WC76-427,31/01/2017,Adult Social Care,BENTLEY COURT PRIORY,05/01/2017,"1,767.64",73373-RESIDENTIAL & NURSING CARE PLACEMENTS,OP COMMISSIONING,Third Party Payments,Revenue
Walsall Council,http://opendatacommunities.org/id/metropolitan-district-council/walsall,WC76-428,31/01/2017,Adult Social Care,BENTLEY COURT PRIORY,05/01/2017,"1,988.65",73373-RESIDENTIAL & NURSING CARE PLACEMENTS,OP COMMISSIONING,Third Party Payments,Revenue
Walsall Council,http://opendatacommunities.org/id/metropolitan-district-council/walsall,WC76-429,31/01/2017,Adult Social Care,BENTLEY COURT PRIORY,05/01/2017,"2,070.98",73373-RESIDENTIAL & NURSING CARE PLACEMENTS,OP COMMISSIONING,Third Party Payments,Revenue
Walsall Council,http://opendatacommunities.org/id/metropolitan-district-council/walsall,WC76-430,31/01/2017,Adult Social Care,BENTLEY COURT PRIORY,05/01/2017,"2,109.24",73373-RESIDENTIAL & NURSING CARE PLACEMENTS,OP COMMISSIONING,Third Party Payments,Revenue
Walsall Council,http://opendatacommunities.org/id/metropolitan-district-council/walsall,WC76-431,31/01/2017,Adult Social Care,BENTLEY COURT PRIORY,05/01/2017,"2,269.42",73373-RESIDENTIAL & NURSING CARE PLACEMENTS,OP COMMISSIONING,Third Party Payments,Revenue
Walsall Council,http://opendatacommunities.org/id/metropolitan-district-council/walsall,WC76-432,31/01/2017,Adult Social Care,BENTLEY COURT PRIORY,05/01/2017,"2,437.29",73373-RESIDENTIAL & NURSING CARE PLACEMENTS,OP COMMISSIONING,Third Party Payments,Revenue
Walsall Council,http://opendatacommunities.org/id/metropolitan-district-council/walsall,WC76-433,31/01/2017,Adult Social Care,BENTLEY COURT PRIORY,05/01/2017,"2,518.53",73373-RESIDENTIAL & NURSING CARE PLACEMENTS,OP COMMISSIONING,Third Party Payments,Revenue
Walsall Council,http://opendatacommunities.org/id/metropolitan-district-council/walsall,WC76-434,31/01/2017,Childrens,BENTLEY HEATH CHURCH OF ENGLAND PRIMARY SCHOOL,17/01/2017,380.00,77300-ISB-FORMULA ALLOCATION,OUT OF BOROUGH SCHOOLS,Transfer Payments,Revenue
Walsall Council,http://opendatacommunities.org/id/metropolitan-district-council/walsall,WC76-435,31/01/2017,Childrens,BENTLEY HEATH CHURCH OF ENGLAND PRIMARY SCHOOL,13/01/2017,"1,000.00",77300-ISB-FORMULA ALLOCATION,OUT OF BOROUGH SCHOOLS,Transfer Payments,Revenue
Walsall Council,http://opendatacommunities.org/id/metropolitan-district-council/walsall,WC76-436,31/01/2017,Childrens,BERRICK COMPUTING LTD,09/01/2017,"1,160.00",63114-OTHER FEES & LICENCES-SERVICES-FEES,SAFEGUARDING BOARD,Supplies & Services,Revenue
Walsall Council,http://opendatacommunities.org/id/metropolitan-district-council/walsall,WC76-437,31/01/2017,Holding Accounts,BERRYMANS LACE MAWER LLP,18/01/2017,"1,196.00",67001-MISC INSURANCES - PAYMENT OF CLAIMS,PUBLIC LIABILITY,Supplies & Services,Revenue
Walsall Council,http://opendatacommunities.org/id/metropolitan-district-council/walsall,WC76-438,31/01/2017,Adult Social Care,REDACTED,09/01/2017,912.00,76422-DIRECT PAYMENTS TO SOCIAL SERVICES CLIENTS,OP COMMISSIONING,Transfer Payments,Revenue
Walsall Council,http://opendatacommunities.org/id/metropolitan-district-council/walsall,WC76-439,31/01/2017,Childrens,BERYL DAVIES,02/01/2017,"1,142.88",74006-HOLIDAY/CHRISTMAS ALLOWANCE-FOSTER CARERS-OTH AGENCY PROVISION,INTERNAL FOSTER CARE PROVISION,Third Party Payments,Revenue
Walsall Council,http://opendatacommunities.org/id/metropolitan-district-council/walsall,WC76-440,31/01/2017,Childrens,BERYL DAVIES,02/01/2017,"1,445.32",62515-MISCELLANEOUS SUPPLIES,INTERNAL FOSTER CARE PROVISION,Supplies & Services,Revenue
Walsall Council,http://opendatacommunities.org/id/metropolitan-district-council/walsall,WC76-441,31/01/2017,Childrens,BERYL DAVIES,31/01/2017,"1,445.32",62515-MISCELLANEOUS SUPPLIES,INTERNAL FOSTER CARE PROVISION,Supplies & Services,Revenue
Walsall Council,http://opendatacommunities.org/id/metropolitan-district-council/walsall,WC76-442,31/01/2017,Adult Social Care,REDACTED,09/01/2017,968.00,76422-DIRECT PAYMENTS TO SOCIAL SERVICES CLIENTS,OP COMMISSIONING,Transfer Payments,Revenue
Walsall Council,http://opendatacommunities.org/id/metropolitan-district-council/walsall,WC76-443,31/01/2017,Adult Social Care,BESCOT LODGE RESIDENTIAL CARE HOME,24/01/2017,835.71,73373-RESIDENTIAL & NURSING CARE PLACEMENTS,OP COMMISSIONING,Third Party Payments,Revenue
Walsall Council,http://opendatacommunities.org/id/metropolitan-district-council/walsall,WC76-444,31/01/2017,Adult Social Care,BESCOT LODGE RESIDENTIAL CARE HOME,24/01/2017,835.71,73373-RESIDENTIAL & NURSING CARE PLACEMENTS,MH COMMISSIONING,Third Party Payments,Revenue
Walsall Council,http://opendatacommunities.org/id/metropolitan-district-council/walsall,WC76-445,31/01/2017,Adult Social Care,BESCOT LODGE RESIDENTIAL CARE HOME,24/01/2017,"1,478.57",73373-RESIDENTIAL & NURSING CARE PLACEMENTS,OP COMMISSIONING,Third Party Payments,Revenue
Walsall Council,http://opendatacommunities.org/id/metropolitan-district-council/walsall,WC76-446,31/01/2017,Adult Social Care,BESCOT LODGE RESIDENTIAL CARE HOME,24/01/2017,"1,793.57",73373-RESIDENTIAL & NURSING CARE PLACEMENTS,OP COMMISSIONING,Third Party Payments,Revenue
Walsall Council,http://opendatacommunities.org/id/metropolitan-district-council/walsall,WC76-447,31/01/2017,Adult Social Care,BESCOT LODGE RESIDENTIAL CARE HOME,24/01/2017,"1,793.58",73373-RESIDENTIAL & NURSING CARE PLACEMENTS,OP COMMISSIONING,Third Party Payments,Revenue
Walsall Council,http://opendatacommunities.org/id/metropolitan-district-council/walsall,WC76-448,31/01/2017,Adult Social Care,BESCOT LODGE RESIDENTIAL CARE HOME,24/01/2017,"1,992.86",73373-RESIDENTIAL & NURSING CARE PLACEMENTS,OP COMMISSIONING,Third Party Payments,Revenue
Walsall Council,http://opendatacommunities.org/id/metropolitan-district-council/walsall,WC76-449,31/01/2017,Economy & Environment,BESCOT STADIUM SUNDAY MARKET LTD,13/01/2017,"2,800.00",73025-PROFESSIONAL SERVICES-PRIV CONTRACTOR & OTHER AGENCIES,WILLENHALL MARKET,Third Party Payments,Revenue
Walsall Council,http://opendatacommunities.org/id/metropolitan-district-council/walsall,WC76-450,31/01/2017,Adult Social Care,BESS CARE LIMITED,18/01/2017,375.00,73372-DOMICILIARY CARE,OP COMMISSIONING,Third Party Payments,Revenue
Walsall Council,http://opendatacommunities.org/id/metropolitan-district-council/walsall,WC76-451,31/01/2017,Adult Social Care,BESS CARE LIMITED,25/01/2017,437.50,73372-DOMICILIARY CARE,OP COMMISSIONING,Third Party Payments,Revenue
Walsall Council,http://opendatacommunities.org/id/metropolitan-district-council/walsall,WC76-452,31/01/2017,Adult Social Care,BESS CARE LIMITED,05/01/2017,531.25,73372-DOMICILIARY CARE,OP COMMISSIONING,Third Party Payments,Revenue
Walsall Council,http://opendatacommunities.org/id/metropolitan-district-council/walsall,WC76-453,31/01/2017,Adult Social Care,BESS CARE LIMITED,09/01/2017,581.25,73372-DOMICILIARY CARE,OP COMMISSIONING,Third Party Payments,Revenue
Walsall Council,http://opendatacommunities.org/id/metropolitan-district-council/walsall,WC76-454,31/01/2017,Adult Social Care,BESS CARE LIMITED,11/01/2017,612.50,73372-DOMICILIARY CARE,OP COMMISSIONING,Third Party Payments,Revenue
Walsall Council,http://opendatacommunities.org/id/metropolitan-district-council/walsall,WC76-455,31/01/2017,Adult Social Care,BETHPHAGE.,25/01/2017,650.00,73374-SUPPORTED & OTHER ACCOMMODATION,LD COMMISSIONING,Third Party Payments,Revenue
Walsall Council,http://opendatacommunities.org/id/metropolitan-district-council/walsall,WC76-456,31/01/2017,Adult Social Care,BETHPHAGE.,25/01/2017,987.72,73374-SUPPORTED & OTHER ACCOMMODATION,LD COMMISSIONING,Third Party Payments,Revenue
Walsall Council,http://opendatacommunities.org/id/metropolitan-district-council/walsall,WC76-457,31/01/2017,Adult Social Care,BETHPHAGE.,23/01/2017,"1,015.92",73374-SUPPORTED & OTHER ACCOMMODATION,LD COMMISSIONING,Third Party Payments,Revenue
Walsall Council,http://opendatacommunities.org/id/metropolitan-district-council/walsall,WC76-458,31/01/2017,Adult Social Care,BETHPHAGE.,25/01/2017,"1,015.92",73374-SUPPORTED & OTHER ACCOMMODATION,LD COMMISSIONING,Third Party Payments,Revenue
Walsall Council,http://opendatacommunities.org/id/metropolitan-district-council/walsall,WC76-459,31/01/2017,Adult Social Care,BETHPHAGE.,23/01/2017,"1,269.90",73374-SUPPORTED & OTHER ACCOMMODATION,LD COMMISSIONING,Third Party Payments,Revenue
Walsall Council,http://opendatacommunities.org/id/metropolitan-district-council/walsall,WC76-460,31/01/2017,Adult Social Care,BETHPHAGE.,25/01/2017,"1,439.24",73374-SUPPORTED & OTHER ACCOMMODATION,LD COMMISSIONING,Third Party Payments,Revenue
Walsall Council,http://opendatacommunities.org/id/metropolitan-district-council/walsall,WC76-461,31/01/2017,Adult Social Care,REDACTED,09/01/2017,949.52,76422-DIRECT PAYMENTS TO SOCIAL SERVICES CLIENTS,MH COMMISSIONING,Transfer Payments,Revenue
Walsall Council,http://opendatacommunities.org/id/metropolitan-district-council/walsall,WC76-462,31/01/2017,Adult Social Care,REDACTED,09/01/2017,"2,767.84",76422-DIRECT PAYMENTS TO SOCIAL SERVICES CLIENTS,OP COMMISSIONING,Transfer Payments,Revenue
Walsall Council,http://opendatacommunities.org/id/metropolitan-district-council/walsall,WC76-463,31/01/2017,Change and Governance,BFA SAFETY TRAINING,10/01/2017,295.00,30030-EXTERNAL TRAINING,HEALTH & SAFETY (TRADED),Employees,Revenue
Walsall Council,http://opendatacommunities.org/id/metropolitan-district-council/walsall,WC76-464,31/01/2017,Change and Governance,BFA SAFETY TRAINING,10/01/2017,595.00,30030-EXTERNAL TRAINING,HEALTH & SAFETY (TRADED),Employees,Revenue
Walsall Council,http://opendatacommunities.org/id/metropolitan-district-council/walsall,WC76-465,31/01/2017,Adult Social Care,REDACTED,09/01/2017,"2,320.00",76422-DIRECT PAYMENTS TO SOCIAL SERVICES CLIENTS,OP COMMISSIONING,Transfer Payments,Revenue
Walsall Council,http://opendatacommunities.org/id/metropolitan-district-council/walsall,WC76-466,31/01/2017,Adult Social Care,BID CENTRE FOR DEAF PEOPLE,09/01/2017,616.00,34305-AGENCY STAFF-EMPLOYEES,COMMUNITY INTERMEDIATE CARE,Employees,Revenue
Walsall Council,http://opendatacommunities.org/id/metropolitan-district-council/walsall,WC76-467,31/01/2017,Childrens,REDACTED,09/01/2017,487.72,76422-DIRECT PAYMENTS TO SOCIAL SERVICES CLIENTS,FAMILY SUPPORT - DIRECT PAYMENTS,Transfer Payments,Revenue
Walsall Council,http://opendatacommunities.org/id/metropolitan-district-council/walsall,WC76-468,31/01/2017,Childrens,REDACTED,09/01/2017,572.00,76422-DIRECT PAYMENTS TO SOCIAL SERVICES CLIENTS,FAMILY SUPPORT - DIRECT PAYMENTS,Transfer Payments,Revenue
Walsall Council,http://opendatacommunities.org/id/metropolitan-district-council/walsall,WC76-469,31/01/2017,Childrens,BIRCHILLS C OF E COMMUNITY ACADEMY,13/01/2017,360.00,77300-ISB-FORMULA ALLOCATION,BIRCHILLS CE COMMUNITY ACADEMY,Transfer Payments,Revenue
Walsall Council,http://opendatacommunities.org/id/metropolitan-district-council/walsall,WC76-470,31/01/2017,Childrens,BIRCHILLS C OF E COMMUNITY ACADEMY,30/01/2017,"2,486.84",66502-TOP UP FUNDING -GRANTS TO SCHOOLS,BIRCHILLS CE COMMUNITY ACADEMY,Third Party Payments,Revenue
Walsall Council,http://opendatacommunities.org/id/metropolitan-district-council/walsall,WC76-471,31/01/2017,Childrens,BIRCHILLS C OF E COMMUNITY ACADEMY,30/01/2017,"2,694.08",66502-TOP UP FUNDING -GRANTS TO SCHOOLS,BIRCHILLS CE COMMUNITY ACADEMY,Third Party Payments,Revenue
Walsall Council,http://opendatacommunities.org/id/metropolitan-district-council/walsall,WC76-472,31/01/2017,Childrens,BIRCHILLS C OF E COMMUNITY ACADEMY,30/01/2017,"4,618.16",66502-TOP UP FUNDING -GRANTS TO SCHOOLS,BIRCHILLS CE COMMUNITY ACADEMY,Third Party Payments,Revenue
Walsall Council,http://opendatacommunities.org/id/metropolitan-district-council/walsall,WC76-473,31/01/2017,Childrens,BIRCHILLS C OF E COMMUNITY ACADEMY,26/01/2017,"30,535.80",66505-OTHER-GRANTS TO OTHER ORGS,EARLY YEARS - 3 YR OLDS,Third Party Payments,Revenue
Walsall Council,http://opendatacommunities.org/id/metropolitan-district-council/walsall,WC76-474,31/01/2017,Childrens,BIRMINGHAM CITY COUNCIL,13/01/2017,"23,137.17",66502-TOP UP FUNDING -GRANTS TO SCHOOLS,MAINTAINED PROVIDERS,Third Party Payments,Revenue
Walsall Council,http://opendatacommunities.org/id/metropolitan-district-council/walsall,WC76-475,31/01/2017,Economy & Environment,BIRMINGHAM CITY UNIVERSITY,04/01/2017,750.00,63000-PROFESSIONAL FEES AND SERVICES,GARMAN RYAN,Supplies & Services,Revenue
Walsall Council,http://opendatacommunities.org/id/metropolitan-district-council/walsall,WC76-476,31/01/2017,Adult Social Care,BIRMINGHAM COMMUNITY HEALTHCARE NHS TRUST,26/01/2017,476.00,66505-OTHER-GRANTS TO OTHER ORGS,FALLS PREVENTION L & D PROGRAMME GRANT,Third Party Payments,Revenue
Walsall Council,http://opendatacommunities.org/id/metropolitan-district-council/walsall,WC76-477,31/01/2017,Economy & Environment,BIRMINGHAM METROPOLITAN COLLEGE,13/01/2017,"1,125.00",66500-GRANTS TO OTHER ORGS,RES-WALSALL WORKS,Third Party Payments,Revenue
Walsall Council,http://opendatacommunities.org/id/metropolitan-district-council/walsall,WC76-478,31/01/2017,Economy & Environment,BLACK COUNTRY CONSORTIUM LIMITED,31/01/2017,"23,255.58",65500-GRANTS TO ASSOCIATIONS,LEP- HESELTINE FUNDING,Third Party Payments,Revenue
Walsall Council,http://opendatacommunities.org/id/metropolitan-district-council/walsall,WC76-479,31/01/2017,Economy & Environment,BLACK COUNTRY CONSORTIUM LIMITED,03/01/2017,"58,296.00",66500-GRANTS TO OTHER ORGS,GROWTH DEAL REVENUE,Third Party Payments,Revenue
Walsall Council,http://opendatacommunities.org/id/metropolitan-district-council/walsall,WC76-480,31/01/2017,Adult Social Care,BLACK COUNTRY PARTNERSHIP NHS,23/01/2017,"-6,066.00",73375-IN PATIENT BEDS,BCPFT,Third Party Payments,Revenue
Walsall Council,http://opendatacommunities.org/id/metropolitan-district-council/walsall,WC76-481,31/01/2017,Adult Social Care,BLACK COUNTRY PARTNERSHIP NHS,13/01/2017,364.00,73375-IN PATIENT BEDS,LD COMMISSIONING,Third Party Payments,Revenue
Walsall Council,http://opendatacommunities.org/id/metropolitan-district-council/walsall,WC76-482,31/01/2017,Adult Social Care,BLACK COUNTRY PARTNERSHIP NHS,23/01/2017,"3,275.00",73375-IN PATIENT BEDS,LD COMMISSIONING,Third Party Payments,Revenue
Walsall Council,http://opendatacommunities.org/id/metropolitan-district-council/walsall,WC76-483,31/01/2017,Adult Social Care,BLACK COUNTRY PARTNERSHIP NHS,03/01/2017,"5,458.00",73375-IN PATIENT BEDS,LD COMMISSIONING,Third Party Payments,Revenue
Walsall Council,http://opendatacommunities.org/id/metropolitan-district-council/walsall,WC76-484,31/01/2017,Adult Social Care,BLACK COUNTRY PARTNERSHIP NHS,23/01/2017,"5,640.00",73375-IN PATIENT BEDS,LD COMMISSIONING,Third Party Payments,Revenue
Walsall Council,http://opendatacommunities.org/id/metropolitan-district-council/walsall,WC76-485,31/01/2017,Adult Social Care,BLACK COUNTRY PARTNERSHIP NHS,01/01/2017,"8,004.00",73375-IN PATIENT BEDS,LD COMMISSIONING,Third Party Payments,Revenue
Walsall Council,http://opendatacommunities.org/id/metropolitan-district-council/walsall,WC76-486,31/01/2017,Adult Social Care,BLACK COUNTRY PARTNERSHIP NHS,03/01/2017,"8,492.00",73375-IN PATIENT BEDS,BCPFT,Third Party Payments,Revenue
Walsall Council,http://opendatacommunities.org/id/metropolitan-district-council/walsall,WC76-487,31/01/2017,Adult Social Care,BLACK COUNTRY PARTNERSHIP NHS,13/01/2017,"14,375.00",73375-IN PATIENT BEDS,LD COMMISSIONING,Third Party Payments,Revenue
Walsall Council,http://opendatacommunities.org/id/metropolitan-district-council/walsall,WC76-488,31/01/2017,Adult Social Care,BLACK COUNTRY PARTNERSHIP NHS,03/01/2017,"15,600.00",73375-IN PATIENT BEDS,LD COMMISSIONING,Third Party Payments,Revenue
Walsall Council,http://opendatacommunities.org/id/metropolitan-district-council/walsall,WC76-489,31/01/2017,Adult Social Care,BLACK COUNTRY PARTNERSHIP NHS,06/01/2017,"16,120.00",73375-IN PATIENT BEDS,LD COMMISSIONING,Third Party Payments,Revenue
Walsall Council,http://opendatacommunities.org/id/metropolitan-district-council/walsall,WC76-490,31/01/2017,Adult Social Care,BLACK COUNTRY PARTNERSHIP NHS,03/01/2017,"17,250.00",73372-DOMICILIARY CARE,LD COMMISSIONING,Third Party Payments,Revenue
Walsall Council,http://opendatacommunities.org/id/metropolitan-district-council/walsall,WC76-491,31/01/2017,Adult Social Care,BLACK COUNTRY PARTNERSHIP NHS,06/01/2017,"17,825.00",73375-IN PATIENT BEDS,LD COMMISSIONING,Third Party Payments,Revenue
Walsall Council,http://opendatacommunities.org/id/metropolitan-district-council/walsall,WC76-492,31/01/2017,Adult Social Care,BLACK COUNTRY PARTNERSHIP NHS,03/01/2017,"18,198.00",73375-IN PATIENT BEDS,BCPFT,Third Party Payments,Revenue
Walsall Council,http://opendatacommunities.org/id/metropolitan-district-council/walsall,WC76-493,31/01/2017,Adult Social Care,BLACK COUNTRY PARTNERSHIP NHS,06/01/2017,"18,805.00",73375-IN PATIENT BEDS,BCPFT,Third Party Payments,Revenue
Walsall Council,http://opendatacommunities.org/id/metropolitan-district-council/walsall,WC76-494,31/01/2017,Adult Social Care,BLACK COUNTRY PARTNERSHIP NHS,23/01/2017,"155,340.62",71007-CONTRIBUTION TO PCT,BCPFT,Third Party Payments,Revenue
Walsall Council,http://opendatacommunities.org/id/metropolitan-district-council/walsall,WC76-495,31/01/2017,Childrens,BLACKHEATH PRIMARY SCHOOL,20/01/2017,"1,000.00",77300-ISB-FORMULA ALLOCATION,OUT OF BOROUGH SCHOOLS,Transfer Payments,Revenue
Walsall Council,http://opendatacommunities.org/id/metropolitan-district-council/walsall,WC76-496,31/01/2017,Childrens,BLAKENALL HEATH JMI SCHOOL,20/01/2017,"56,580.00",77302-ISB-SCHOOL STANDARDS GRANT,BLAKENALL HEATH JUNIOR SCHOOL,Transfer Payments,Revenue
Walsall Council,http://opendatacommunities.org/id/metropolitan-district-council/walsall,WC76-497,31/01/2017,Childrens,BLOXWICH ACADEMY,13/01/2017,"1,000.00",77300-ISB-FORMULA ALLOCATION,THE MIRUS ACADEMY,Transfer Payments,Revenue
Walsall Council,http://opendatacommunities.org/id/metropolitan-district-council/walsall,WC76-498,31/01/2017,Childrens,BLOXWICH ACADEMY,26/01/2017,"30,280.53",66505-OTHER-GRANTS TO OTHER ORGS,EARLY YEARS - 3 YR OLDS,Third Party Payments,Revenue
Walsall Council,http://opendatacommunities.org/id/metropolitan-district-council/walsall,WC76-499,31/01/2017,Adult Social Care,BLOXWICH COMMUNITY PARTNERSHIP.,11/01/2017,252.00,73374-SUPPORTED & OTHER ACCOMMODATION,MH COMMISSIONING,Third Party Payments,Revenue
Walsall Council,http://opendatacommunities.org/id/metropolitan-district-council/walsall,WC76-500,31/01/2017,Change and Governance,BLOXWICH COMMUNITY PARTNERSHIP.,04/01/2017,"6,666.68",66500-GRANTS TO OTHER ORGS,BLOXWICH COMMUNITY PARTNERSHIP,Third Party Payments,Revenue
Walsall Council,http://opendatacommunities.org/id/metropolitan-district-council/walsall,WC76-501,31/01/2017,Childrens,BLUE GIRAFFE CHILDCARE,09/01/2017,815.32,66505-OTHER-GRANTS TO OTHER ORGS,EARLY YEARS - 3 YR OLDS,Third Party Payments,Revenue
Walsall Council,http://opendatacommunities.org/id/metropolitan-district-council/walsall,WC76-502,31/01/2017,Childrens,BLUE GIRAFFE CHILDCARE,09/01/2017,"6,997.59",66505-OTHER-GRANTS TO OTHER ORGS,EARLY YEARS - 2 YR OLDS,Third Party Payments,Revenue
Walsall Council,http://opendatacommunities.org/id/metropolitan-district-council/walsall,WC76-503,31/01/2017,Childrens,BLUE GIRAFFE CHILDCARE,09/01/2017,"7,586.67",66505-OTHER-GRANTS TO OTHER ORGS,EARLY YEARS - 3 YR OLDS,Third Party Payments,Revenue
Walsall Council,http://opendatacommunities.org/id/metropolitan-district-council/walsall,WC76-504,31/01/2017,Adult Social Care,BLUEBIRD CARE (MID STAFFS),23/01/2017,576.00,73372-DOMICILIARY CARE,OP COMMISSIONING,Third Party Payments,Revenue
Walsall Council,http://opendatacommunities.org/id/metropolitan-district-council/walsall,WC76-505,31/01/2017,Adult Social Care,BLUEBIRD CARE (MID STAFFS),09/01/2017,864.00,73372-DOMICILIARY CARE,OP COMMISSIONING,Third Party Payments,Revenue
Walsall Council,http://opendatacommunities.org/id/metropolitan-district-council/walsall,WC76-506,31/01/2017,Economy & Environment,BME UNITED LTD,09/01/2017,"6,262.00",63000-PROFESSIONAL FEES AND SERVICES,SMOKING CESSATION,Supplies & Services,Revenue
Walsall Council,http://opendatacommunities.org/id/metropolitan-district-council/walsall,WC76-507,31/01/2017,Economy & Environment,BONHAMS 1793 LIMITED,18/01/2017,"3,354.00",62526-DISCOVERY / GARMAN RYAN,NAG - GARMAN RYAN/PERMANENT COLLECTION,Supplies & Services,Revenue
Walsall Council,http://opendatacommunities.org/id/metropolitan-district-council/walsall,WC76-508,31/01/2017,Economy & Environment,BONINGALE NURSERIES,03/01/2017,"1,292.55",01006-SITE WORKS MAIN CONTRACTORS,CFR 632 WALSALL ARBORETUM RESTORATION PROGRAMME,Capital,Capital
Walsall Council,http://opendatacommunities.org/id/metropolitan-district-council/walsall,WC76-509,31/01/2017,Childrens,BOOKTRUST,03/01/2017,"12,917.92",63000-PROFESSIONAL FEES AND SERVICES,VIRTUAL SCHOOL CENTRAL PUPIL PREMIUM,Supplies & Services,Revenue
Walsall Council,http://opendatacommunities.org/id/metropolitan-district-council/walsall,WC76-510,31/01/2017,Economy & Environment,BOOTS UK LIMITED,04/01/2017,90.17,71007-CONTRIBUTION TO PCT,PUBLIC HEALTH BUSINESS SUPPORT,Third Party Payments,Revenue
Walsall Council,http://opendatacommunities.org/id/metropolitan-district-council/walsall,WC76-511,31/01/2017,Economy & Environment,BOOTS UK LIMITED,04/01/2017,557.55,63000-PROFESSIONAL FEES AND SERVICES,SEXUAL HEALTH,Supplies & Services,Revenue
Walsall Council,http://opendatacommunities.org/id/metropolitan-district-council/walsall,WC76-512,31/01/2017,Economy & Environment,BORN TO PERFORM,27/01/2017,300.00,62523-EVENTS,DARLASTON DISTRICT CENTRE,Supplies & Services,Revenue
Walsall Council,http://opendatacommunities.org/id/metropolitan-district-council/walsall,WC76-513,31/01/2017,Childrens,BOULTON TRAVEL LIMITED,01/01/2017,"1,356.00",52000-WITH DRIVER-HIRE OF VEHICLES,SCHOOL TRANSPORT,Transport,Revenue
Walsall Council,http://opendatacommunities.org/id/metropolitan-district-council/walsall,WC76-514,31/01/2017,Childrens,BOULTON TRAVEL LIMITED,01/01/2017,"1,524.00",52000-WITH DRIVER-HIRE OF VEHICLES,SCHOOL TRANSPORT,Transport,Revenue
Walsall Council,http://opendatacommunities.org/id/metropolitan-district-council/walsall,WC76-515,31/01/2017,Adult Social Care,BOWDEN DERRA PARK,05/01/2017,"10,502.76",73373-RESIDENTIAL & NURSING CARE PLACEMENTS,LD COMMISSIONING,Third Party Payments,Revenue
Walsall Council,http://opendatacommunities.org/id/metropolitan-district-council/walsall,WC76-516,31/01/2017,Adult Social Care,BOWDEN DERRA PARK,10/01/2017,"10,502.76",73373-RESIDENTIAL & NURSING CARE PLACEMENTS,LD COMMISSIONING,Third Party Payments,Revenue
Walsall Council,http://opendatacommunities.org/id/metropolitan-district-council/walsall,WC76-517,31/01/2017,Economy & Environment,BRADVALE LTD T/A INSPIRE HEALTHCARE SERVICES,30/01/2017,284.98,60009-LEASING/HIRE/RENTAL-EQUIPMENT,DARLASTON LEISURE CENTRE,Supplies & Services,Revenue
Walsall Council,http://opendatacommunities.org/id/metropolitan-district-council/walsall,WC76-518,31/01/2017,Economy & Environment,BRADVALE LTD T/A INSPIRE HEALTHCARE SERVICES,11/01/2017,418.52,73025-PROFESSIONAL SERVICES-PRIV CONTRACTOR & OTHER AGENCIES,DEPOT,Third Party Payments,Revenue
Walsall Council,http://opendatacommunities.org/id/metropolitan-district-council/walsall,WC76-519,31/01/2017,Economy & Environment,BRADVALE LTD T/A INSPIRE HEALTHCARE SERVICES,11/01/2017,555.51,60500-GENERAL MATERIALS,ARBORETUM VISITOR CENTRE,Supplies & Services,Revenue
Walsall Council,http://opendatacommunities.org/id/metropolitan-district-council/walsall,WC76-520,31/01/2017,Childrens,BRANAS ISAF PERSONAL DEVELOPMENT CENTRE LTD,25/01/2017,"19,285.71",74036-EXTERNAL RESIDENTIAL CARE-OTH AGENCY PROVISION,INDEPENDENT RESIDENTIAL HOMES,Third Party Payments,Revenue
Walsall Council,http://opendatacommunities.org/id/metropolitan-district-council/walsall,WC76-521,31/01/2017,Childrens,BRANAS ISAF PERSONAL DEVELOPMENT CENTRE LTD,25/01/2017,"19,285.71",74036-EXTERNAL RESIDENTIAL CARE-OTH AGENCY PROVISION,INDEPENDENT RESIDENTIAL HOMES,Third Party Payments,Revenue
Walsall Council,http://opendatacommunities.org/id/metropolitan-district-council/walsall,WC76-522,31/01/2017,Childrens,BRANAS ISAF PERSONAL DEVELOPMENT CENTRE LTD,25/01/2017,"19,928.57",74036-EXTERNAL RESIDENTIAL CARE-OTH AGENCY PROVISION,INDEPENDENT RESIDENTIAL HOMES,Third Party Payments,Revenue
Walsall Council,http://opendatacommunities.org/id/metropolitan-district-council/walsall,WC76-523,31/01/2017,Childrens,BRANAS ISAF PERSONAL DEVELOPMENT CENTRE LTD,25/01/2017,"19,928.57",74036-EXTERNAL RESIDENTIAL CARE-OTH AGENCY PROVISION,INDEPENDENT RESIDENTIAL HOMES,Third Party Payments,Revenue
Walsall Council,http://opendatacommunities.org/id/metropolitan-district-council/walsall,WC76-524,31/01/2017,Childrens,BRANAS ISAF PERSONAL DEVELOPMENT CENTRE LTD,25/01/2017,"19,928.57",74036-EXTERNAL RESIDENTIAL CARE-OTH AGENCY PROVISION,INDEPENDENT RESIDENTIAL HOMES,Third Party Payments,Revenue
Walsall Council,http://opendatacommunities.org/id/metropolitan-district-council/walsall,WC76-525,31/01/2017,Childrens,BRANAS ISAF PERSONAL DEVELOPMENT CENTRE LTD,25/01/2017,"19,928.57",74036-EXTERNAL RESIDENTIAL CARE-OTH AGENCY PROVISION,INDEPENDENT RESIDENTIAL HOMES,Third Party Payments,Revenue
Walsall Council,http://opendatacommunities.org/id/metropolitan-district-council/walsall,WC76-526,31/01/2017,Childrens,BRELMAYNE LTD,09/01/2017,226.00,60520-HEALTH & SAFETY-MATERIALS,LOCALITY FAMILY SUPPORT-WEST,Supplies & Services,Revenue
Walsall Council,http://opendatacommunities.org/id/metropolitan-district-council/walsall,WC76-527,31/01/2017,Adult Social Care,REDACTED,09/01/2017,440.00,76422-DIRECT PAYMENTS TO SOCIAL SERVICES CLIENTS,LD COMMISSIONING,Transfer Payments,Revenue
Walsall Council,http://opendatacommunities.org/id/metropolitan-district-council/walsall,WC76-528,31/01/2017,Childrens,BRENDA MASON,31/01/2017,"1,445.32",62515-MISCELLANEOUS SUPPLIES,INTERNAL FOSTER CARE PROVISION,Supplies & Services,Revenue
Walsall Council,http://opendatacommunities.org/id/metropolitan-district-council/walsall,WC76-529,31/01/2017,Childrens,BRENDA MASON,02/01/2017,"1,620.64",74006-HOLIDAY/CHRISTMAS ALLOWANCE-FOSTER CARERS-OTH AGENCY PROVISION,INTERNAL FOSTER CARE PROVISION,Third Party Payments,Revenue
Walsall Council,http://opendatacommunities.org/id/metropolitan-district-council/walsall,WC76-530,31/01/2017,Childrens,BRENDA MASON,02/01/2017,"2,127.97",62515-MISCELLANEOUS SUPPLIES,INTERNAL FOSTER CARE PROVISION,Supplies & Services,Revenue
Walsall Council,http://opendatacommunities.org/id/metropolitan-district-council/walsall,WC76-531,31/01/2017,Economy & Environment,BRENNTAG UK LIMITED,18/01/2017,319.50,60503-CHEMICALS & SCIENTIFIC MATS-MATERIALS,OAK PARK,Supplies & Services,Revenue
Walsall Council,http://opendatacommunities.org/id/metropolitan-district-council/walsall,WC76-532,31/01/2017,Economy & Environment,BRENNTAG UK LIMITED,18/01/2017,354.50,60503-CHEMICALS & SCIENTIFIC MATS-MATERIALS,BLOXWICH LEISURE CENTRE,Supplies & Services,Revenue
Walsall Council,http://opendatacommunities.org/id/metropolitan-district-council/walsall,WC76-533,31/01/2017,Economy & Environment,BRENNTAG UK LIMITED,03/01/2017,364.50,60503-CHEMICALS & SCIENTIFIC MATS-MATERIALS,OAK PARK,Supplies & Services,Revenue
Walsall Council,http://opendatacommunities.org/id/metropolitan-district-council/walsall,WC76-534,31/01/2017,Adult Social Care,REDACTED,11/01/2017,"1,337.64",73374-SUPPORTED & OTHER ACCOMMODATION,LD COMMISSIONING,Third Party Payments,Revenue
Walsall Council,http://opendatacommunities.org/id/metropolitan-district-council/walsall,WC76-535,31/01/2017,Adult Social Care,REDACTED,11/01/2017,"1,597.60",73374-SUPPORTED & OTHER ACCOMMODATION,LD COMMISSIONING,Third Party Payments,Revenue
Walsall Council,http://opendatacommunities.org/id/metropolitan-district-council/walsall,WC76-536,31/01/2017,Adult Social Care,REDACTED,09/01/2017,"1,726.40",76422-DIRECT PAYMENTS TO SOCIAL SERVICES CLIENTS,OP COMMISSIONING,Transfer Payments,Revenue
Walsall Council,http://opendatacommunities.org/id/metropolitan-district-council/walsall,WC76-537,31/01/2017,Adult Social Care,REDACTED,09/01/2017,738.00,76422-DIRECT PAYMENTS TO SOCIAL SERVICES CLIENTS,OP COMMISSIONING,Transfer Payments,Revenue
Walsall Council,http://opendatacommunities.org/id/metropolitan-district-council/walsall,WC76-538,31/01/2017,Adult Social Care,BRIDGEWOOD HEALTH CARE LTD,10/01/2017,"5,513.72",73373-RESIDENTIAL & NURSING CARE PLACEMENTS,PD COMMISSIONING,Third Party Payments,Revenue
Walsall Council,http://opendatacommunities.org/id/metropolitan-district-council/walsall,WC76-539,31/01/2017,Childrens,BRIDGTOWN PRIMARY SCHOOL,13/01/2017,854.00,77300-ISB-FORMULA ALLOCATION,OUT OF BOROUGH SCHOOLS,Transfer Payments,Revenue
Walsall Council,http://opendatacommunities.org/id/metropolitan-district-council/walsall,WC76-540,31/01/2017,Childrens,BRIDGTOWN PRIMARY SCHOOL,13/01/2017,"1,000.00",77300-ISB-FORMULA ALLOCATION,OUT OF BOROUGH SCHOOLS,Transfer Payments,Revenue
Walsall Council,http://opendatacommunities.org/id/metropolitan-district-council/walsall,WC76-541,31/01/2017,Childrens,BRIGHT HORIZONS (WISHING WILLOW),19/01/2017,"1,099.63",63120-CRECHE FACILITIES-SERVICES-FEES,FAMILY PLACEMENTS,Supplies & Services,Revenue
Walsall Council,http://opendatacommunities.org/id/metropolitan-district-council/walsall,WC76-542,31/01/2017,Change and Governance,BRISTOW & SUTOR,04/01/2017,75.00,73014-LEGAL FEES-PRIV CONTRACTOR FEES,REVENUES,Third Party Payments,Revenue
Walsall Council,http://opendatacommunities.org/id/metropolitan-district-council/walsall,WC76-543,31/01/2017,Change and Governance,BRISTOW & SUTOR,25/01/2017,279.46,73014-LEGAL FEES-PRIV CONTRACTOR FEES,REVENUES,Third Party Payments,Revenue
Walsall Council,http://opendatacommunities.org/id/metropolitan-district-council/walsall,WC76-544,31/01/2017,Change and Governance,BRISTOW & SUTOR,04/01/2017,343.80,73014-LEGAL FEES-PRIV CONTRACTOR FEES,REVENUES,Third Party Payments,Revenue
Walsall Council,http://opendatacommunities.org/id/metropolitan-district-council/walsall,WC76-545,31/01/2017,Change and Governance,BRISTOW & SUTOR,04/01/2017,382.49,73014-LEGAL FEES-PRIV CONTRACTOR FEES,REVENUES,Third Party Payments,Revenue
Walsall Council,http://opendatacommunities.org/id/metropolitan-district-council/walsall,WC76-546,31/01/2017,Change and Governance,BRISTOW & SUTOR,25/01/2017,489.82,73014-LEGAL FEES-PRIV CONTRACTOR FEES,REVENUES,Third Party Payments,Revenue
Walsall Council,http://opendatacommunities.org/id/metropolitan-district-council/walsall,WC76-547,31/01/2017,Change and Governance,BRISTOW & SUTOR,25/01/2017,497.00,73014-LEGAL FEES-PRIV CONTRACTOR FEES,REVENUES,Third Party Payments,Revenue
Walsall Council,http://opendatacommunities.org/id/metropolitan-district-council/walsall,WC76-548,31/01/2017,Change and Governance,BRISTOW & SUTOR,25/01/2017,878.82,73014-LEGAL FEES-PRIV CONTRACTOR FEES,REVENUES,Third Party Payments,Revenue
Walsall Council,http://opendatacommunities.org/id/metropolitan-district-council/walsall,WC76-549,31/01/2017,Change and Governance,BRISTOW & SUTOR,04/01/2017,"1,190.63",73014-LEGAL FEES-PRIV CONTRACTOR FEES,REVENUES,Third Party Payments,Revenue
Walsall Council,http://opendatacommunities.org/id/metropolitan-district-council/walsall,WC76-550,31/01/2017,Change and Governance,BRITISH GAS BUSINESS,31/01/2017,"-11,056.35",42000-GAS-ENERGY COSTS,CENTRAL OFFICE ACCOMMODATION,Premises,Revenue
Walsall Council,http://opendatacommunities.org/id/metropolitan-district-council/walsall,WC76-551,31/01/2017,Change and Governance,BRITISH GAS BUSINESS,31/01/2017,"-10,936.45",42000-GAS-ENERGY COSTS,CENTRAL OFFICE ACCOMMODATION,Premises,Revenue
Walsall Council,http://opendatacommunities.org/id/metropolitan-district-council/walsall,WC76-552,31/01/2017,Change and Governance,BRITISH GAS BUSINESS,31/01/2017,"-9,266.18",42000-GAS-ENERGY COSTS,CENTRAL OFFICE ACCOMMODATION,Premises,Revenue
Walsall Council,http://opendatacommunities.org/id/metropolitan-district-council/walsall,WC76-553,31/01/2017,Change and Governance,BRITISH GAS BUSINESS,31/01/2017,"-8,651.01",42000-GAS-ENERGY COSTS,CENTRAL OFFICE ACCOMMODATION,Premises,Revenue
Walsall Council,http://opendatacommunities.org/id/metropolitan-district-council/walsall,WC76-554,31/01/2017,Change and Governance,BRITISH GAS BUSINESS,31/01/2017,"-6,789.51",42000-GAS-ENERGY COSTS,CENTRAL OFFICE ACCOMMODATION,Premises,Revenue
Walsall Council,http://opendatacommunities.org/id/metropolitan-district-council/walsall,WC76-555,31/01/2017,Change and Governance,BRITISH GAS BUSINESS,31/01/2017,"-6,036.43",42000-GAS-ENERGY COSTS,CENTRAL OFFICE ACCOMMODATION,Premises,Revenue
Walsall Council,http://opendatacommunities.org/id/metropolitan-district-council/walsall,WC76-556,31/01/2017,Change and Governance,BRITISH GAS BUSINESS,31/01/2017,"-5,536.86",42000-GAS-ENERGY COSTS,CENTRAL OFFICE ACCOMMODATION,Premises,Revenue
Walsall Council,http://opendatacommunities.org/id/metropolitan-district-council/walsall,WC76-557,31/01/2017,Change and Governance,BRITISH GAS BUSINESS,31/01/2017,"-3,779.56",42000-GAS-ENERGY COSTS,CENTRAL OFFICE ACCOMMODATION,Premises,Revenue
Walsall Council,http://opendatacommunities.org/id/metropolitan-district-council/walsall,WC76-558,31/01/2017,Change and Governance,BRITISH GAS BUSINESS,31/01/2017,"-3,372.50",42000-GAS-ENERGY COSTS,CENTRALISED ENERGY,Premises,Revenue
Walsall Council,http://opendatacommunities.org/id/metropolitan-district-council/walsall,WC76-559,31/01/2017,Change and Governance,BRITISH GAS BUSINESS,31/01/2017,"-3,328.61",42000-GAS-ENERGY COSTS,CENTRAL OFFICE ACCOMMODATION,Premises,Revenue
Walsall Council,http://opendatacommunities.org/id/metropolitan-district-council/walsall,WC76-560,31/01/2017,Change and Governance,BRITISH GAS BUSINESS,12/01/2017,"-3,263.37",42000-GAS-ENERGY COSTS,CENTRALISED ENERGY,Premises,Revenue
Walsall Council,http://opendatacommunities.org/id/metropolitan-district-council/walsall,WC76-561,31/01/2017,Change and Governance,BRITISH GAS BUSINESS,31/01/2017,"-1,169.47",42000-GAS-ENERGY COSTS,CENTRAL OFFICE ACCOMMODATION,Premises,Revenue
Walsall Council,http://opendatacommunities.org/id/metropolitan-district-council/walsall,WC76-562,31/01/2017,Change and Governance,BRITISH GAS BUSINESS,31/01/2017,"-1,028.17",42000-GAS-ENERGY COSTS,CENTRAL OFFICE ACCOMMODATION,Premises,Revenue
Walsall Council,http://opendatacommunities.org/id/metropolitan-district-council/walsall,WC76-563,31/01/2017,Change and Governance,BRITISH GAS BUSINESS,31/01/2017,"-1,003.06",42000-GAS-ENERGY COSTS,CENTRAL OFFICE ACCOMMODATION,Premises,Revenue
Walsall Council,http://opendatacommunities.org/id/metropolitan-district-council/walsall,WC76-564,31/01/2017,Change and Governance,BRITISH GAS BUSINESS,31/01/2017,-983.56,42000-GAS-ENERGY COSTS,CENTRAL OFFICE ACCOMMODATION,Premises,Revenue
Walsall Council,http://opendatacommunities.org/id/metropolitan-district-council/walsall,WC76-565,31/01/2017,Change and Governance,BRITISH GAS BUSINESS,31/01/2017,-839.27,42000-GAS-ENERGY COSTS,CENTRAL OFFICE ACCOMMODATION,Premises,Revenue
Walsall Council,http://opendatacommunities.org/id/metropolitan-district-council/walsall,WC76-566,31/01/2017,Change and Governance,BRITISH GAS BUSINESS,12/01/2017,-362.76,42000-GAS-ENERGY COSTS,CENTRAL OFFICE ACCOMMODATION,Premises,Revenue
Walsall Council,http://opendatacommunities.org/id/metropolitan-district-council/walsall,WC76-567,31/01/2017,Change and Governance,BRITISH GAS BUSINESS,24/01/2017,-310.18,42000-GAS-ENERGY COSTS,RECHARGEABLE UTILITIES,Premises,Revenue
Walsall Council,http://opendatacommunities.org/id/metropolitan-district-council/walsall,WC76-568,31/01/2017,Change and Governance,BRITISH GAS BUSINESS,24/01/2017,-223.83,42000-GAS-ENERGY COSTS,REDUNDANT BUILDINGS,Premises,Revenue
Walsall Council,http://opendatacommunities.org/id/metropolitan-district-council/walsall,WC76-569,31/01/2017,Change and Governance,BRITISH GAS BUSINESS,12/01/2017,211.62,42000-GAS-ENERGY COSTS,CENTRALISED ENERGY,Premises,Revenue
Walsall Council,http://opendatacommunities.org/id/metropolitan-district-council/walsall,WC76-570,31/01/2017,Change and Governance,BRITISH GAS BUSINESS,12/01/2017,218.62,42000-GAS-ENERGY COSTS,CENTRALISED ENERGY,Premises,Revenue
Walsall Council,http://opendatacommunities.org/id/metropolitan-district-council/walsall,WC76-571,31/01/2017,Change and Governance,BRITISH GAS BUSINESS,31/01/2017,224.31,42000-GAS-ENERGY COSTS,CENTRALISED ENERGY,Premises,Revenue
Walsall Council,http://opendatacommunities.org/id/metropolitan-district-council/walsall,WC76-572,31/01/2017,Change and Governance,BRITISH GAS BUSINESS,12/01/2017,226.81,42000-GAS-ENERGY COSTS,CENTRALISED ENERGY,Premises,Revenue
Walsall Council,http://opendatacommunities.org/id/metropolitan-district-council/walsall,WC76-573,31/01/2017,Change and Governance,BRITISH GAS BUSINESS,12/01/2017,232.43,42000-GAS-ENERGY COSTS,CENTRALISED ENERGY,Premises,Revenue
Walsall Council,http://opendatacommunities.org/id/metropolitan-district-council/walsall,WC76-574,31/01/2017,Change and Governance,BRITISH GAS BUSINESS,31/01/2017,234.65,42000-GAS-ENERGY COSTS,CENTRALISED ENERGY,Premises,Revenue
Walsall Council,http://opendatacommunities.org/id/metropolitan-district-council/walsall,WC76-575,31/01/2017,Change and Governance,BRITISH GAS BUSINESS,12/01/2017,235.62,42000-GAS-ENERGY COSTS,REDUNDANT BUILDINGS,Premises,Revenue
Walsall Council,http://opendatacommunities.org/id/metropolitan-district-council/walsall,WC76-576,31/01/2017,Change and Governance,BRITISH GAS BUSINESS,31/01/2017,245.41,42000-GAS-ENERGY COSTS,CENTRALISED ENERGY,Premises,Revenue
Walsall Council,http://opendatacommunities.org/id/metropolitan-district-council/walsall,WC76-577,31/01/2017,Change and Governance,BRITISH GAS BUSINESS,31/01/2017,249.81,42000-GAS-ENERGY COSTS,CENTRALISED ENERGY,Premises,Revenue
Walsall Council,http://opendatacommunities.org/id/metropolitan-district-council/walsall,WC76-578,31/01/2017,Change and Governance,BRITISH GAS BUSINESS,12/01/2017,252.60,42000-GAS-ENERGY COSTS,CENTRALISED ENERGY,Premises,Revenue
Walsall Council,http://opendatacommunities.org/id/metropolitan-district-council/walsall,WC76-579,31/01/2017,Change and Governance,BRITISH GAS BUSINESS,12/01/2017,252.63,42000-GAS-ENERGY COSTS,CENTRALISED ENERGY,Premises,Revenue
Walsall Council,http://opendatacommunities.org/id/metropolitan-district-council/walsall,WC76-580,31/01/2017,Change and Governance,BRITISH GAS BUSINESS,31/01/2017,261.75,42000-GAS-ENERGY COSTS,REDUNDANT BUILDINGS,Premises,Revenue
Walsall Council,http://opendatacommunities.org/id/metropolitan-district-council/walsall,WC76-581,31/01/2017,Change and Governance,BRITISH GAS BUSINESS,12/01/2017,262.55,42000-GAS-ENERGY COSTS,CENTRALISED ENERGY,Premises,Revenue
Walsall Council,http://opendatacommunities.org/id/metropolitan-district-council/walsall,WC76-582,31/01/2017,Change and Governance,BRITISH GAS BUSINESS,31/01/2017,262.55,42000-GAS-ENERGY COSTS,CENTRALISED ENERGY,Premises,Revenue
Walsall Council,http://opendatacommunities.org/id/metropolitan-district-council/walsall,WC76-583,31/01/2017,Change and Governance,BRITISH GAS BUSINESS,12/01/2017,264.16,42000-GAS-ENERGY COSTS,CENTRALISED ENERGY,Premises,Revenue
Walsall Council,http://opendatacommunities.org/id/metropolitan-district-council/walsall,WC76-584,31/01/2017,Change and Governance,BRITISH GAS BUSINESS,31/01/2017,267.56,42000-GAS-ENERGY COSTS,RECHARGEABLE UTILITIES,Premises,Revenue
Walsall Council,http://opendatacommunities.org/id/metropolitan-district-council/walsall,WC76-585,31/01/2017,Change and Governance,BRITISH GAS BUSINESS,31/01/2017,273.48,42000-GAS-ENERGY COSTS,CENTRALISED ENERGY,Premises,Revenue
Walsall Council,http://opendatacommunities.org/id/metropolitan-district-council/walsall,WC76-586,31/01/2017,Change and Governance,BRITISH GAS BUSINESS,31/01/2017,274.16,42000-GAS-ENERGY COSTS,CENTRALISED ENERGY,Premises,Revenue
Walsall Council,http://opendatacommunities.org/id/metropolitan-district-council/walsall,WC76-587,31/01/2017,Change and Governance,BRITISH GAS BUSINESS,31/01/2017,275.33,42000-GAS-ENERGY COSTS,CENTRALISED ENERGY,Premises,Revenue
Walsall Council,http://opendatacommunities.org/id/metropolitan-district-council/walsall,WC76-588,31/01/2017,Change and Governance,BRITISH GAS BUSINESS,12/01/2017,279.88,42000-GAS-ENERGY COSTS,CENTRALISED ENERGY,Premises,Revenue
Walsall Council,http://opendatacommunities.org/id/metropolitan-district-council/walsall,WC76-589,31/01/2017,Change and Governance,BRITISH GAS BUSINESS,31/01/2017,283.03,42000-GAS-ENERGY COSTS,CENTRALISED ENERGY,Premises,Revenue
Walsall Council,http://opendatacommunities.org/id/metropolitan-district-council/walsall,WC76-590,31/01/2017,Change and Governance,BRITISH GAS BUSINESS,12/01/2017,288.07,42000-GAS-ENERGY COSTS,CENTRALISED ENERGY,Premises,Revenue
Walsall Council,http://opendatacommunities.org/id/metropolitan-district-council/walsall,WC76-591,31/01/2017,Change and Governance,BRITISH GAS BUSINESS,12/01/2017,293.25,42000-GAS-ENERGY COSTS,CENTRALISED ENERGY,Premises,Revenue
Walsall Council,http://opendatacommunities.org/id/metropolitan-district-council/walsall,WC76-592,31/01/2017,Change and Governance,BRITISH GAS BUSINESS,24/01/2017,293.83,42000-GAS-ENERGY COSTS,CENTRALISED ENERGY,Premises,Revenue
Walsall Council,http://opendatacommunities.org/id/metropolitan-district-council/walsall,WC76-593,31/01/2017,Change and Governance,BRITISH GAS BUSINESS,12/01/2017,294.41,42000-GAS-ENERGY COSTS,CENTRALISED ENERGY,Premises,Revenue
Walsall Council,http://opendatacommunities.org/id/metropolitan-district-council/walsall,WC76-594,31/01/2017,Change and Governance,BRITISH GAS BUSINESS,12/01/2017,297.71,42000-GAS-ENERGY COSTS,RECHARGEABLE UTILITIES,Premises,Revenue
Walsall Council,http://opendatacommunities.org/id/metropolitan-district-council/walsall,WC76-595,31/01/2017,Change and Governance,BRITISH GAS BUSINESS,31/01/2017,297.80,42000-GAS-ENERGY COSTS,CENTRALISED ENERGY,Premises,Revenue
Walsall Council,http://opendatacommunities.org/id/metropolitan-district-council/walsall,WC76-596,31/01/2017,Change and Governance,BRITISH GAS BUSINESS,31/01/2017,300.78,42000-GAS-ENERGY COSTS,CENTRALISED ENERGY,Premises,Revenue
Walsall Council,http://opendatacommunities.org/id/metropolitan-district-council/walsall,WC76-597,31/01/2017,Change and Governance,BRITISH GAS BUSINESS,12/01/2017,303.71,42000-GAS-ENERGY COSTS,REDUNDANT BUILDINGS,Premises,Revenue
Walsall Council,http://opendatacommunities.org/id/metropolitan-district-council/walsall,WC76-598,31/01/2017,Change and Governance,BRITISH GAS BUSINESS,31/01/2017,309.36,42000-GAS-ENERGY COSTS,CENTRALISED ENERGY,Premises,Revenue
Walsall Council,http://opendatacommunities.org/id/metropolitan-district-council/walsall,WC76-599,31/01/2017,Change and Governance,BRITISH GAS BUSINESS,31/01/2017,309.63,42000-GAS-ENERGY COSTS,CENTRALISED ENERGY,Premises,Revenue
Walsall Council,http://opendatacommunities.org/id/metropolitan-district-council/walsall,WC76-600,31/01/2017,Change and Governance,BRITISH GAS BUSINESS,24/01/2017,310.14,42000-GAS-ENERGY COSTS,RECHARGEABLE UTILITIES,Premises,Revenue
Walsall Council,http://opendatacommunities.org/id/metropolitan-district-council/walsall,WC76-601,31/01/2017,Change and Governance,BRITISH GAS BUSINESS,31/01/2017,311.01,42000-GAS-ENERGY COSTS,CENTRALISED ENERGY,Premises,Revenue
Walsall Council,http://opendatacommunities.org/id/metropolitan-district-council/walsall,WC76-602,31/01/2017,Childrens,BRITISH GAS BUSINESS,09/01/2017,313.36,42000-GAS-ENERGY COSTS,LOCALITY FAMILY SUPPORT-NORTH,Premises,Revenue
Walsall Council,http://opendatacommunities.org/id/metropolitan-district-council/walsall,WC76-603,31/01/2017,Childrens,BRITISH GAS BUSINESS,11/01/2017,325.05,42000-GAS-ENERGY COSTS,LOCALITY FAMILY SUPPORT-WEST,Premises,Revenue
Walsall Council,http://opendatacommunities.org/id/metropolitan-district-council/walsall,WC76-604,31/01/2017,Change and Governance,BRITISH GAS BUSINESS,12/01/2017,352.08,42000-GAS-ENERGY COSTS,CENTRALISED ENERGY,Premises,Revenue
Walsall Council,http://opendatacommunities.org/id/metropolitan-district-council/walsall,WC76-605,31/01/2017,Change and Governance,BRITISH GAS BUSINESS,31/01/2017,354.42,42000-GAS-ENERGY COSTS,REDUNDANT BUILDINGS,Premises,Revenue
Walsall Council,http://opendatacommunities.org/id/metropolitan-district-council/walsall,WC76-606,31/01/2017,Change and Governance,BRITISH GAS BUSINESS,24/01/2017,361.10,42000-GAS-ENERGY COSTS,REDUNDANT BUILDINGS,Premises,Revenue
Walsall Council,http://opendatacommunities.org/id/metropolitan-district-council/walsall,WC76-607,31/01/2017,Change and Governance,BRITISH GAS BUSINESS,12/01/2017,362.17,42000-GAS-ENERGY COSTS,CENTRALISED ENERGY,Premises,Revenue
Walsall Council,http://opendatacommunities.org/id/metropolitan-district-council/walsall,WC76-608,31/01/2017,Change and Governance,BRITISH GAS BUSINESS,31/01/2017,367.33,42000-GAS-ENERGY COSTS,CENTRALISED ENERGY,Premises,Revenue
Walsall Council,http://opendatacommunities.org/id/metropolitan-district-council/walsall,WC76-609,31/01/2017,Change and Governance,BRITISH GAS BUSINESS,31/01/2017,376.31,42000-GAS-ENERGY COSTS,CENTRALISED ENERGY,Premises,Revenue
Walsall Council,http://opendatacommunities.org/id/metropolitan-district-council/walsall,WC76-610,31/01/2017,Change and Governance,BRITISH GAS BUSINESS,31/01/2017,386.50,42000-GAS-ENERGY COSTS,CENTRALISED ENERGY,Premises,Revenue
Walsall Council,http://opendatacommunities.org/id/metropolitan-district-council/walsall,WC76-611,31/01/2017,Change and Governance,BRITISH GAS BUSINESS,31/01/2017,393.20,42000-GAS-ENERGY COSTS,CENTRALISED ENERGY,Premises,Revenue
Walsall Council,http://opendatacommunities.org/id/metropolitan-district-council/walsall,WC76-612,31/01/2017,Change and Governance,BRITISH GAS BUSINESS,12/01/2017,398.55,42000-GAS-ENERGY COSTS,CENTRALISED ENERGY,Premises,Revenue
Walsall Council,http://opendatacommunities.org/id/metropolitan-district-council/walsall,WC76-613,31/01/2017,Change and Governance,BRITISH GAS BUSINESS,12/01/2017,411.31,42000-GAS-ENERGY COSTS,CENTRALISED ENERGY,Premises,Revenue
Walsall Council,http://opendatacommunities.org/id/metropolitan-district-council/walsall,WC76-614,31/01/2017,Change and Governance,BRITISH GAS BUSINESS,31/01/2017,444.83,42000-GAS-ENERGY COSTS,CENTRALISED ENERGY,Premises,Revenue
Walsall Council,http://opendatacommunities.org/id/metropolitan-district-council/walsall,WC76-615,31/01/2017,Change and Governance,BRITISH GAS BUSINESS,12/01/2017,458.45,42000-GAS-ENERGY COSTS,CENTRALISED ENERGY,Premises,Revenue
Walsall Council,http://opendatacommunities.org/id/metropolitan-district-council/walsall,WC76-616,31/01/2017,Change and Governance,BRITISH GAS BUSINESS,31/01/2017,462.72,42000-GAS-ENERGY COSTS,CENTRALISED ENERGY,Premises,Revenue
Walsall Council,http://opendatacommunities.org/id/metropolitan-district-council/walsall,WC76-617,31/01/2017,Change and Governance,BRITISH GAS BUSINESS,12/01/2017,465.17,42000-GAS-ENERGY COSTS,CENTRALISED ENERGY,Premises,Revenue
Walsall Council,http://opendatacommunities.org/id/metropolitan-district-council/walsall,WC76-618,31/01/2017,Change and Governance,BRITISH GAS BUSINESS,11/01/2017,482.49,42000-GAS-ENERGY COSTS,CENTRALISED ENERGY,Premises,Revenue
Walsall Council,http://opendatacommunities.org/id/metropolitan-district-council/walsall,WC76-619,31/01/2017,Change and Governance,BRITISH GAS BUSINESS,11/01/2017,485.15,42000-GAS-ENERGY COSTS,CENTRALISED ENERGY,Premises,Revenue
Walsall Council,http://opendatacommunities.org/id/metropolitan-district-council/walsall,WC76-620,31/01/2017,Change and Governance,BRITISH GAS BUSINESS,31/01/2017,492.36,42000-GAS-ENERGY COSTS,CENTRALISED ENERGY,Premises,Revenue
Walsall Council,http://opendatacommunities.org/id/metropolitan-district-council/walsall,WC76-621,31/01/2017,Change and Governance,BRITISH GAS BUSINESS,31/01/2017,505.33,42000-GAS-ENERGY COSTS,CENTRALISED ENERGY,Premises,Revenue
Walsall Council,http://opendatacommunities.org/id/metropolitan-district-council/walsall,WC76-622,31/01/2017,Change and Governance,BRITISH GAS BUSINESS,12/01/2017,544.74,42000-GAS-ENERGY COSTS,CENTRALISED ENERGY,Premises,Revenue
Walsall Council,http://opendatacommunities.org/id/metropolitan-district-council/walsall,WC76-623,31/01/2017,Change and Governance,BRITISH GAS BUSINESS,31/01/2017,554.77,42000-GAS-ENERGY COSTS,CENTRAL OFFICE ACCOMMODATION,Premises,Revenue
Walsall Council,http://opendatacommunities.org/id/metropolitan-district-council/walsall,WC76-624,31/01/2017,Change and Governance,BRITISH GAS BUSINESS,31/01/2017,591.62,42000-GAS-ENERGY COSTS,CENTRALISED ENERGY,Premises,Revenue
Walsall Council,http://opendatacommunities.org/id/metropolitan-district-council/walsall,WC76-625,31/01/2017,Change and Governance,BRITISH GAS BUSINESS,31/01/2017,599.48,42000-GAS-ENERGY COSTS,CENTRALISED ENERGY,Premises,Revenue
Walsall Council,http://opendatacommunities.org/id/metropolitan-district-council/walsall,WC76-626,31/01/2017,Change and Governance,BRITISH GAS BUSINESS,12/01/2017,601.35,42000-GAS-ENERGY COSTS,CENTRALISED ENERGY,Premises,Revenue
Walsall Council,http://opendatacommunities.org/id/metropolitan-district-council/walsall,WC76-627,31/01/2017,Change and Governance,BRITISH GAS BUSINESS,31/01/2017,618.30,42000-GAS-ENERGY COSTS,CENTRAL OFFICE ACCOMMODATION,Premises,Revenue
Walsall Council,http://opendatacommunities.org/id/metropolitan-district-council/walsall,WC76-628,31/01/2017,Change and Governance,BRITISH GAS BUSINESS,24/01/2017,618.56,42000-GAS-ENERGY COSTS,WALSALL TOWN HALL,Premises,Revenue
Walsall Council,http://opendatacommunities.org/id/metropolitan-district-council/walsall,WC76-629,31/01/2017,Change and Governance,BRITISH GAS BUSINESS,31/01/2017,646.02,42000-GAS-ENERGY COSTS,CENTRALISED ENERGY,Premises,Revenue
Walsall Council,http://opendatacommunities.org/id/metropolitan-district-council/walsall,WC76-630,31/01/2017,Change and Governance,BRITISH GAS BUSINESS,11/01/2017,671.25,42000-GAS-ENERGY COSTS,CENTRALISED ENERGY,Premises,Revenue
Walsall Council,http://opendatacommunities.org/id/metropolitan-district-council/walsall,WC76-631,31/01/2017,Change and Governance,BRITISH GAS BUSINESS,12/01/2017,708.57,42000-GAS-ENERGY COSTS,REDUNDANT BUILDINGS,Premises,Revenue
Walsall Council,http://opendatacommunities.org/id/metropolitan-district-council/walsall,WC76-632,31/01/2017,Change and Governance,BRITISH GAS BUSINESS,31/01/2017,722.54,42000-GAS-ENERGY COSTS,CENTRAL OFFICE ACCOMMODATION,Premises,Revenue
Walsall Council,http://opendatacommunities.org/id/metropolitan-district-council/walsall,WC76-633,31/01/2017,Change and Governance,BRITISH GAS BUSINESS,31/01/2017,808.43,42000-GAS-ENERGY COSTS,CENTRAL OFFICE ACCOMMODATION,Premises,Revenue
Walsall Council,http://opendatacommunities.org/id/metropolitan-district-council/walsall,WC76-634,31/01/2017,Change and Governance,BRITISH GAS BUSINESS,31/01/2017,811.90,42000-GAS-ENERGY COSTS,CENTRALISED ENERGY,Premises,Revenue
Walsall Council,http://opendatacommunities.org/id/metropolitan-district-council/walsall,WC76-635,31/01/2017,Change and Governance,BRITISH GAS BUSINESS,31/01/2017,817.47,42000-GAS-ENERGY COSTS,CENTRAL OFFICE ACCOMMODATION,Premises,Revenue
Walsall Council,http://opendatacommunities.org/id/metropolitan-district-council/walsall,WC76-636,31/01/2017,Change and Governance,BRITISH GAS BUSINESS,12/01/2017,828.12,42000-GAS-ENERGY COSTS,CENTRALISED ENERGY,Premises,Revenue
Walsall Council,http://opendatacommunities.org/id/metropolitan-district-council/walsall,WC76-637,31/01/2017,Change and Governance,BRITISH GAS BUSINESS,31/01/2017,852.50,42000-GAS-ENERGY COSTS,CENTRAL OFFICE ACCOMMODATION,Premises,Revenue
Walsall Council,http://opendatacommunities.org/id/metropolitan-district-council/walsall,WC76-638,31/01/2017,Change and Governance,BRITISH GAS BUSINESS,31/01/2017,852.73,42000-GAS-ENERGY COSTS,CENTRAL OFFICE ACCOMMODATION,Premises,Revenue
Walsall Council,http://opendatacommunities.org/id/metropolitan-district-council/walsall,WC76-639,31/01/2017,Change and Governance,BRITISH GAS BUSINESS,31/01/2017,872.36,42000-GAS-ENERGY COSTS,CENTRAL OFFICE ACCOMMODATION,Premises,Revenue
Walsall Council,http://opendatacommunities.org/id/metropolitan-district-council/walsall,WC76-640,31/01/2017,Change and Governance,BRITISH GAS BUSINESS,31/01/2017,910.47,42000-GAS-ENERGY COSTS,RECHARGEABLE UTILITIES,Premises,Revenue
Walsall Council,http://opendatacommunities.org/id/metropolitan-district-council/walsall,WC76-641,31/01/2017,Change and Governance,BRITISH GAS BUSINESS,31/01/2017,930.60,42000-GAS-ENERGY COSTS,RECHARGEABLE UTILITIES,Premises,Revenue
Walsall Council,http://opendatacommunities.org/id/metropolitan-district-council/walsall,WC76-642,31/01/2017,Change and Governance,BRITISH GAS BUSINESS,12/01/2017,"1,032.52",42000-GAS-ENERGY COSTS,CENTRALISED ENERGY,Premises,Revenue
Walsall Council,http://opendatacommunities.org/id/metropolitan-district-council/walsall,WC76-643,31/01/2017,Change and Governance,BRITISH GAS BUSINESS,31/01/2017,"1,043.91",42000-GAS-ENERGY COSTS,CENTRALISED ENERGY,Premises,Revenue
Walsall Council,http://opendatacommunities.org/id/metropolitan-district-council/walsall,WC76-644,31/01/2017,Change and Governance,BRITISH GAS BUSINESS,31/01/2017,"1,054.88",42000-GAS-ENERGY COSTS,RECHARGEABLE UTILITIES,Premises,Revenue
Walsall Council,http://opendatacommunities.org/id/metropolitan-district-council/walsall,WC76-645,31/01/2017,Change and Governance,BRITISH GAS BUSINESS,12/01/2017,"1,068.85",42000-GAS-ENERGY COSTS,RECHARGEABLE UTILITIES,Premises,Revenue
Walsall Council,http://opendatacommunities.org/id/metropolitan-district-council/walsall,WC76-646,31/01/2017,Change and Governance,BRITISH GAS BUSINESS,12/01/2017,"1,100.81",42000-GAS-ENERGY COSTS,DARLASTON TOWN HALL,Premises,Revenue
Walsall Council,http://opendatacommunities.org/id/metropolitan-district-council/walsall,WC76-647,31/01/2017,Change and Governance,BRITISH GAS BUSINESS,31/01/2017,"1,136.02",42000-GAS-ENERGY COSTS,DARLASTON TOWN HALL,Premises,Revenue
Walsall Council,http://opendatacommunities.org/id/metropolitan-district-council/walsall,WC76-648,31/01/2017,Change and Governance,BRITISH GAS BUSINESS,12/01/2017,"1,182.78",42000-GAS-ENERGY COSTS,CENTRALISED ENERGY,Premises,Revenue
Walsall Council,http://opendatacommunities.org/id/metropolitan-district-council/walsall,WC76-649,31/01/2017,Change and Governance,BRITISH GAS BUSINESS,31/01/2017,"1,193.03",42000-GAS-ENERGY COSTS,CENTRALISED ENERGY,Premises,Revenue
Walsall Council,http://opendatacommunities.org/id/metropolitan-district-council/walsall,WC76-650,31/01/2017,Change and Governance,BRITISH GAS BUSINESS,31/01/2017,"1,220.52",42000-GAS-ENERGY COSTS,RECHARGEABLE UTILITIES,Premises,Revenue
Walsall Council,http://opendatacommunities.org/id/metropolitan-district-council/walsall,WC76-651,31/01/2017,Change and Governance,BRITISH GAS BUSINESS,12/01/2017,"1,258.28",42000-GAS-ENERGY COSTS,CENTRAL OFFICE ACCOMMODATION,Premises,Revenue
Walsall Council,http://opendatacommunities.org/id/metropolitan-district-council/walsall,WC76-652,31/01/2017,Change and Governance,BRITISH GAS BUSINESS,12/01/2017,"1,284.60",42000-GAS-ENERGY COSTS,RECHARGEABLE UTILITIES,Premises,Revenue
Walsall Council,http://opendatacommunities.org/id/metropolitan-district-council/walsall,WC76-653,31/01/2017,Change and Governance,BRITISH GAS BUSINESS,12/01/2017,"1,387.77",42000-GAS-ENERGY COSTS,RECHARGEABLE UTILITIES,Premises,Revenue
Walsall Council,http://opendatacommunities.org/id/metropolitan-district-council/walsall,WC76-654,31/01/2017,Change and Governance,BRITISH GAS BUSINESS,31/01/2017,"1,435.48",42000-GAS-ENERGY COSTS,CENTRALISED ENERGY,Premises,Revenue
Walsall Council,http://opendatacommunities.org/id/metropolitan-district-council/walsall,WC76-655,31/01/2017,Change and Governance,BRITISH GAS BUSINESS,12/01/2017,"1,449.46",42000-GAS-ENERGY COSTS,CENTRALISED ENERGY,Premises,Revenue
Walsall Council,http://opendatacommunities.org/id/metropolitan-district-council/walsall,WC76-656,31/01/2017,Change and Governance,BRITISH GAS BUSINESS,18/01/2017,"1,467.16",42000-GAS-ENERGY COSTS,CENTRALISED ENERGY,Premises,Revenue
Walsall Council,http://opendatacommunities.org/id/metropolitan-district-council/walsall,WC76-657,31/01/2017,Change and Governance,BRITISH GAS BUSINESS,11/01/2017,"1,572.78",42000-GAS-ENERGY COSTS,CENTRALISED ENERGY,Premises,Revenue
Walsall Council,http://opendatacommunities.org/id/metropolitan-district-council/walsall,WC76-658,31/01/2017,Change and Governance,BRITISH GAS BUSINESS,12/01/2017,"1,648.66",42000-GAS-ENERGY COSTS,CHALLENGE BUILDING,Premises,Revenue
Walsall Council,http://opendatacommunities.org/id/metropolitan-district-council/walsall,WC76-659,31/01/2017,Change and Governance,BRITISH GAS BUSINESS,31/01/2017,"1,737.72",42000-GAS-ENERGY COSTS,CHALLENGE BUILDING,Premises,Revenue
Walsall Council,http://opendatacommunities.org/id/metropolitan-district-council/walsall,WC76-660,31/01/2017,Change and Governance,BRITISH GAS BUSINESS,12/01/2017,"1,839.61",42000-GAS-ENERGY COSTS,CENTRALISED ENERGY,Premises,Revenue
Walsall Council,http://opendatacommunities.org/id/metropolitan-district-council/walsall,WC76-661,31/01/2017,Change and Governance,BRITISH GAS BUSINESS,12/01/2017,"2,024.65",42000-GAS-ENERGY COSTS,CENTRAL OFFICE ACCOMMODATION,Premises,Revenue
Walsall Council,http://opendatacommunities.org/id/metropolitan-district-council/walsall,WC76-662,31/01/2017,Change and Governance,BRITISH GAS BUSINESS,31/01/2017,"2,044.80",42000-GAS-ENERGY COSTS,CENTRAL OFFICE ACCOMMODATION,Premises,Revenue
Walsall Council,http://opendatacommunities.org/id/metropolitan-district-council/walsall,WC76-663,31/01/2017,Change and Governance,BRITISH GAS BUSINESS,31/01/2017,"3,112.85",42000-GAS-ENERGY COSTS,CENTRAL OFFICE ACCOMMODATION,Premises,Revenue
Walsall Council,http://opendatacommunities.org/id/metropolitan-district-council/walsall,WC76-664,31/01/2017,Change and Governance,BRITISH GAS BUSINESS,31/01/2017,"3,367.75",42000-GAS-ENERGY COSTS,CENTRALISED ENERGY,Premises,Revenue
Walsall Council,http://opendatacommunities.org/id/metropolitan-district-council/walsall,WC76-665,31/01/2017,Change and Governance,BRITISH GAS BUSINESS,31/01/2017,"3,372.50",42000-GAS-ENERGY COSTS,CENTRALISED ENERGY,Premises,Revenue
Walsall Council,http://opendatacommunities.org/id/metropolitan-district-council/walsall,WC76-666,31/01/2017,Change and Governance,BRITISH GAS BUSINESS,31/01/2017,"3,474.12",42000-GAS-ENERGY COSTS,CENTRAL OFFICE ACCOMMODATION,Premises,Revenue
Walsall Council,http://opendatacommunities.org/id/metropolitan-district-council/walsall,WC76-667,31/01/2017,Change and Governance,BRITISH GAS BUSINESS,12/01/2017,"4,003.17",42000-GAS-ENERGY COSTS,CENTRALISED ENERGY,Premises,Revenue
Walsall Council,http://opendatacommunities.org/id/metropolitan-district-council/walsall,WC76-668,31/01/2017,Change and Governance,BRITISH GAS BUSINESS,12/01/2017,"4,028.67",42000-GAS-ENERGY COSTS,WALSALL TOWN HALL,Premises,Revenue
Walsall Council,http://opendatacommunities.org/id/metropolitan-district-council/walsall,WC76-669,31/01/2017,Change and Governance,BRITISH GAS BUSINESS,12/01/2017,"4,052.67",42000-GAS-ENERGY COSTS,CENTRALISED ENERGY,Premises,Revenue
Walsall Council,http://opendatacommunities.org/id/metropolitan-district-council/walsall,WC76-670,31/01/2017,Change and Governance,BRITISH GAS BUSINESS,12/01/2017,"4,087.92",42000-GAS-ENERGY COSTS,CENTRALISED ENERGY,Premises,Revenue
Walsall Council,http://opendatacommunities.org/id/metropolitan-district-council/walsall,WC76-671,31/01/2017,Change and Governance,BRITISH GAS BUSINESS,31/01/2017,"4,168.65",42000-GAS-ENERGY COSTS,WALSALL TOWN HALL,Premises,Revenue
Walsall Council,http://opendatacommunities.org/id/metropolitan-district-council/walsall,WC76-672,31/01/2017,Change and Governance,BRITISH GAS BUSINESS,31/01/2017,"5,062.70",42000-GAS-ENERGY COSTS,CENTRALISED ENERGY,Premises,Revenue
Walsall Council,http://opendatacommunities.org/id/metropolitan-district-council/walsall,WC76-673,31/01/2017,Change and Governance,BRITISH GAS BUSINESS,31/01/2017,"5,408.90",42000-GAS-ENERGY COSTS,CENTRALISED ENERGY,Premises,Revenue
Walsall Council,http://opendatacommunities.org/id/metropolitan-district-council/walsall,WC76-674,31/01/2017,Change and Governance,BRITISH GAS BUSINESS,31/01/2017,"5,536.86",42000-GAS-ENERGY COSTS,CENTRAL OFFICE ACCOMMODATION,Premises,Revenue
Walsall Council,http://opendatacommunities.org/id/metropolitan-district-council/walsall,WC76-675,31/01/2017,Change and Governance,BRITISH GAS BUSINESS,31/01/2017,"5,560.61",42000-GAS-ENERGY COSTS,CENTRAL OFFICE ACCOMMODATION,Premises,Revenue
Walsall Council,http://opendatacommunities.org/id/metropolitan-district-council/walsall,WC76-676,31/01/2017,Change and Governance,BRITISH GAS BUSINESS,31/01/2017,"5,594.83",42000-GAS-ENERGY COSTS,RECHARGEABLE UTILITIES,Premises,Revenue
Walsall Council,http://opendatacommunities.org/id/metropolitan-district-council/walsall,WC76-677,31/01/2017,Change and Governance,BRITISH GAS BUSINESS,31/01/2017,"5,695.68",42000-GAS-ENERGY COSTS,CENTRAL OFFICE ACCOMMODATION,Premises,Revenue
Walsall Council,http://opendatacommunities.org/id/metropolitan-district-council/walsall,WC76-678,31/01/2017,Change and Governance,BRITISH GAS BUSINESS,12/01/2017,"5,838.98",42000-GAS-ENERGY COSTS,RECHARGEABLE UTILITIES,Premises,Revenue
Walsall Council,http://opendatacommunities.org/id/metropolitan-district-council/walsall,WC76-679,31/01/2017,Change and Governance,BRITISH GAS BUSINESS,12/01/2017,"6,036.43",42000-GAS-ENERGY COSTS,CENTRAL OFFICE ACCOMMODATION,Premises,Revenue
Walsall Council,http://opendatacommunities.org/id/metropolitan-district-council/walsall,WC76-680,31/01/2017,Change and Governance,BRITISH GAS BUSINESS,31/01/2017,"6,290.48",42000-GAS-ENERGY COSTS,CENTRALISED ENERGY,Premises,Revenue
Walsall Council,http://opendatacommunities.org/id/metropolitan-district-council/walsall,WC76-681,31/01/2017,Change and Governance,BRITISH GAS BUSINESS,31/01/2017,"6,299.26",42000-GAS-ENERGY COSTS,CENTRAL OFFICE ACCOMMODATION,Premises,Revenue
Walsall Council,http://opendatacommunities.org/id/metropolitan-district-council/walsall,WC76-682,31/01/2017,Change and Governance,BRITISH GAS BUSINESS,31/01/2017,"7,905.90",42000-GAS-ENERGY COSTS,CENTRALISED ENERGY,Premises,Revenue
Walsall Council,http://opendatacommunities.org/id/metropolitan-district-council/walsall,WC76-683,31/01/2017,Change and Governance,BRITISH GAS BUSINESS,31/01/2017,"7,914.10",42000-GAS-ENERGY COSTS,CENTRAL OFFICE ACCOMMODATION,Premises,Revenue
Walsall Council,http://opendatacommunities.org/id/metropolitan-district-council/walsall,WC76-684,31/01/2017,Change and Governance,BRITISH GAS BUSINESS,31/01/2017,"8,448.88",42000-GAS-ENERGY COSTS,CENTRALISED ENERGY,Premises,Revenue
Walsall Council,http://opendatacommunities.org/id/metropolitan-district-council/walsall,WC76-685,31/01/2017,Change and Governance,BRITISH GAS BUSINESS,31/01/2017,"8,580.78",42000-GAS-ENERGY COSTS,CENTRAL OFFICE ACCOMMODATION,Premises,Revenue
Walsall Council,http://opendatacommunities.org/id/metropolitan-district-council/walsall,WC76-686,31/01/2017,Change and Governance,BRITISH GAS BUSINESS,31/01/2017,"10,219.52",42000-GAS-ENERGY COSTS,CENTRAL OFFICE ACCOMMODATION,Premises,Revenue
Walsall Council,http://opendatacommunities.org/id/metropolitan-district-council/walsall,WC76-687,31/01/2017,Change and Governance,BRITISH GAS BUSINESS,31/01/2017,"10,369.00",42000-GAS-ENERGY COSTS,CENTRAL OFFICE ACCOMMODATION,Premises,Revenue
Walsall Council,http://opendatacommunities.org/id/metropolitan-district-council/walsall,WC76-688,31/01/2017,Change and Governance,BRITISH GAS BUSINESS,31/01/2017,"11,941.90",42000-GAS-ENERGY COSTS,CENTRALISED ENERGY,Premises,Revenue
Walsall Council,http://opendatacommunities.org/id/metropolitan-district-council/walsall,WC76-689,31/01/2017,Childrens,BRITISH MUSLIM YOUTH GROUP,03/01/2017,"35,381.71",66500-GRANTS TO OTHER ORGS,CENTRAL SUPPORT,Third Party Payments,Revenue
Walsall Council,http://opendatacommunities.org/id/metropolitan-district-council/walsall,WC76-690,31/01/2017,Economy & Environment,BROADWAY PHARMACY,04/01/2017,88.50,63000-PROFESSIONAL FEES AND SERVICES,SEXUAL HEALTH,Supplies & Services,Revenue
Walsall Council,http://opendatacommunities.org/id/metropolitan-district-council/walsall,WC76-691,31/01/2017,Economy & Environment,BROADWAY PHARMACY,04/01/2017,792.39,71007-CONTRIBUTION TO PCT,PUBLIC HEALTH BUSINESS SUPPORT,Third Party Payments,Revenue
Walsall Council,http://opendatacommunities.org/id/metropolitan-district-council/walsall,WC76-692,31/01/2017,Holding Accounts,BROWNE JACOBSON SOLICITORS,18/01/2017,714.50,67001-MISC INSURANCES - PAYMENT OF CLAIMS,PUBLIC LIABILITY,Supplies & Services,Revenue
Walsall Council,http://opendatacommunities.org/id/metropolitan-district-council/walsall,WC76-693,31/01/2017,Holding Accounts,BROWNE JACOBSON SOLICITORS,27/01/2017,"2,101.00",67001-MISC INSURANCES - PAYMENT OF CLAIMS,PUBLIC LIABILITY,Supplies & Services,Revenue
Walsall Council,http://opendatacommunities.org/id/metropolitan-district-council/walsall,WC76-694,31/01/2017,Economy & Environment,BROWNHILLS ASPHALT & TARMAC LIMITED,23/01/2017,780.00,60500-GENERAL MATERIALS,CEMETERIES CENTRAL ADMINISTRATION,Supplies & Services,Revenue
Walsall Council,http://opendatacommunities.org/id/metropolitan-district-council/walsall,WC76-695,31/01/2017,Economy & Environment,BROWNHILLS ASPHALT & TARMAC LIMITED,12/01/2017,"1,100.00",60006-NEW-FURNITURE & EQUIPMENT,INFRASTRUCTURE MAINTENANCE,Supplies & Services,Revenue
Walsall Council,http://opendatacommunities.org/id/metropolitan-district-council/walsall,WC76-696,31/01/2017,Economy & Environment,BROWNHILLS ASPHALT & TARMAC LIMITED,04/01/2017,"9,202.00",60008-MAINTENANCE-FURNITURE & EQUIPMENT,BARR BEACON RESTORATION,Supplies & Services,Revenue
Walsall Council,http://opendatacommunities.org/id/metropolitan-district-council/walsall,WC76-697,31/01/2017,Change and Governance,BROWNHILLS COMMUNITY ASSOCIATION,04/01/2017,"7,000.00",66500-GRANTS TO OTHER ORGS,BROWNHILLS COMMUNITY ASSOCIATION,Third Party Payments,Revenue
Walsall Council,http://opendatacommunities.org/id/metropolitan-district-council/walsall,WC76-698,31/01/2017,Childrens,BROWNHILLS COMMUNITY ASSOCIATION,03/01/2017,"9,170.72",66505-OTHER-GRANTS TO OTHER ORGS,EARLY YEARS - 3 YR OLDS,Third Party Payments,Revenue
Walsall Council,http://opendatacommunities.org/id/metropolitan-district-council/walsall,WC76-699,31/01/2017,Childrens,BROWNHILLS COMMUNITY ASSOCIATION,03/01/2017,"10,562.40",66505-OTHER-GRANTS TO OTHER ORGS,EARLY YEARS - 2 YR OLDS,Third Party Payments,Revenue
Walsall Council,http://opendatacommunities.org/id/metropolitan-district-council/walsall,WC76-700,31/01/2017,Adult Social Care,REDACTED,09/01/2017,"1,530.00",76422-DIRECT PAYMENTS TO SOCIAL SERVICES CLIENTS,LD COMMISSIONING,Transfer Payments,Revenue
Walsall Council,http://opendatacommunities.org/id/metropolitan-district-council/walsall,WC76-701,31/01/2017,Change and Governance,REDACTED,23/01/2017,300.00,"40000-REPAIRS,ALTERATIONS & MAINTENANCE-PREM",CENTRALISED MAINTENANCE,Premises,Revenue
Walsall Council,http://opendatacommunities.org/id/metropolitan-district-council/walsall,WC76-702,31/01/2017,Economy & Environment,REDACTED,06/01/2017,"2,081.25",63000-PROFESSIONAL FEES AND SERVICES,EXTL FUNDED CREATIVE PROJECT MANAGEMENT,Supplies & Services,Revenue
Walsall Council,http://opendatacommunities.org/id/metropolitan-district-council/walsall,WC76-703,31/01/2017,Change and Governance,BT,11/01/2017,835.00,63603-COST OF CALLS-TELEPHONES,PROCESSING,Supplies & Services,Revenue
Walsall Council,http://opendatacommunities.org/id/metropolitan-district-council/walsall,WC76-704,31/01/2017,Change and Governance,BT PLC,11/01/2017,253.10,63601-COSTS (NOT INTERNAL RECHARGES)-TELEPHONES,CENTRAL COMMUNICATIONS RECHARGES,Supplies & Services,Revenue
Walsall Council,http://opendatacommunities.org/id/metropolitan-district-council/walsall,WC76-705,31/01/2017,Change and Governance,BT PLC,23/01/2017,"1,268.35",63601-COSTS (NOT INTERNAL RECHARGES)-TELEPHONES,RECHARGEABLE EQUIPMENT,Supplies & Services,Revenue
Walsall Council,http://opendatacommunities.org/id/metropolitan-district-council/walsall,WC76-706,31/01/2017,Change and Governance,BT PLC,11/01/2017,"14,763.10",63601-COSTS (NOT INTERNAL RECHARGES)-TELEPHONES,CENTRAL COMMUNICATIONS RECHARGES,Supplies & Services,Revenue
Walsall Council,http://opendatacommunities.org/id/metropolitan-district-council/walsall,WC76-707,31/01/2017,Economy & Environment,BUCHANAN COMPUTING,09/01/2017,"1,980.00",73025-PROFESSIONAL SERVICES-PRIV CONTRACTOR & OTHER AGENCIES,PARKING SERVICES OFF-STREET,Third Party Payments,Revenue
Walsall Council,http://opendatacommunities.org/id/metropolitan-district-council/walsall,WC76-708,31/01/2017,Adult Social Care,BUPA CARE HOMES (CFHCARE) LTD,03/01/2017,"1,649.80",73373-RESIDENTIAL & NURSING CARE PLACEMENTS,OP COMMISSIONING,Third Party Payments,Revenue
Walsall Council,http://opendatacommunities.org/id/metropolitan-district-council/walsall,WC76-709,31/01/2017,Adult Social Care,BUPA CARE HOMES (CFHCARE) LTD,05/01/2017,"2,199.06",73373-RESIDENTIAL & NURSING CARE PLACEMENTS,OP COMMISSIONING,Third Party Payments,Revenue
Walsall Council,http://opendatacommunities.org/id/metropolitan-district-council/walsall,WC76-710,31/01/2017,Adult Social Care,BUPA CARE HOMES (CFHCARE) LTD,03/01/2017,"3,380.20",73373-RESIDENTIAL & NURSING CARE PLACEMENTS,OP COMMISSIONING,Third Party Payments,Revenue
Walsall Council,http://opendatacommunities.org/id/metropolitan-district-council/walsall,WC76-711,31/01/2017,Adult Social Care,BUPA TRENEWYDD CARE HOME,24/01/2017,"3,454.29",73373-RESIDENTIAL & NURSING CARE PLACEMENTS,OP COMMISSIONING,Third Party Payments,Revenue
Walsall Council,http://opendatacommunities.org/id/metropolitan-district-council/walsall,WC76-712,31/01/2017,Adult Social Care,BUPA TRENEWYDD CARE HOME,24/01/2017,"3,720.00",73373-RESIDENTIAL & NURSING CARE PLACEMENTS,OP COMMISSIONING,Third Party Payments,Revenue
Walsall Council,http://opendatacommunities.org/id/metropolitan-district-council/walsall,WC76-713,31/01/2017,Childrens,BURNT TREE PRIMARY SCHOOL,20/01/2017,302.10,77300-ISB-FORMULA ALLOCATION,OUT OF BOROUGH SCHOOLS,Transfer Payments,Revenue
Walsall Council,http://opendatacommunities.org/id/metropolitan-district-council/walsall,WC76-714,31/01/2017,Childrens,BURNT TREE PRIMARY SCHOOL,13/01/2017,"1,000.00",77300-ISB-FORMULA ALLOCATION,OUT OF BOROUGH SCHOOLS,Transfer Payments,Revenue
Walsall Council,http://opendatacommunities.org/id/metropolitan-district-council/walsall,WC76-715,31/01/2017,Adult Social Care,BUSH HOME LTD,24/01/2017,694.28,73373-RESIDENTIAL & NURSING CARE PLACEMENTS,OP COMMISSIONING,Third Party Payments,Revenue
Walsall Council,http://opendatacommunities.org/id/metropolitan-district-council/walsall,WC76-716,31/01/2017,Adult Social Care,BUSH HOME LTD,24/01/2017,"1,272.85",73373-RESIDENTIAL & NURSING CARE PLACEMENTS,OP COMMISSIONING,Third Party Payments,Revenue
Walsall Council,http://opendatacommunities.org/id/metropolitan-district-council/walsall,WC76-717,31/01/2017,Adult Social Care,BUSH HOME LTD,10/01/2017,"1,620.00",73373-RESIDENTIAL & NURSING CARE PLACEMENTS,OP COMMISSIONING,Third Party Payments,Revenue
Walsall Council,http://opendatacommunities.org/id/metropolitan-district-council/walsall,WC76-718,31/01/2017,Adult Social Care,BUSH HOME LTD,10/01/2017,"1,620.00",73373-RESIDENTIAL & NURSING CARE PLACEMENTS,OP COMMISSIONING,Third Party Payments,Revenue
Walsall Council,http://opendatacommunities.org/id/metropolitan-district-council/walsall,WC76-719,31/01/2017,Adult Social Care,BUSH HOME LTD,10/01/2017,"1,620.00",73373-RESIDENTIAL & NURSING CARE PLACEMENTS,OP COMMISSIONING,Third Party Payments,Revenue
Walsall Council,http://opendatacommunities.org/id/metropolitan-district-council/walsall,WC76-720,31/01/2017,Adult Social Care,BUSH HOME LTD,10/01/2017,"1,620.00",73373-RESIDENTIAL & NURSING CARE PLACEMENTS,OP COMMISSIONING,Third Party Payments,Revenue
Walsall Council,http://opendatacommunities.org/id/metropolitan-district-council/walsall,WC76-721,31/01/2017,Adult Social Care,BUSH HOME LTD,10/01/2017,"1,620.00",73373-RESIDENTIAL & NURSING CARE PLACEMENTS,OP COMMISSIONING,Third Party Payments,Revenue
Walsall Council,http://opendatacommunities.org/id/metropolitan-district-council/walsall,WC76-722,31/01/2017,Adult Social Care,BUSH HOME LTD,10/01/2017,"1,800.00",73373-RESIDENTIAL & NURSING CARE PLACEMENTS,OP COMMISSIONING,Third Party Payments,Revenue
Walsall Council,http://opendatacommunities.org/id/metropolitan-district-council/walsall,WC76-723,31/01/2017,Adult Social Care,BUSH HOME LTD,10/01/2017,"1,800.00",73373-RESIDENTIAL & NURSING CARE PLACEMENTS,OP COMMISSIONING,Third Party Payments,Revenue
Walsall Council,http://opendatacommunities.org/id/metropolitan-district-council/walsall,WC76-724,31/01/2017,Adult Social Care,BUSH HOME LTD,10/01/2017,"1,800.00",73373-RESIDENTIAL & NURSING CARE PLACEMENTS,OP COMMISSIONING,Third Party Payments,Revenue
Walsall Council,http://opendatacommunities.org/id/metropolitan-district-council/walsall,WC76-725,31/01/2017,Adult Social Care,BUSH HOME LTD,10/01/2017,"1,800.00",73373-RESIDENTIAL & NURSING CARE PLACEMENTS,OP COMMISSIONING,Third Party Payments,Revenue
Walsall Council,http://opendatacommunities.org/id/metropolitan-district-council/walsall,WC76-726,31/01/2017,Adult Social Care,BUSH HOME LTD,10/01/2017,"1,800.00",73373-RESIDENTIAL & NURSING CARE PLACEMENTS,OP COMMISSIONING,Third Party Payments,Revenue
Walsall Council,http://opendatacommunities.org/id/metropolitan-district-council/walsall,WC76-727,31/01/2017,Adult Social Care,BUSH HOME LTD,10/01/2017,"1,800.00",73373-RESIDENTIAL & NURSING CARE PLACEMENTS,OP COMMISSIONING,Third Party Payments,Revenue
Walsall Council,http://opendatacommunities.org/id/metropolitan-district-council/walsall,WC76-728,31/01/2017,Adult Social Care,BUSH HOME LTD,10/01/2017,"1,800.00",73373-RESIDENTIAL & NURSING CARE PLACEMENTS,OP COMMISSIONING,Third Party Payments,Revenue
Walsall Council,http://opendatacommunities.org/id/metropolitan-district-council/walsall,WC76-729,31/01/2017,Adult Social Care,BUSH HOME LTD,10/01/2017,"1,800.00",73373-RESIDENTIAL & NURSING CARE PLACEMENTS,OP COMMISSIONING,Third Party Payments,Revenue
Walsall Council,http://opendatacommunities.org/id/metropolitan-district-council/walsall,WC76-730,31/01/2017,Adult Social Care,BUSH HOME LTD,10/01/2017,"1,800.00",73373-RESIDENTIAL & NURSING CARE PLACEMENTS,OP COMMISSIONING,Third Party Payments,Revenue
Walsall Council,http://opendatacommunities.org/id/metropolitan-district-council/walsall,WC76-731,31/01/2017,Adult Social Care,BUSH HOME LTD,10/01/2017,"1,800.00",73373-RESIDENTIAL & NURSING CARE PLACEMENTS,OP COMMISSIONING,Third Party Payments,Revenue
Walsall Council,http://opendatacommunities.org/id/metropolitan-district-council/walsall,WC76-732,31/01/2017,Adult Social Care,BUSH HOME LTD,10/01/2017,"1,800.00",73373-RESIDENTIAL & NURSING CARE PLACEMENTS,OP COMMISSIONING,Third Party Payments,Revenue
Walsall Council,http://opendatacommunities.org/id/metropolitan-district-council/walsall,WC76-733,31/01/2017,Adult Social Care,BUSH HOME LTD,10/01/2017,"1,800.00",73373-RESIDENTIAL & NURSING CARE PLACEMENTS,OP COMMISSIONING,Third Party Payments,Revenue
Walsall Council,http://opendatacommunities.org/id/metropolitan-district-council/walsall,WC76-734,31/01/2017,Adult Social Care,BUSH HOME LTD,17/01/2017,"1,800.00",73373-RESIDENTIAL & NURSING CARE PLACEMENTS,OP COMMISSIONING,Third Party Payments,Revenue
Walsall Council,http://opendatacommunities.org/id/metropolitan-district-council/walsall,WC76-735,31/01/2017,Adult Social Care,BUSH HOME LTD,24/01/2017,"1,800.00",73373-RESIDENTIAL & NURSING CARE PLACEMENTS,OP COMMISSIONING,Third Party Payments,Revenue
Walsall Council,http://opendatacommunities.org/id/metropolitan-district-council/walsall,WC76-736,31/01/2017,Adult Social Care,BUSH HOME LTD,10/01/2017,"1,992.85",73373-RESIDENTIAL & NURSING CARE PLACEMENTS,MH COMMISSIONING,Third Party Payments,Revenue
Walsall Council,http://opendatacommunities.org/id/metropolitan-district-council/walsall,WC76-737,31/01/2017,Adult Social Care,BUSH HOME LTD,24/01/2017,"3,471.42",73373-RESIDENTIAL & NURSING CARE PLACEMENTS,OP COMMISSIONING,Third Party Payments,Revenue
Walsall Council,http://opendatacommunities.org/id/metropolitan-district-council/walsall,WC76-738,31/01/2017,Adult Social Care,BUSH HOME LTD,24/01/2017,"9,450.00",73373-RESIDENTIAL & NURSING CARE PLACEMENTS,MH COMMISSIONING,Third Party Payments,Revenue
Walsall Council,http://opendatacommunities.org/id/metropolitan-district-council/walsall,WC76-739,31/01/2017,Childrens,BUSY BEES CHILDCARE LTD,30/01/2017,655.26,66502-TOP UP FUNDING -GRANTS TO SCHOOLS,INDEPENDENT PROVIDERS - SPECIAL & AP,Third Party Payments,Revenue
Walsall Council,http://opendatacommunities.org/id/metropolitan-district-council/walsall,WC76-740,31/01/2017,Childrens,BUSY BEES CHILDCARE LTD,03/01/2017,"1,408.32",66505-OTHER-GRANTS TO OTHER ORGS,EARLY YEARS - 2 YR OLDS,Third Party Payments,Revenue
Walsall Council,http://opendatacommunities.org/id/metropolitan-district-council/walsall,WC76-741,31/01/2017,Childrens,BUSY BEES CHILDCARE LTD,30/01/2017,"3,931.58",66502-TOP UP FUNDING -GRANTS TO SCHOOLS,INDEPENDENT PROVIDERS - SPECIAL & AP,Third Party Payments,Revenue
Walsall Council,http://opendatacommunities.org/id/metropolitan-district-council/walsall,WC76-742,31/01/2017,Childrens,BUSY BEES CHILDCARE LTD,03/01/2017,"6,998.28",66505-OTHER-GRANTS TO OTHER ORGS,EARLY YEARS - 3 YR OLDS,Third Party Payments,Revenue
Walsall Council,http://opendatacommunities.org/id/metropolitan-district-council/walsall,WC76-743,31/01/2017,Childrens,BY THE BRIDGE,12/01/2017,"-2,711.00",74037-INDEPENDENT FOSTER CARE-OTH AGENCY PROVISION,EXTERNAL FOSTER CARE PROVISION,Third Party Payments,Revenue
Walsall Council,http://opendatacommunities.org/id/metropolitan-district-council/walsall,WC76-744,31/01/2017,Childrens,BY THE BRIDGE,12/01/2017,"3,151.15",74037-INDEPENDENT FOSTER CARE-OTH AGENCY PROVISION,EXTERNAL FOSTER CARE PROVISION,Third Party Payments,Revenue
Walsall Council,http://opendatacommunities.org/id/metropolitan-district-council/walsall,WC76-745,31/01/2017,Childrens,BY THE BRIDGE,12/01/2017,"3,233.30",74037-INDEPENDENT FOSTER CARE-OTH AGENCY PROVISION,EXTERNAL FOSTER CARE PROVISION,Third Party Payments,Revenue
Walsall Council,http://opendatacommunities.org/id/metropolitan-district-council/walsall,WC76-746,31/01/2017,Childrens,BY THE BRIDGE,12/01/2017,"3,432.14",74037-INDEPENDENT FOSTER CARE-OTH AGENCY PROVISION,EXTERNAL FOSTER CARE PROVISION,Third Party Payments,Revenue
Walsall Council,http://opendatacommunities.org/id/metropolitan-district-council/walsall,WC76-747,31/01/2017,Childrens,BY THE BRIDGE,12/01/2017,"4,948.93",74037-INDEPENDENT FOSTER CARE-OTH AGENCY PROVISION,EXTERNAL FOSTER CARE PROVISION,Third Party Payments,Revenue
Walsall Council,http://opendatacommunities.org/id/metropolitan-district-council/walsall,WC76-748,31/01/2017,Adult Social Care,C & V ORCHARD MANOR LTD,17/01/2017,"1,620.00",73373-RESIDENTIAL & NURSING CARE PLACEMENTS,OP COMMISSIONING,Third Party Payments,Revenue
Walsall Council,http://opendatacommunities.org/id/metropolitan-district-council/walsall,WC76-749,31/01/2017,Adult Social Care,C & V ORCHARD MANOR LTD,17/01/2017,"1,620.00",73373-RESIDENTIAL & NURSING CARE PLACEMENTS,LD COMMISSIONING,Third Party Payments,Revenue
Walsall Council,http://opendatacommunities.org/id/metropolitan-district-council/walsall,WC76-750,31/01/2017,Adult Social Care,C & V ORCHARD MANOR LTD,17/01/2017,"1,620.00",73373-RESIDENTIAL & NURSING CARE PLACEMENTS,OP COMMISSIONING,Third Party Payments,Revenue
Walsall Council,http://opendatacommunities.org/id/metropolitan-district-council/walsall,WC76-751,31/01/2017,Adult Social Care,C & V ORCHARD MANOR LTD,17/01/2017,"1,620.00",73373-RESIDENTIAL & NURSING CARE PLACEMENTS,MH COMMISSIONING,Third Party Payments,Revenue
Walsall Council,http://opendatacommunities.org/id/metropolitan-district-council/walsall,WC76-752,31/01/2017,Adult Social Care,C & V ORCHARD MANOR LTD,17/01/2017,"1,620.00",73373-RESIDENTIAL & NURSING CARE PLACEMENTS,MH COMMISSIONING,Third Party Payments,Revenue
Walsall Council,http://opendatacommunities.org/id/metropolitan-district-council/walsall,WC76-753,31/01/2017,Adult Social Care,C & V ORCHARD MANOR LTD,17/01/2017,"1,620.00",73373-RESIDENTIAL & NURSING CARE PLACEMENTS,MH COMMISSIONING,Third Party Payments,Revenue
Walsall Council,http://opendatacommunities.org/id/metropolitan-district-council/walsall,WC76-754,31/01/2017,Adult Social Care,C & V ORCHARD MANOR LTD,17/01/2017,"1,620.60",73373-RESIDENTIAL & NURSING CARE PLACEMENTS,OP COMMISSIONING,Third Party Payments,Revenue
Walsall Council,http://opendatacommunities.org/id/metropolitan-district-council/walsall,WC76-755,31/01/2017,Adult Social Care,C & V ORCHARD MANOR LTD,17/01/2017,"1,800.00",73373-RESIDENTIAL & NURSING CARE PLACEMENTS,OP COMMISSIONING,Third Party Payments,Revenue
Walsall Council,http://opendatacommunities.org/id/metropolitan-district-council/walsall,WC76-756,31/01/2017,Adult Social Care,C & V ORCHARD MANOR LTD,17/01/2017,"1,800.00",73373-RESIDENTIAL & NURSING CARE PLACEMENTS,OP COMMISSIONING,Third Party Payments,Revenue
Walsall Council,http://opendatacommunities.org/id/metropolitan-district-council/walsall,WC76-757,31/01/2017,Adult Social Care,C & V ORCHARD MANOR LTD,17/01/2017,"1,800.00",73373-RESIDENTIAL & NURSING CARE PLACEMENTS,OP COMMISSIONING,Third Party Payments,Revenue
Walsall Council,http://opendatacommunities.org/id/metropolitan-district-council/walsall,WC76-758,31/01/2017,Adult Social Care,C & V ORCHARD MANOR LTD,17/01/2017,"1,800.00",73373-RESIDENTIAL & NURSING CARE PLACEMENTS,MH COMMISSIONING,Third Party Payments,Revenue
Walsall Council,http://opendatacommunities.org/id/metropolitan-district-council/walsall,WC76-759,31/01/2017,Adult Social Care,C & V ORCHARD MANOR LTD,17/01/2017,"1,800.00",73373-RESIDENTIAL & NURSING CARE PLACEMENTS,MH COMMISSIONING,Third Party Payments,Revenue
Walsall Council,http://opendatacommunities.org/id/metropolitan-district-council/walsall,WC76-760,31/01/2017,Adult Social Care,C & V ORCHARD MANOR LTD,17/01/2017,"3,361.36",73373-RESIDENTIAL & NURSING CARE PLACEMENTS,OP COMMISSIONING,Third Party Payments,Revenue
Walsall Council,http://opendatacommunities.org/id/metropolitan-district-council/walsall,WC76-761,31/01/2017,Adult Social Care,C & V ORCHARD MANOR LTD,17/01/2017,"10,607.12",73373-RESIDENTIAL & NURSING CARE PLACEMENTS,OP COMMISSIONING,Third Party Payments,Revenue
Walsall Council,http://opendatacommunities.org/id/metropolitan-district-council/walsall,WC76-762,31/01/2017,Adult Social Care,C & V ORCHARD RESIDENTIAL LTD,17/01/2017,"1,092.85",73373-RESIDENTIAL & NURSING CARE PLACEMENTS,OP COMMISSIONING,Third Party Payments,Revenue
Walsall Council,http://opendatacommunities.org/id/metropolitan-district-council/walsall,WC76-763,31/01/2017,Adult Social Care,C & V ORCHARD RESIDENTIAL LTD,17/01/2017,"1,620.00",73373-RESIDENTIAL & NURSING CARE PLACEMENTS,OP COMMISSIONING,Third Party Payments,Revenue
Walsall Council,http://opendatacommunities.org/id/metropolitan-district-council/walsall,WC76-764,31/01/2017,Adult Social Care,C & V ORCHARD RESIDENTIAL LTD,17/01/2017,"1,620.00",73373-RESIDENTIAL & NURSING CARE PLACEMENTS,OP COMMISSIONING,Third Party Payments,Revenue
Walsall Council,http://opendatacommunities.org/id/metropolitan-district-council/walsall,WC76-765,31/01/2017,Adult Social Care,C & V ORCHARD RESIDENTIAL LTD,17/01/2017,"1,620.00",73373-RESIDENTIAL & NURSING CARE PLACEMENTS,OP COMMISSIONING,Third Party Payments,Revenue
Walsall Council,http://opendatacommunities.org/id/metropolitan-district-council/walsall,WC76-766,31/01/2017,Adult Social Care,C & V ORCHARD RESIDENTIAL LTD,17/01/2017,"1,799.96",73373-RESIDENTIAL & NURSING CARE PLACEMENTS,OP COMMISSIONING,Third Party Payments,Revenue
Walsall Council,http://opendatacommunities.org/id/metropolitan-district-council/walsall,WC76-767,31/01/2017,Adult Social Care,C & V ORCHARD RESIDENTIAL LTD,05/01/2017,"1,800.00",73373-RESIDENTIAL & NURSING CARE PLACEMENTS,OP COMMISSIONING,Third Party Payments,Revenue
Walsall Council,http://opendatacommunities.org/id/metropolitan-district-council/walsall,WC76-768,31/01/2017,Adult Social Care,C & V ORCHARD RESIDENTIAL LTD,17/01/2017,"1,800.00",73373-RESIDENTIAL & NURSING CARE PLACEMENTS,OP COMMISSIONING,Third Party Payments,Revenue
Walsall Council,http://opendatacommunities.org/id/metropolitan-district-council/walsall,WC76-769,31/01/2017,Adult Social Care,C & V ORCHARD RESIDENTIAL LTD,17/01/2017,"1,800.00",73373-RESIDENTIAL & NURSING CARE PLACEMENTS,OP COMMISSIONING,Third Party Payments,Revenue
Walsall Council,http://opendatacommunities.org/id/metropolitan-district-council/walsall,WC76-770,31/01/2017,Adult Social Care,C & V ORCHARD RESIDENTIAL LTD,17/01/2017,"1,800.00",73373-RESIDENTIAL & NURSING CARE PLACEMENTS,OP COMMISSIONING,Third Party Payments,Revenue
Walsall Council,http://opendatacommunities.org/id/metropolitan-district-council/walsall,WC76-771,31/01/2017,Adult Social Care,C & V ORCHARD RESIDENTIAL LTD,17/01/2017,"1,800.00",73373-RESIDENTIAL & NURSING CARE PLACEMENTS,OP COMMISSIONING,Third Party Payments,Revenue
Walsall Council,http://opendatacommunities.org/id/metropolitan-district-council/walsall,WC76-772,31/01/2017,Adult Social Care,C & V ORCHARD RESIDENTIAL LTD,17/01/2017,"1,800.00",73373-RESIDENTIAL & NURSING CARE PLACEMENTS,OP COMMISSIONING,Third Party Payments,Revenue
Walsall Council,http://opendatacommunities.org/id/metropolitan-district-council/walsall,WC76-773,31/01/2017,Adult Social Care,C & V ORCHARD RESIDENTIAL LTD,17/01/2017,"1,800.00",73373-RESIDENTIAL & NURSING CARE PLACEMENTS,OP COMMISSIONING,Third Party Payments,Revenue
Walsall Council,http://opendatacommunities.org/id/metropolitan-district-council/walsall,WC76-774,31/01/2017,Adult Social Care,C & V ORCHARD RESIDENTIAL LTD,17/01/2017,"1,800.00",73373-RESIDENTIAL & NURSING CARE PLACEMENTS,OP COMMISSIONING,Third Party Payments,Revenue
Walsall Council,http://opendatacommunities.org/id/metropolitan-district-council/walsall,WC76-775,31/01/2017,Adult Social Care,C & V ORCHARD RESIDENTIAL LTD,17/01/2017,"1,800.00",73373-RESIDENTIAL & NURSING CARE PLACEMENTS,OP COMMISSIONING,Third Party Payments,Revenue
Walsall Council,http://opendatacommunities.org/id/metropolitan-district-council/walsall,WC76-776,31/01/2017,Economy & Environment,C ART ART TRANSPORT LTD,19/01/2017,"1,178.00",73032-TRANSPORTATION-PRIV CONTRACTOR FEES,NAG - TEMPORARY EXHIBITIONS,Third Party Payments,Revenue
Walsall Council,http://opendatacommunities.org/id/metropolitan-district-council/walsall,WC76-777,31/01/2017,Childrens,C CHAPMAN,31/01/2017,"4,317.64",62515-MISCELLANEOUS SUPPLIES,INTERNAL FOSTER CARE PROVISION,Supplies & Services,Revenue
Walsall Council,http://opendatacommunities.org/id/metropolitan-district-council/walsall,WC76-778,31/01/2017,Childrens,C CHAPMAN,02/01/2017,"4,365.61",62515-MISCELLANEOUS SUPPLIES,INTERNAL FOSTER CARE PROVISION,Supplies & Services,Revenue
Walsall Council,http://opendatacommunities.org/id/metropolitan-district-council/walsall,WC76-779,31/01/2017,Childrens,C CHAPMAN,02/01/2017,"5,314.09",74006-HOLIDAY/CHRISTMAS ALLOWANCE-FOSTER CARERS-OTH AGENCY PROVISION,INTERNAL FOSTER CARE PROVISION,Third Party Payments,Revenue
Walsall Council,http://opendatacommunities.org/id/metropolitan-district-council/walsall,WC76-780,31/01/2017,Childrens,C L MOSS,02/01/2017,"1,445.32",62515-MISCELLANEOUS SUPPLIES,INTERNAL FOSTER CARE PROVISION,Supplies & Services,Revenue
Walsall Council,http://opendatacommunities.org/id/metropolitan-district-council/walsall,WC76-781,31/01/2017,Childrens,C L MOSS,31/01/2017,"1,445.32",62515-MISCELLANEOUS SUPPLIES,INTERNAL FOSTER CARE PROVISION,Supplies & Services,Revenue
Walsall Council,http://opendatacommunities.org/id/metropolitan-district-council/walsall,WC76-782,31/01/2017,Childrens,C L MOSS,02/01/2017,"1,620.64",74006-HOLIDAY/CHRISTMAS ALLOWANCE-FOSTER CARERS-OTH AGENCY PROVISION,INTERNAL FOSTER CARE PROVISION,Third Party Payments,Revenue
Walsall Council,http://opendatacommunities.org/id/metropolitan-district-council/walsall,WC76-783,31/01/2017,Economy & Environment,C P DAVIDSON & SONS LTD,18/01/2017,209.74,60500-GENERAL MATERIALS,FLEET,Supplies & Services,Revenue
Walsall Council,http://opendatacommunities.org/id/metropolitan-district-council/walsall,WC76-784,31/01/2017,Economy & Environment,C P DAVIDSON & SONS LTD,18/01/2017,226.50,60514-MATERIALS TO STORES,FLEET PARTS STOCK ACCOUNT,Supplies & Services,Revenue
Walsall Council,http://opendatacommunities.org/id/metropolitan-district-council/walsall,WC76-785,31/01/2017,Childrens,C SMITH,16/01/2017,"1,222.36",74006-HOLIDAY/CHRISTMAS ALLOWANCE-FOSTER CARERS-OTH AGENCY PROVISION,INTERNAL FOSTER CARE PROVISION,Third Party Payments,Revenue
Walsall Council,http://opendatacommunities.org/id/metropolitan-district-council/walsall,WC76-786,31/01/2017,Adult Social Care,CALDENE  REST HOME,10/01/2017,"1,620.00",73373-RESIDENTIAL & NURSING CARE PLACEMENTS,OP COMMISSIONING,Third Party Payments,Revenue
Walsall Council,http://opendatacommunities.org/id/metropolitan-district-council/walsall,WC76-787,31/01/2017,Adult Social Care,CALDMORE AREA HOUSING ASS LTD,24/01/2017,265.43,73373-RESIDENTIAL & NURSING CARE PLACEMENTS,MH COMMISSIONING,Third Party Payments,Revenue
Walsall Council,http://opendatacommunities.org/id/metropolitan-district-council/walsall,WC76-788,31/01/2017,Adult Social Care,CALDMORE AREA HOUSING ASS LTD,04/01/2017,288.40,73374-SUPPORTED & OTHER ACCOMMODATION,MH COMMISSIONING,Third Party Payments,Revenue
